{"text_format":"1","workbook":"xlsx","n_sheets":6,"sheets":["Form","Main of Month","01-08-2019","03-08-2019","23-08-2019","24-08-2019"],"not_rendered":{"charts":0,"images":0,"macros":1,"external_links":1,"defined_names":97,"comments":0,"pivot_tables":0},"unopened":[],"bounds":{"document_bytes":16777216,"sheet_cells":100000,"rows_first":2000,"rows_last":500,"rows_between":2000,"halvings":0,"cell_chars":16384,"cell_head_chars":4096},"cells_cut":0,"cells_raw":0,"read":"whole","date_system":"1900"}

{"sheet":"Form","index":0,"n_rows":493,"n_cols":31,"rows_kept":493,"cut":false,"hidden":false,"merged":[[1,19,1,21]]}
["Official time - work",null,null,null,null,null,null,null,null,null,null,null,null,null,null,"رجــــوع"]
["#","App. Date","Name","Surname","Pasaport No.","Date of birth","Note of status","Price $","Paid $","Route","Unpaid $","GT","Case of appl","TG.Gov",null,"رجــــوع","رجــــوع",null,null,"TOTAL"]
[null,null,null,null,null,null,null,null,{"$f":"IF(J3<>\"\",\"\",H3)","v":0},null,{"$f":"IF(AND(I3=\"\",J3<>\"\"),H3,\"\")","v":""},{"$f":"IF(C3=\"\",\"\",25)","v":""},null,{"$f":"IF(M3=\"Extractor\",62.5,0)","v":0},null,null,null,"DONE",null,"Total amount",null,"Net profit",null,"Route","Coun of Rout","Total Unpaid",null,{"$f":"NoBlanks(J3:J100)","v":""},null,"Note of status","Count of Mistake"]
[null,null,null,null,null,null,null,null,0,null,"","",null,0,null,null,null,"CANCELLED",null,{"$f":"SUM(H2:H70)","v":0},null,{"$f":"T4-V14","v":0},null,{"$f":"IF(ISERROR(INDEX($AB$3:$AB$70,MATCH(0,COUNTIF($X$3:X3,$AB$3:$AB$69),0))),\"\",INDEX($AB$3:$AB$69,MATCH(0,COUNTIF($X$3:X3,$AB$3:$AB$69),0)))","v":""},{"$f":"IF(X4=\"\",\"\",COUNTIF(J2:J100,X4))","v":""},{"$f":"IF(X4<>\"\",SUMPRODUCT(--($J$2:$J$69=X4),$K$2:$K$69),\"\")","v":""},null,{"$f":"NoBlanks(J3:J500)","v":""},null,"DONE",{"$f":"COUNTIF(C2:C70,\"Done\")","v":0}]
[null,null,null,null,null,null,null,null,0,null,"","",null,0,null,null,null,"REFUSED",null,null,null,null,null,{"$f":"IF(ISERROR(INDEX($AB$3:$AB$70,MATCH(0,COUNTIF($X$3:X4,$AB$3:$AB$69),0))),\"\",INDEX($AB$3:$AB$69,MATCH(0,COUNTIF($X$3:X4,$AB$3:$AB$69),0)))","v":""},"","",null,{"$f":"NoBlanks(J4:J501)","v":""},null,"CANCELLED",{"$f":"COUNTIF(C3:C71,\"Cancelled\")","v":0}]
[null,null,null,null,null,null,null,null,0,null,"","",null,0,null,null,null,"MISTAKE",null,"Total Paid",null,"Difrent amount",null,{"$f":"IF(ISERROR(INDEX($AB$3:$AB$70,MATCH(0,COUNTIF($X$3:X5,$AB$3:$AB$69),0))),\"\",INDEX($AB$3:$AB$69,MATCH(0,COUNTIF($X$3:X5,$AB$3:$AB$69),0)))","v":""},"","",null,{"$f":"NoBlanks(J5:J502)","v":""},null,"REFUSED",{"$f":"COUNTIF(C4:C72,\"Refused\")","v":0}]
[null,null,null,null,null,null,null,null,0,null,"","",null,0,null,null,null,"GREEN PASS.",null,{"$f":"SUM(I2:I70)","v":0},null,{"$f":"T4-(T7+T10)","v":0},null,{"$f":"IF(ISERROR(INDEX($AB$3:$AB$70,MATCH(0,COUNTIF($X$3:X6,$AB$3:$AB$69),0))),\"\",INDEX($AB$3:$AB$69,MATCH(0,COUNTIF($X$3:X6,$AB$3:$AB$69),0)))","v":""},{"$f":"IF(X7=\"\",\"\",COUNTIF(J5:J103,X7))","v":""},"",{"$f":"IF(K3=\"\",\"\",J3)","v":""},{"$f":"NoBlanks(J6:J503)","v":""},null,"MISTAKE IN DOB",{"$f":"COUNTIF(C5:C73,\"Mistake\")","v":0}]
[null,null,null,null,null,null,null,null,0,null,"","",null,0,null,null,null,null,null,null,null,null,null,{"$f":"IF(ISERROR(INDEX($AB$3:$AB$70,MATCH(0,COUNTIF($X$3:X7,$AB$3:$AB$69),0))),\"\",INDEX($AB$3:$AB$69,MATCH(0,COUNTIF($X$3:X7,$AB$3:$AB$69),0)))","v":""},{"$f":"IF(X8=\"\",\"\",COUNTIF(J6:J104,X8))","v":""},"","",{"$f":"NoBlanks(J7:J504)","v":""},null,"GREEN PASS",{"$f":"COUNTIF(C6:C74,\"Green Pass.\")","v":0}]
[null,null,null,null,null,null,null,null,0,null,"","",null,0,null,null,null,"official time + work",null,"Total UnPaid",null,"No. of applicants",null,{"$f":"IF(ISERROR(INDEX($AB$3:$AB$70,MATCH(0,COUNTIF($X$3:X8,$AB$3:$AB$69),0))),\"\",INDEX($AB$3:$AB$69,MATCH(0,COUNTIF($X$3:X8,$AB$3:$AB$69),0)))","v":""},"","","",{"$f":"NoBlanks(J8:J505)","v":""}]
[null,null,null,null,null,null,null,null,0,null,"","",null,0,null,null,null,"official time - work",null,{"$f":"SUM(K2:K70)","v":0},null,{"$f":"COUNT(B:B)","v":0},null,{"$f":"IF(ISERROR(INDEX($AB$3:$AB$70,MATCH(0,COUNTIF($X$3:X9,$AB$3:$AB$69),0))),\"\",INDEX($AB$3:$AB$69,MATCH(0,COUNTIF($X$3:X9,$AB$3:$AB$69),0)))","v":""},"","","",{"$f":"NoBlanks(J9:J506)","v":""}]
[null,null,null,null,null,null,null,null,0,null,"","",null,0,null,null,null,"official holiday",null,null,null,null,null,{"$f":"IF(ISERROR(INDEX($AB$3:$AB$70,MATCH(0,COUNTIF($X$3:X10,$AB$3:$AB$69),0))),\"\",INDEX($AB$3:$AB$69,MATCH(0,COUNTIF($X$3:X10,$AB$3:$AB$69),0)))","v":""},"","","",{"$f":"NoBlanks(J10:J507)","v":""}]
[null,null,null,null,null,null,null,null,0,null,"","",null,0,null,null,null,"other",null,"Total GT",null,null,null,{"$f":"IF(ISERROR(INDEX($AB$3:$AB$70,MATCH(0,COUNTIF($X$3:X11,$AB$3:$AB$69),0))),\"\",INDEX($AB$3:$AB$69,MATCH(0,COUNTIF($X$3:X11,$AB$3:$AB$69),0)))","v":""},"","","",{"$f":"NoBlanks(J11:J508)","v":""}]
[null,null,null,null,null,null,null,null,0,null,"","",null,0,null,null,null,null,null,{"$f":"SUM(L2:L70)","v":0},null,"Cost amount",null,{"$f":"IF(ISERROR(INDEX($AB$3:$AB$70,MATCH(0,COUNTIF($X$3:X12,$AB$3:$AB$69),0))),\"\",INDEX($AB$3:$AB$69,MATCH(0,COUNTIF($X$3:X12,$AB$3:$AB$69),0)))","v":""},"","","",{"$f":"NoBlanks(J12:J509)","v":""}]
[null,null,null,null,null,null,null,null,0,null,"","",null,0,null,null,null,null,null,null,null,{"$f":"IF(AND(T13<>\"\",T16<>\"\"),T13+T16,\"\")","v":0},null,{"$f":"IF(ISERROR(INDEX($AB$3:$AB$70,MATCH(0,COUNTIF($X$3:X13,$AB$3:$AB$69),0))),\"\",INDEX($AB$3:$AB$69,MATCH(0,COUNTIF($X$3:X13,$AB$3:$AB$69),0)))","v":""},"","","",{"$f":"NoBlanks(J13:J510)","v":""}]
[null,null,null,null,null,null,null,null,0,null,"","",null,0,null,null,null,null,null,"Total T.Gov",null,null,null,{"$f":"IF(ISERROR(INDEX($AB$3:$AB$70,MATCH(0,COUNTIF($X$3:X14,$AB$3:$AB$69),0))),\"\",INDEX($AB$3:$AB$69,MATCH(0,COUNTIF($X$3:X14,$AB$3:$AB$69),0)))","v":""},"","","",{"$f":"NoBlanks(J14:J511)","v":""}]
[null,null,null,null,null,null,null," "," ",null,"","",null,0,null,null,null,null,null,{"$f":"SUM(N2:N70)","v":0},null,null,null,{"$f":"IF(ISERROR(INDEX($AB$3:$AB$70,MATCH(0,COUNTIF($X$3:X15,$AB$3:$AB$69),0))),\"\",INDEX($AB$3:$AB$69,MATCH(0,COUNTIF($X$3:X15,$AB$3:$AB$69),0)))","v":""},"","","",{"$f":"NoBlanks(J15:J512)","v":""}]
[null,null,null,null,null,null,null," "," ",null,{"$f":"IF(AND(I17=\"\",J17<>\"\"),H17,\"\")","v":""},"",null,0,null,null,null,null,null,null,null,null,null,{"$f":"IF(ISERROR(INDEX($AB$3:$AB$70,MATCH(0,COUNTIF($X$3:X16,$AB$3:$AB$69),0))),\"\",INDEX($AB$3:$AB$69,MATCH(0,COUNTIF($X$3:X16,$AB$3:$AB$69),0)))","v":""},"","","",{"$f":"NoBlanks(J16:J513)","v":""}]
[null,null,null,null,null,null," "," "," ",null,{"$f":"IF(AND(I18=\"\",J18<>\"\"),H18,\"\")","v":""},"",null,0,null,null,null,null,null,null,null,null,null,{"$f":"IF(ISERROR(INDEX($AB$3:$AB$70,MATCH(0,COUNTIF($X$3:X17,$AB$3:$AB$69),0))),\"\",INDEX($AB$3:$AB$69,MATCH(0,COUNTIF($X$3:X17,$AB$3:$AB$69),0)))","v":""},"","","",{"$f":"NoBlanks(J17:J514)","v":""}]
[null,null,null,null,null,null," "," "," ",null,"","",null,0,null,null,null,null,null,null,null,null,null,{"$f":"IF(ISERROR(INDEX($AB$3:$AB$70,MATCH(0,COUNTIF($X$3:X18,$AB$3:$AB$69),0))),\"\",INDEX($AB$3:$AB$69,MATCH(0,COUNTIF($X$3:X18,$AB$3:$AB$69),0)))","v":""},"","","",{"$f":"NoBlanks(J18:J515)","v":""}]
[null,null,null,null,null,null," "," "," ",null,"","",null,0,null,null,null,null,null,null,null,null,null,{"$f":"IF(ISERROR(INDEX($AB$3:$AB$70,MATCH(0,COUNTIF($X$3:X19,$AB$3:$AB$69),0))),\"\",INDEX($AB$3:$AB$69,MATCH(0,COUNTIF($X$3:X19,$AB$3:$AB$69),0)))","v":""},"","","",{"$f":"NoBlanks(J19:J516)","v":""}]
[null,null,null,null,null,null," ",null,0,null,"","",null,0,null,null,null,null,null,null,null,null,null,{"$f":"IF(ISERROR(INDEX($AB$3:$AB$70,MATCH(0,COUNTIF($X$3:X20,$AB$3:$AB$69),0))),\"\",INDEX($AB$3:$AB$69,MATCH(0,COUNTIF($X$3:X20,$AB$3:$AB$69),0)))","v":""},"","","",{"$f":"NoBlanks(J20:J517)","v":""}]
[null,null,null,null,null,null," ",null,0,null,"","",null,0,null,null,null,null,null,null,null,null,null,{"$f":"IF(ISERROR(INDEX($AB$3:$AB$70,MATCH(0,COUNTIF($X$3:X21,$AB$3:$AB$69),0))),\"\",INDEX($AB$3:$AB$69,MATCH(0,COUNTIF($X$3:X21,$AB$3:$AB$69),0)))","v":""},"","","",{"$f":"NoBlanks(J21:J518)","v":""},null,null,{"$f":"IFERROR(INDEX($J$2:$J$492,SMALL(IF($J$2:$J$492<>\"\",ROW($J$1:$J$492)-ROW($J$2)+1,\"\"),ROWS(AE$21:$AI22))),\"\")","v":""}]
[null,null,null,null,null,null," ",null,0,null,"","",null,0,null,null,null,null,null,null,null,"Done",null,null,{"$f":"NoBlanks(AA25:AA518)","v":""},{"$f":"IFERROR(INDEX($J$2:$J$492,SMALL(IF($J$2:$J$492<>\"\",ROW($J$1:$J$492)-ROW($J$2)+1,\"\"),ROWS(AE$21:$AI23))),\"\")","v":""},null,{"$f":"NoBlanks(J22:J519)","v":""}]
[null,null,null,null,null,null," ",null,0,null,"","",null,0,null,null,null,null,null,null,null,"Cancelled",null,null,null,null,{"$f":"IF(K20=\"\",\"\",J20)","v":""},{"$f":"NoBlanks(J23:J520)","v":""},null,null,{"$f":"IFERROR(INDEX($J$2:$J$492,SMALL(IF($J$2:$J$492<>\"\",ROW($J$1:$J$492)-ROW($J$2)+1,\"\"),ROWS(AE$21:$AI24))),\"\")","v":""}]
[null,null,null,null,null,null," ",null,0,null,"","",null,0,null,null,null,null,null,null,null,"Refused",null,null,null,null,"",{"$f":"NoBlanks(J24:J521)","v":""},null,null,{"$f":"IFERROR(INDEX($J$2:$J$492,SMALL(IF($J$2:$J$492<>\"\",ROW($J$1:$J$492)-ROW($J$2)+1,\"\"),ROWS(AE$21:$AI25))),\"\")","v":""}]
[null,null,null,null,null,null," ",null,0,null,"","",null,0,null,null,null,null,null,null,null,"Green pass.",null,null,null,null,"",{"$f":"NoBlanks(J25:J522)","v":""}]
[null,null,null,null,null,null," ",null,0,null,"","",null,0,null,null,null,null,null,null,null,"Mistake",null,null,null,null,"",{"$f":"NoBlanks(J26:J523)","v":""}]
[null,null,null,null,null,null," ",null,0,null,"","",null,0,null,null,null,null,null,null,null,null,null,null,null,null,"",{"$f":"NoBlanks(J27:J524)","v":""}]
[null,null,null,null,null,null," ",null,0,null,"","",null,0,null,null,null,null,null,null,null,null,null,null,null,null,"",{"$f":"NoBlanks(J28:J525)","v":""}]
[null,null,null,null,null,null," ",null,0,null,"","",null,0,null,null,null,null,null,null,null,null,null,null,null,null,"",{"$f":"NoBlanks(J29:J526)","v":""}]
[null,null,null,null,null,null," ",null,0,null,"","",null,0,null,null,null,null,null,null,null,null,null,null,null,null,"",{"$f":"NoBlanks(J30:J527)","v":""}]
[null,null,null,null,null,null," ",null,0,null,"","",null,0,null,null,null,null,null,null,null,null,null,null,null,null,"",{"$f":"NoBlanks(J31:J528)","v":""}]
[null,null,null,null,null,null," ",null,0,null,"","",null,0,null,null,null,null,null,null,null,null,null,null,null,null,"",{"$f":"NoBlanks(J32:J529)","v":""}]
[null,null,null,null,null,null," ",null,0,null,"","",null,0,null,null,null,null,null,null,null,null,null,null,null,null,"",{"$f":"NoBlanks(J33:J530)","v":""}]
[null,null,null,null,null,null," ",null,0,null,"","",null,0,null,null,null,null,null,null,null,null,null,null,null,null,"",{"$f":"NoBlanks(J34:J531)","v":""}]
[null,null,null,null,null,null," ",null,0,null,"","",null,0,null,null,null,null,null,null,null,null,null,null,null,null,"",{"$f":"NoBlanks(J35:J532)","v":""}]
[null,null,null,null,null,null," ",null,0,null,"","",null,0,null,null,null,null,null,null,null,null,null,null,null,null,"",{"$f":"NoBlanks(J36:J533)","v":""}]
[null,null,null,null,null,null," ",null,0,null,"","",null,0,null,null,null,null,null,null,null,null,null,null,null,null,"",{"$f":"NoBlanks(J37:J534)","v":""}]
[null,null,null,null,null,null," ",null,0,null,"","",null,0,null,null,null,null,null,null,null,null,null,null,null,null,"",{"$f":"NoBlanks(J38:J535)","v":""}]
[null,null,null,null,null,null," ",null,0,null,"","",null,0,null,null,null,null,null,null,null,null,null,null,null,null,"",{"$f":"NoBlanks(J39:J536)","v":""}]
[null,null,null,null,null,null," ",null,0,null,"","",null,0,null,null,null,null,null,null,null,null,null,null,null,null,"",{"$f":"NoBlanks(J40:J537)","v":""}]
[null,null,null,null,null,null," ",null,0,null,"","",null,0,null,null,null,null,null,null,null,null,null,null,null,null,"",{"$f":"NoBlanks(J41:J538)","v":""}]
[null,null,null,null,null,null," ",null,0,null,"","",null,0,null,null,null,null,null,null,null,null,null,null,null,null,"",{"$f":"NoBlanks(J42:J539)","v":""}]
[null,null,null,null,null,null," ",null,0,null,"","",null,0,null,null,null,null,null,null,null,null,null,null,null,null,"",{"$f":"NoBlanks(J43:J540)","v":""}]
[null,null,null,null,null,null," ",null,0,null,"","",null,0,null,null,null,null,null,null,null,null,null,null,null,null,"",{"$f":"NoBlanks(J44:J541)","v":""}]
[null,null,null,null,null,null," ",null,0,null,"","",null,0,null,null,null,null,null,null,null,null,null,null,null,null,"",{"$f":"NoBlanks(J45:J542)","v":""}]
[null,null,null,null,null,null," ",null,0,null,"","",null,0,null,null,null,null,null,null,null,null,null,null,null,null,"",{"$f":"NoBlanks(J46:J543)","v":""}]
[null,null,null,null,null,null," ",null,0,null,"","",null,0,null,null,null,null,null,null,null,null,null,null,null,null,"",{"$f":"NoBlanks(J47:J544)","v":""}]
[null,null,null,null,null,null," ",null,0,null,"","",null,0,null,null,null,null,null,null,null,null,null,null,null,null,"",{"$f":"NoBlanks(J48:J545)","v":""}]
[null,null,null,null,null,null," ",null,0,null,"","",null,0,null,null,null,null,null,null,null,null,null,null,null,null,"",{"$f":"NoBlanks(J49:J546)","v":""}]
[null,null,null,null,null,null," ",null,0,null,"","",null,0,null,null,null,null,null,null,null,null,null,null,null,null,"",{"$f":"NoBlanks(J50:J547)","v":""}]
[null,null,null,null,null,null," ",null,0,null,"","",null,0,null,null,null,null,null,null,null,null,null,null,null,null,"",{"$f":"NoBlanks(J51:J548)","v":""}]
[null,null,null,null,null,null," ",null,0,null,"","",null,0,null,null,null,null,null,null,null,null,null,null,null,null,"",{"$f":"NoBlanks(J52:J549)","v":""}]
[null,null,null,null,null,null," ",null,0,null,"","",null,0,null,null,null,null,null,null,null,null,null,null,null,null,"",{"$f":"NoBlanks(J53:J550)","v":""}]
[null,null,null,null,null,null," ",null,0,null,"","",null,0,null,null,null,null,null,null,null,null,null,null,null,null,"",{"$f":"NoBlanks(J54:J551)","v":""}]
[null,null,null,null,null,null," ",null,0,null,"","",null,0,null,null,null,null,null,null,null,null,null,null,null,null,{"$f":"IF(K52=\"\",\"\",J52)","v":""},{"$f":"NoBlanks(J55:J552)","v":""}]
[null,null,null,null,null,null," ",null,0,null,"","",null,0,null,null,null,null,null,null,null,null,null,null,null,null,"",{"$f":"NoBlanks(J56:J553)","v":""}]
[null,null,null,null,null,null," ",null,0,null,"","",null,0,null,null,null,null,null,null,null,null,null,null,null,null,"",{"$f":"NoBlanks(J57:J554)","v":""}]
[null,null,null,null,null,null," ",null,0,null,"","",null,0,null,null,null,null,null,null,null,null,null,null,null,null,"",{"$f":"NoBlanks(J58:J555)","v":""}]
[null,null,null,null,null,null," ",null,0,null,"","",null,0,null,null,null,null,null,null,null,null,null,null,null,null,"",{"$f":"NoBlanks(J59:J556)","v":""}]
[null,null,null,null,null,null," ",null,0,null,"","",null,0,null,null,null,null,null,null,null,null,null,null,null,null,"",{"$f":"NoBlanks(J60:J557)","v":""}]
[null,null,null,null,null,null," ",null,0,null,"","",null,0,null,null,null,null,null,null,null,null,null,null,null,null,"",{"$f":"NoBlanks(J61:J558)","v":""}]
[null,null,null,null,null,null," ",null,0,null,"","",null,0,null,null,null,null,null,null,null,null,null,null,null,null,"",{"$f":"NoBlanks(J62:J559)","v":""}]
[null,null,null,null,null,null," ",null,0,null,{"$f":"IF(AND(I64=\"\",J64<>\"\"),H64,\"\")","v":""},"",null,0,null,null,null,null,null,null,null,null,null,null,null,null,"",{"$f":"NoBlanks(J63:J560)","v":""}]
[null,null,null,null,null,null," ",null,0,null,{"$f":"IF(AND(I65=\"\",J65<>\"\"),H65,\"\")","v":""},"",null,0,null,null,null,null,null,null,null,null,null,null,null,null,"",{"$f":"NoBlanks(J64:J561)","v":""}]
[null,null,null,null,null,null," ",null,0,null,"","",null,0,null,null,null,null,null,null,null,null,null,null,null,null,"",{"$f":"NoBlanks(J65:J562)","v":""}]
[null,null,null,null,null,null," ",null,{"$f":"IF(J67<>\"\",\"\",H67)","v":0},null,"",{"$f":"IF(C67=\"\",\"\",25)","v":""},null,{"$f":"IF(M67=\"Extractor\",62.5,0)","v":0},null,null,null,null,null,null,null,null,null,null,null,null,"",{"$f":"NoBlanks(J66:J563)","v":""}]
[null,null,null,null,null,null," ",null,0,null,"","",null,0,null,null,null,null,null,null,null,null,null,null,null,null,"",{"$f":"NoBlanks(J67:J564)","v":""}]
[null,null,null,null,null,null," ",null,0,null,"","",null,0,null,null,null,null,null,null,null,null,null,null,null,null,"",{"$f":"NoBlanks(J68:J565)","v":""}]
[null,null,null,null,null,null," ",null,0,null,"","",null,0,null,null,null,null,null,null,null,null,null,null,null,null,"",{"$f":"NoBlanks(J69:J566)","v":""}]
[null,null,null,null,null,null," "," ",null,null,null,null,null,null,null,null,null,null,null,null,null,null,null,null,null,null,"",{"$f":"NoBlanks(J70:J567)","v":""}]
[null,null,null,null,null,null," "," ",null,null,null,null,null,null,null,null,null,null,null,null,null,null,null,null,null,null,"",{"$f":"NoBlanks(J71:J568)","v":""}]
[null,null,null,null,null,null," "," ",null,null,null,null,null,null,null,null,null,null,null,null,null,null,null,null,null,null,"",{"$f":"NoBlanks(J72:J569)","v":""}]
[null,null,null,null,null,null," "," ",null,null,null,null,null,null,null,null,null,null,null,null,null,null,null,null,null,null,"",{"$f":"NoBlanks(J73:J570)","v":""}]
[null,null,null,null,null,null," "," ",null,null,null,null,null,null,null,null,null,null,null,null,null,null,null,null,null,null,"",{"$f":"NoBlanks(J74:J571)","v":""}]
[null,null,null,null,null,null," "," ",null,null,null,null,null,null,null,null,null,null,null,null,null,null,null,null,null,null,"",{"$f":"NoBlanks(J75:J572)","v":""}]
[null,null,null,null,null,null," "," ",null,null,null,null,null,null,null,null,null,null,null,null,null,null,null,null,null,null,"",{"$f":"NoBlanks(J76:J573)","v":""}]
[null,null,null,null,null,null," "," ",null,null,null,null,null,null,null,null,null,null,null,null,null,null,null,null,null,null,"",{"$f":"NoBlanks(J77:J574)","v":""}]
[null,null,null,null,null,null," "," ",null,null,null,null,null,null,null,null,null,null,null,null,null,null,null,null,null,null,"",{"$f":"NoBlanks(J78:J575)","v":""}]
[null,null,null,null,null,null," "," ",null,null,null,null,null,null,null,null,null,null,null,null,null,null,null,null,null,null,"",{"$f":"NoBlanks(J79:J576)","v":""}]
[null,null,null,null,null,null," "," ",null,null,null,null,null,null,null,null,null,null,null,null,null,null,null,null,null,null,"",{"$f":"NoBlanks(J80:J577)","v":""}]
[null,null,null,null,null,null," "," ",null,null,null,null,null,null,null,null,null,null,null,null,null,null,null,null,null,null,"",{"$f":"NoBlanks(J81:J578)","v":""}]
[null,null,null,null,null,null," "," ",null,null,null,null,null,null,null,null,null,null,null,null,null,null,null,null,null,null,"",{"$f":"NoBlanks(J82:J579)","v":""}]
[null,null,null,null,null,null," "," ",null,null,null,null,null,null,null,null,null,null,null,null,null,null,null,null,null,null,"",{"$f":"NoBlanks(J83:J580)","v":""}]
[null,null,null,null,null,null," "," ",null,null,null,null,null,null,null,null,null,null,null,null,null,null,null,null,null,null,"",{"$f":"NoBlanks(J84:J581)","v":""}]
[null,null,null,null,null,null," "," ",null,null,null,null,null,null,null,null,null,null,null,null,null,null,null,null,null,null,"",{"$f":"NoBlanks(J85:J582)","v":""}]
[null,null,null,null,null,null," "," ",null,null,null,null,null,null,null,null,null,null,null,null,null,null,null,null,null,null,"",{"$f":"NoBlanks(J86:J583)","v":""}]
[null,null,null,null,null,null," "," ",null,null,null,null,null,null,null,null,null,null,null,null,null,null,null,null,null,null,{"$f":"IF(K84=\"\",\"\",J84)","v":""},{"$f":"NoBlanks(J87:J584)","v":""}]
[null,null,null,null,null,null," "," ",null,null,null,null,null,null,null,null,null,null,null,null,null,null,null,null,null,null,"",{"$f":"NoBlanks(J88:J585)","v":""}]
[null,null,null,null,null,null," "," ",null,null,null,null,null,null,null,null,null,null,null,null,null,null,null,null,null,null,"",{"$f":"NoBlanks(J89:J586)","v":""}]
[null,null,null,null,null,null," "," ",null,null,null,null,null,null,null,null,null,null,null,null,null,null,null,null,null,null,"",{"$f":"NoBlanks(J90:J587)","v":""}]
[null,null,null,null,null,null," "," ",null,null,null,null,null,null,null,null,null,null,null,null,null,null,null,null,null,null,"",{"$f":"NoBlanks(J91:J588)","v":""}]
[null,null,null,null,null,null," "," ",null,null,null,null,null,null,null,null,null,null,null,null,null,null,null,null,null,null,"",{"$f":"NoBlanks(J92:J589)","v":""}]
[null,null,null,null,null,null," ",null,null,null,null,null,null,null,null,null,null,null,null,null,null,null,null,null,null,null,"",{"$f":"NoBlanks(J93:J590)","v":""}]
[null,null,null,null,null,null," ",null,null,null,null,null,null,null,null,null,null,null,null,null,null,null,null,null,null,null,"",{"$f":"NoBlanks(J94:J591)","v":""}]
[null,null,null,null,null,null," ",null,null,null,null,null,null,null,null,null,null,null,null,null,null,null,null,null,null,null,"",{"$f":"NoBlanks(J95:J592)","v":""}]
[null,null,null,null,null,null," ",null,null,null,null,null,null,null,null,null,null,null,null,null,null,null,null,null,null,null,"",{"$f":"NoBlanks(J96:J593)","v":""}]
[null,null,null,null,null,null," ",null,null,null,null,null,null,null,null,null,null,null,null,null,null,null,null,null,null,null,"",{"$f":"NoBlanks(J97:J594)","v":""}]
[null,null,null,null,null,null," ",null,null,null,null,null,null,null,null,null,null,null,null,null,null,null,null,null,null,null,"",{"$f":"NoBlanks(J98:J595)","v":""}]
[null,null,null,null,null,null," ",null,null,null,null,null,null,null,null,null,null,null,null,null,null,null,null,null,null,null,"",{"$f":"NoBlanks(J99:J596)","v":""}]
[null,null,null,null,null,null," ",null,null,null,null,null,null,null,null,null,null,null,null,null,null,null,null,null,null,null,"",{"$f":"NoBlanks(J100:J597)","v":""}]
[null,null,null,null,null,null," ",null,null,null,null,null,null,null,null,null,null,null,null,null,null,null,null,null,null,null,"",{"$f":"NoBlanks(J101:J598)","v":""}]
[null,null,null,null,null,null," ",null,null,null,null,null,null,null,null,null,null,null,null,null,null,null,null,null,null,null,null,{"$f":"NoBlanks(J102:J599)","v":""}]
[null,null,null,null,null,null," ",null,null,null,null,null,null,null,null,null,null,null,null,null,null,null,null,null,null,null,null,{"$f":"NoBlanks(J103:J600)","v":""}]
[null,null,null,null,null,null," ",null,null,null,null,null,null,null,null,null,null,null,null,null,null,null,null,null,null,null,null,{"$f":"NoBlanks(J104:J601)","v":""}]
[null,null,null,null,null,null," ",null,null,null,null,null,null,null,null,null,null,null,null,null,null,null,null,null,null,null,null,{"$f":"NoBlanks(J105:J602)","v":""}]
[null,null,null,null,null,null," ",null,null,null,null,null,null,null,null,null,null,null,null,null,null,null,null,null,null,null,null,{"$f":"NoBlanks(J106:J603)","v":""}]
[null,null,null,null,null,null," ",null,null,null,null,null,null,null,null,null,null,null,null,null,null,null,null,null,null,null,null,{"$f":"NoBlanks(J107:J604)","v":""}]
[null,null,null,null,null,null," ",null,null,null,null,null,null,null,null,null,null,null,null,null,null,null,null,null,null,null,null,{"$f":"NoBlanks(J108:J605)","v":""}]
[null,null,null,null,null,null," ",null,null,null,null,null,null,null,null,null,null,null,null,null,null,null,null,null,null,null,null,{"$f":"NoBlanks(J109:J606)","v":""}]
[null,null,null,null,null,null," ",null,null,null,null,null,null,null,null,null,null,null,null,null,null,null,null,null,null,null,null,{"$f":"NoBlanks(J110:J607)","v":""}]
[null,null,null,null,null,null," ",null,null,null,null,null,null,null,null,null,null,null,null,null,null,null,null,null,null,null,null,{"$f":"NoBlanks(J111:J608)","v":""}]
[null,null,null,null,null,null," ",null,null,null,null,null,null,null,null,null,null,null,null,null,null,null,null,null,null,null,null,{"$f":"NoBlanks(J112:J609)","v":""}]
[null,null,null,null,null,null," ",null,null,null,null,null,null,null,null,null,null,null,null,null,null,null,null,null,null,null,null,{"$f":"NoBlanks(J113:J610)","v":""}]
[null,null,null,null,null,null," ",null,null,null,null,null,null,null,null,null,null,null,null,null,null,null,null,null,null,null,null,{"$f":"NoBlanks(J114:J611)","v":""}]
[null,null,null,null,null,null," ",null,null,null,null,null,null,null,null,null,null,null,null,null,null,null,null,null,null,null,null,{"$f":"NoBlanks(J115:J612)","v":""}]
[null,null,null,null,null,null," ",null,null,null,null,null,null,null,null,null,null,null,null,null,null,null,null,null,null,null,null,{"$f":"NoBlanks(J116:J613)","v":""}]
[null,null,null,null,null,null," ",null,null,null,null,null,null,null,null,null,null,null,null,null,null,null,null,null,null,null,null,{"$f":"NoBlanks(J117:J614)","v":""}]
[null,null,null,null,null,null," ",null,null,null,null,null,null,null,null,null,null,null,null,null,null,null,null,null,null,null,null,{"$f":"NoBlanks(J118:J615)","v":""}]
[null,null,null,null,null,null," ",null,null,null,null,null,null,null,null,null,null,null,null,null,null,null,null,null,null,null,null,{"$f":"NoBlanks(J119:J616)","v":""}]
[null,null,null,null,null,null," ",null,null,null,null,null,null,null,null,null,null,null,null,null,null,null,null,null,null,null,null,{"$f":"NoBlanks(J120:J617)","v":""}]
[null,null,null,null,null,null," ",null,null,null,null,null,null,null,null,null,null,null,null,null,null,null,null,null,null,null,null,{"$f":"NoBlanks(J121:J618)","v":""}]
[null,null,null,null,null,null," ",null,null,null,null,null,null,null,null,null,null,null,null,null,null,null,null,null,null,null,null,{"$f":"NoBlanks(J122:J619)","v":""}]
[null,null,null,null,null,null," ",null,null,null,null,null,null,null,null,null,null,null,null,null,null,null,null,null,null,null,null,{"$f":"NoBlanks(J123:J620)","v":""}]
[null,null,null,null,null,null," ",null,null,null,null,null,null,null,null,null,null,null,null,null,null,null,null,null,null,null,null,{"$f":"NoBlanks(J124:J621)","v":""}]
[null,null,null,null,null,null," ",null,null,null,null,null,null,null,null,null,null,null,null,null,null,null,null,null,null,null,null,{"$f":"NoBlanks(J125:J622)","v":""}]
[null,null,null,null,null,null," ",null,null,null,null,null,null,null,null,null,null,null,null,null,null,null,null,null,null,null,null,{"$f":"NoBlanks(J126:J623)","v":""}]
[null,null,null,null,null,null," ",null,null,null,null,null,null,null,null,null,null,null,null,null,null,null,null,null,null,null,null,{"$f":"NoBlanks(J127:J624)","v":""}]
[null,null,null,null,null,null," ",null,null,null,null,null,null,null,null,null,null,null,null,null,null,null,null,null,null,null,null,{"$f":"NoBlanks(J128:J625)","v":""}]
[null,null,null,null,null,null," ",null,null,null,null,null,null,null,null,null,null,null,null,null,null,null,null,null,null,null,null,{"$f":"NoBlanks(J129:J626)","v":""}]
[null,null,null,null,null,null," ",null,null,null,null,null,null,null,null,null,null,null,null,null,null,null,null,null,null,null,null,{"$f":"NoBlanks(J130:J627)","v":""}]
[null,null,null,null,null,null," ",null,null,null,null,null,null,null,null,null,null,null,null,null,null,null,null,null,null,null,null,{"$f":"NoBlanks(J131:J628)","v":""}]
[null,null,null,null,null,null," ",null,null,null,null,null,null,null,null,null,null,null,null,null,null,null,null,null,null,null,null,{"$f":"NoBlanks(J132:J629)","v":""}]
[null,null,null,null,null,null," ",null,null,null,null,null,null,null,null,null,null,null,null,null,null,null,null,null,null,null,null,{"$f":"NoBlanks(J133:J630)","v":""}]
[null,null,null,null,null,null," ",null,null,null,null,null,null,null,null,null,null,null,null,null,null,null,null,null,null,null,null,{"$f":"NoBlanks(J134:J631)","v":""}]
[null,null,null,null,null,null," ",null,null,null,null,null,null,null,null,null,null,null,null,null,null,null,null,null,null,null,null,{"$f":"NoBlanks(J135:J632)","v":""}]
[null,null,null,null,null,null," ",null,null,null,null,null,null,null,null,null,null,null,null,null,null,null,null,null,null,null,null,{"$f":"NoBlanks(J136:J633)","v":""}]
[null,null,null,null,null,null," ",null,null,null,null,null,null,null,null,null,null,null,null,null,null,null,null,null,null,null,null,{"$f":"NoBlanks(J137:J634)","v":""}]
[null,null,null,null,null,null," ",null,null,null,null,null,null,null,null,null,null,null,null,null,null,null,null,null,null,null,null,{"$f":"NoBlanks(J138:J635)","v":""}]
[null,null,null,null,null,null," ",null,null,null,null,null,null,null,null,null,null,null,null,null,null,null,null,null,null,null,null,{"$f":"NoBlanks(J139:J636)","v":""}]
[null,null,null,null,null,null," ",null,null,null,null,null,null,null,null,null,null,null,null,null,null,null,null,null,null,null,null,{"$f":"NoBlanks(J140:J637)","v":""}]
[null,null,null,null,null,null," ",null,null,null,null,null,null,null,null,null,null,null,null,null,null,null,null,null,null,null,null,{"$f":"NoBlanks(J141:J638)","v":""}]
[null,null,null,null,null,null," ",null,null,null,null,null,null,null,null,null,null,null,null,null,null,null,null,null,null,null,null,{"$f":"NoBlanks(J142:J639)","v":""}]
[null,null,null,null,null,null," ",null,null,null,null,null,null,null,null,null,null,null,null,null,null,null,null,null,null,null,null,{"$f":"NoBlanks(J143:J640)","v":""}]
[null,null,null,null,null,null," ",null,null,null,null,null,null,null,null,null,null,null,null,null,null,null,null,null,null,null,null,{"$f":"NoBlanks(J144:J641)","v":""}]
[null,null,null,null,null,null," ",null,null,null,null,null,null,null,null,null,null,null,null,null,null,null,null,null,null,null,null,{"$f":"NoBlanks(J145:J642)","v":""}]
[null,null,null,null,null,null," ",null,null,null,null,null,null,null,null,null,null,null,null,null,null,null,null,null,null,null,null,{"$f":"NoBlanks(J146:J643)","v":""}]
[null,null,null,null,null,null," ",null,null,null,null,null,null,null,null,null,null,null,null,null,null,null,null,null,null,null,null,{"$f":"NoBlanks(J147:J644)","v":""}]
[null,null,null,null,null,null," ",null,null,null,null,null,null,null,null,null,null,null,null,null,null,null,null,null,null,null,null,{"$f":"NoBlanks(J148:J645)","v":""}]
[null,null,null,null,null,null," ",null,null,null,null,null,null,null,null,null,null,null,null,null,null,null,null,null,null,null,null,{"$f":"NoBlanks(J149:J646)","v":""}]
[null,null,null,null,null,null," ",null,null,null,null,null,null,null,null,null,null,null,null,null,null,null,null,null,null,null,null,{"$f":"NoBlanks(J150:J647)","v":""}]
[null,null,null,null,null,null," ",null,null,null,null,null,null,null,null,null,null,null,null,null,null,null,null,null,null,null,null,{"$f":"NoBlanks(J151:J648)","v":""}]
[null,null,null,null,null,null," ",null,null,null,null,null,null,null,null,null,null,null,null,null,null,null,null,null,null,null,null,{"$f":"NoBlanks(J152:J649)","v":""}]
[null,null,null,null,null,null," ",null,null,null,null,null,null,null,null,null,null,null,null,null,null,null,null,null,null,null,null,{"$f":"NoBlanks(J153:J650)","v":""}]
[null,null,null,null,null,null," ",null,null,null,null,null,null,null,null,null,null,null,null,null,null,null,null,null,null,null,null,{"$f":"NoBlanks(J154:J651)","v":""}]
[null,null,null,null,null,null," ",null,null,null,null,null,null,null,null,null,null,null,null,null,null,null,null,null,null,null,null,{"$f":"NoBlanks(J155:J652)","v":""}]
[null,null,null,null,null,null," ",null,null,null,null,null,null,null,null,null,null,null,null,null,null,null,null,null,null,null,null,{"$f":"NoBlanks(J156:J653)","v":""}]
[null,null,null,null,null,null," ",null,null,null,null,null,null,null,null,null,null,null,null,null,null,null,null,null,null,null,null,{"$f":"NoBlanks(J157:J654)","v":""}]
[null,null,null,null,null,null," ",null,null,null,null,null,null,null,null,null,null,null,null,null,null,null,null,null,null,null,null,{"$f":"NoBlanks(J158:J655)","v":""}]
[null,null,null,null,null,null," ",null,null,null,null,null,null,null,null,null,null,null,null,null,null,null,null,null,null,null,null,{"$f":"NoBlanks(J159:J656)","v":""}]
[null,null,null,null,null,null," ",null,null,null,null,null,null,null,null,null,null,null,null,null,null,null,null,null,null,null,null,{"$f":"NoBlanks(J160:J657)","v":""}]
[null,null,null,null,null,null," ",null,null,null,null,null,null,null,null,null,null,null,null,null,null,null,null,null,null,null,null,{"$f":"NoBlanks(J161:J658)","v":""}]
[null,null,null,null,null,null," ",null,null,null,null,null,null,null,null,null,null,null,null,null,null,null,null,null,null,null,null,{"$f":"NoBlanks(J162:J659)","v":""}]
[null,null,null,null,null,null," ",null,null,null,null,null,null,null,null,null,null,null,null,null,null,null,null,null,null,null,null,{"$f":"NoBlanks(J163:J660)","v":""}]
[null,null,null,null,null,null," ",null,null,null,null,null,null,null,null,null,null,null,null,null,null,null,null,null,null,null,null,{"$f":"NoBlanks(J164:J661)","v":""}]
[null,null,null,null,null,null," ",null,null,null,null,null,null,null,null,null,null,null,null,null,null,null,null,null,null,null,null,{"$f":"NoBlanks(J165:J662)","v":""}]
[null,null,null,null,null,null," ",null,null,null,null,null,null,null,null,null,null,null,null,null,null,null,null,null,null,null,null,{"$f":"NoBlanks(J166:J663)","v":""}]
[null,null,null,null,null,null," ",null,null,null,null,null,null,null,null,null,null,null,null,null,null,null,null,null,null,null,null,{"$f":"NoBlanks(J167:J664)","v":""}]
[null,null,null,null,null,null," ",null,null,null,null,null,null,null,null,null,null,null,null,null,null,null,null,null,null,null,null,{"$f":"NoBlanks(J168:J665)","v":""}]
[null,null,null,null,null,null," ",null,null,null,null,null,null,null,null,null,null,null,null,null,null,null,null,null,null,null,null,{"$f":"NoBlanks(J169:J666)","v":""}]
[null,null,null,null,null,null," ",null,null,null,null,null,null,null,null,null,null,null,null,null,null,null,null,null,null,null,null,{"$f":"NoBlanks(J170:J667)","v":""}]
[null,null,null,null,null,null," ",null,null,null,null,null,null,null,null,null,null,null,null,null,null,null,null,null,null,null,null,{"$f":"NoBlanks(J171:J668)","v":""}]
[null,null,null,null,null,null," ",null,null,null,null,null,null,null,null,null,null,null,null,null,null,null,null,null,null,null,null,{"$f":"NoBlanks(J172:J669)","v":""}]
[null,null,null,null,null,null," ",null,null,null,null,null,null,null,null,null,null,null,null,null,null,null,null,null,null,null,null,{"$f":"NoBlanks(J173:J670)","v":""}]
[null,null,null,null,null,null," ",null,null,null,null,null,null,null,null,null,null,null,null,null,null,null,null,null,null,null,null,{"$f":"NoBlanks(J174:J671)","v":""}]
[null,null,null,null,null,null," ",null,null,null,null,null,null,null,null,null,null,null,null,null,null,null,null,null,null,null,null,{"$f":"NoBlanks(J175:J672)","v":""}]
[null,null,null,null,null,null," ",null,null,null,null,null,null,null,null,null,null,null,null,null,null,null,null,null,null,null,null,{"$f":"NoBlanks(J176:J673)","v":""}]
[null,null,null,null,null,null," ",null,null,null,null,null,null,null,null,null,null,null,null,null,null,null,null,null,null,null,null,{"$f":"NoBlanks(J177:J674)","v":""}]
[null,null,null,null,null,null," ",null,null,null,null,null,null,null,null,null,null,null,null,null,null,null,null,null,null,null,null,{"$f":"NoBlanks(J178:J675)","v":""}]
[null,null,null,null,null,null," ",null,null,null,null,null,null,null,null,null,null,null,null,null,null,null,null,null,null,null,null,{"$f":"NoBlanks(J179:J676)","v":""}]
[null,null,null,null,null,null," ",null,null,null,null,null,null,null,null,null,null,null,null,null,null,null,null,null,null,null,null,{"$f":"NoBlanks(J180:J677)","v":""}]
[null,null,null,null,null,null," ",null,null,null,null,null,null,null,null,null,null,null,null,null,null,null,null,null,null,null,null,{"$f":"NoBlanks(J181:J678)","v":""}]
[null,null,null,null,null,null," ",null,null,null,null,null,null,null,null,null,null,null,null,null,null,null,null,null,null,null,null,{"$f":"NoBlanks(J182:J679)","v":""}]
[null,null,null,null,null,null," ",null,null,null,null,null,null,null,null,null,null,null,null,null,null,null,null,null,null,null,null,{"$f":"NoBlanks(J183:J680)","v":""}]
[null,null,null,null,null,null," ",null,null,null,null,null,null,null,null,null,null,null,null,null,null,null,null,null,null,null,null,{"$f":"NoBlanks(J184:J681)","v":""}]
[null,null,null,null,null,null," ",null,null,null,null,null,null,null,null,null,null,null,null,null,null,null,null,null,null,null,null,{"$f":"NoBlanks(J185:J682)","v":""}]
[null,null,null,null,null,null," ",null,null,null,null,null,null,null,null,null,null,null,null,null,null,null,null,null,null,null,null,{"$f":"NoBlanks(J186:J683)","v":""}]
[null,null,null,null,null,null," ",null,null,null,null,null,null,null,null,null,null,null,null,null,null,null,null,null,null,null,null,{"$f":"NoBlanks(J187:J684)","v":""}]
[null,null,null,null,null,null," ",null,null,null,null,null,null,null,null,null,null,null,null,null,null,null,null,null,null,null,null,{"$f":"NoBlanks(J188:J685)","v":""}]
[null,null,null,null,null,null," ",null,null,null,null,null,null,null,null,null,null,null,null,null,null,null,null,null,null,null,null,{"$f":"NoBlanks(J189:J686)","v":""}]
[null,null,null,null,null,null," ",null,null,null,null,null,null,null,null,null,null,null,null,null,null,null,null,null,null,null,null,{"$f":"NoBlanks(J190:J687)","v":""}]
[null,null,null,null,null,null," ",null,null,null,null,null,null,null,null,null,null,null,null,null,null,null,null,null,null,null,null,{"$f":"NoBlanks(J191:J688)","v":""}]
[null,null,null,null,null,null," ",null,null,null,null,null,null,null,null,null,null,null,null,null,null,null,null,null,null,null,null,{"$f":"NoBlanks(J192:J689)","v":""}]
[null,null,null,null,null,null," ",null,null,null,null,null,null,null,null,null,null,null,null,null,null,null,null,null,null,null,null,{"$f":"NoBlanks(J193:J690)","v":""}]
[null,null,null,null,null,null," ",null,null,null,null,null,null,null,null,null,null,null,null,null,null,null,null,null,null,null,null,{"$f":"NoBlanks(J194:J691)","v":""}]
[null,null,null,null,null,null," ",null,null,null,null,null,null,null,null,null,null,null,null,null,null,null,null,null,null,null,null,{"$f":"NoBlanks(J195:J692)","v":""}]
[null,null,null,null,null,null," ",null,null,null,null,null,null,null,null,null,null,null,null,null,null,null,null,null,null,null,null,{"$f":"NoBlanks(J196:J693)","v":""}]
[null,null,null,null,null,null," ",null,null,null,null,null,null,null,null,null,null,null,null,null,null,null,null,null,null,null,null,{"$f":"NoBlanks(J197:J694)","v":""}]
[null,null,null,null,null,null," "]
[null,null,null,null,null,null," "]
[null,null,null,null,null,null," "]
[null,null,null,null,null,null," "]
[null,null,null,null,null,null," "]
[null,null,null,null,null,null," "]
[null,null,null,null,null,null," "]
[null,null,null,null,null,null," "]
[null,null,null,null,null,null," "]
[null,null,null,null,null,null," "]
[null,null,null,null,null,null," "]
[null,null,null,null,null,null," "]
[null,null,null,null,null,null," "]
[null,null,null,null,null,null," "]
[null,null,null,null,null,null," "]
[null,null,null,null,null,null," "]
[null,null,null,null,null,null," "]
[null,null,null,null,null,null," "]
[null,null,null,null,null,null," "]
[null,null,null,null,null,null," "]
[null,null,null,null,null,null," "]
[null,null,null,null,null,null," "]
[null,null,null,null,null,null," "]
[null,null,null,null,null,null," "]
[null,null,null,null,null,null," "]
[null,null,null,null,null,null," "]
[null,null,null,null,null,null," "]
[null,null,null,null,null,null," "]
[null,null,null,null,null,null," "]
[null,null,null,null,null,null," "]
[null,null,null,null,null,null," "]
[null,null,null,null,null,null," "]
[null,null,null,null,null,null," "]
[null,null,null,null,null,null," "]
[null,null,null,null,null,null," "]
[null,null,null,null,null,null," "]
[null,null,null,null,null,null," "]
[null,null,null,null,null,null," "]
[null,null,null,null,null,null," "]
[null,null,null,null,null,null," "]
[null,null,null,null,null,null," "]
[null,null,null,null,null,null," "]
[null,null,null,null,null,null," "]
[null,null,null,null,null,null," "]
[null,null,null,null,null,null," "]
[null,null,null,null,null,null," "]
[null,null,null,null,null,null," "]
[null,null,null,null,null,null," "]
[null,null,null,null,null,null," "]
[null,null,null,null,null,null," "]
[null,null,null,null,null,null," "]
[null,null,null,null,null,null," "]
[null,null,null,null,null,null," "]
[null,null,null,null,null,null," "]
[null,null,null,null,null,null," "]
[null,null,null,null,null,null," "]
[null,null,null,null,null,null," "]
[null,null,null,null,null,null," "]
[null,null,null,null,null,null," "]
[null,null,null,null,null,null," "]
[null,null,null,null,null,null," "]
[null,null,null,null,null,null," "]
[null,null,null,null,null,null," "]
[null,null,null,null,null,null," "]
[null,null,null,null,null,null," "]
[null,null,null,null,null,null," "]
[null,null,null,null,null,null," "]
[null,null,null,null,null,null," "]
[null,null,null,null,null,null," "]
[null,null,null,null,null,null," "]
[null,null,null,null,null,null," "]
[null,null,null,null,null,null," "]
[null,null,null,null,null,null," "]
[null,null,null,null,null,null," "]
[null,null,null,null,null,null," "]
[null,null,null,null,null,null," "]
[null,null,null,null,null,null," "]
[null,null,null,null,null,null," "]
[null,null,null,null,null,null," "]
[null,null,null,null,null,null," "]
[null,null,null,null,null,null," "]
[null,null,null,null,null,null," "]
[null,null,null,null,null,null," "]
[null,null,null,null,null,null," "]
[null,null,null,null,null,null," "]
[null,null,null,null,null,null," "]
[null,null,null,null,null,null," "]
[null,null,null,null,null,null," "]
[null,null,null,null,null,null," "]
[null,null,null,null,null,null," "]
[null,null,null,null,null,null," "]
[null,null,null,null,null,null," "]
[null,null,null,null,null,null," "]
[null,null,null,null,null,null," "]
[null,null,null,null,null,null," "]
[null,null,null,null,null,null," "]
[null,null,null,null,null,null," "]
[null,null,null,null,null,null," "]
[null,null,null,null,null,null," "]
[null,null,null,null,null,null," "]
[null,null,null,null,null,null," "]
[null,null,null,null,null,null," "]
[null,null,null,null,null,null," "]
[null,null,null,null,null,null," "]
[null,null,null,null,null,null," "]
[null,null,null,null,null,null," "]
[null,null,null,null,null,null," "]
[null,null,null,null,null,null," "]
[null,null,null,null,null,null," "]
[null,null,null,null,null,null," "]
[null,null,null,null,null,null," "]
[null,null,null,null,null,null," "]
[null,null,null,null,null,null," "]
[null,null,null,null,null,null," "]
[null,null,null,null,null,null," "]
[null,null,null,null,null,null," "]
[null,null,null,null,null,null," "]
[null,null,null,null,null,null," "]
[null,null,null,null,null,null," "]
[null,null,null,null,null,null," "]
[null,null,null,null,null,null," "]
[null,null,null,null,null,null," "]
[null,null,null,null,null,null," "]
[null,null,null,null,null,null," "]
[null,null,null,null,null,null," "]
[null,null,null,null,null,null," "]
[null,null,null,null,null,null," "]
[null,null,null,null,null,null," "]
[null,null,null,null,null,null," "]
[null,null,null,null,null,null," "]
[null,null,null,null,null,null," "]
[null,null,null,null,null,null," "]
[null,null,null,null,null,null," "]
[null,null,null,null,null,null," "]
[null,null,null,null,null,null," "]
[null,null,null,null,null,null," "]
[null,null,null,null,null,null," "]
[null,null,null,null,null,null," "]
[null,null,null,null,null,null," "]
[null,null,null,null,null,null," "]
[null,null,null,null,null,null," "]
[null,null,null,null,null,null," "]
[null,null,null,null,null,null," "]
[null,null,null,null,null,null," "]
[null,null,null,null,null,null," "]
[null,null,null,null,null,null," "]
[null,null,null,null,null,null," "]
[null,null,null,null,null,null," "]
[null,null,null,null,null,null," "]
[null,null,null,null,null,null," "]
[null,null,null,null,null,null," "]
[null,null,null,null,null,null," "]
[null,null,null,null,null,null," "]
[null,null,null,null,null,null," "]
[null,null,null,null,null,null," "]
[null,null,null,null,null,null," "]
[null,null,null,null,null,null," "]
[null,null,null,null,null,null," "]
[null,null,null,null,null,null," "]
[null,null,null,null,null,null," "]
[null,null,null,null,null,null," "]
[null,null,null,null,null,null," "]
[null,null,null,null,null,null," "]
[null,null,null,null,null,null," "]
[null,null,null,null,null,null," "]
[null,null,null,null,null,null," "]
[null,null,null,null,null,null," "]
[null,null,null,null,null,null," "]
[null,null,null,null,null,null," "]
[null,null,null,null,null,null," "]
[null,null,null,null,null,null," "]
[null,null,null,null,null,null," "]
[null,null,null,null,null,null," "]
[null,null,null,null,null,null," "]
[null,null,null,null,null,null," "]
[null,null,null,null,null,null," "]
[null,null,null,null,null,null," "]
[null,null,null,null,null,null," "]
[null,null,null,null,null,null," "]
[null,null,null,null,null,null," "]
[null,null,null,null,null,null," "]
[null,null,null,null,null,null," "]
[null,null,null,null,null,null," "]
[null,null,null,null,null,null," "]
[null,null,null,null,null,null," "]
[null,null,null,null,null,null," "]
[null,null,null,null,null,null," "]
[null,null,null,null,null,null," "]
[null,null,null,null,null,null," "]
[null,null,null,null,null,null," "]
[null,null,null,null,null,null," "]
[null,null,null,null,null,null," "]
[null,null,null,null,null,null," "]
[null,null,null,null,null,null," "]
[null,null,null,null,null,null," "]
[null,null,null,null,null,null," "]
[null,null,null,null,null,null," "]
[null,null,null,null,null,null," "]
[null,null,null,null,null,null," "]
[null,null,null,null,null,null," "]
[null,null,null,null,null,null," "]
[null,null,null,null,null,null," "]
[null,null,null,null,null,null," "]
[null,null,null,null,null,null," "]
[null,null,null,null,null,null," "]
[null,null,null,null,null,null," "]
[null,null,null,null,null,null," "]
[null,null,null,null,null,null," "]
[null,null,null,null,null,null," "]
[null,null,null,null,null,null," "]
[null,null,null,null,null,null," "]
[null,null,null,null,null,null," "]
[null,null,null,null,null,null," "]
[null,null,null,null,null,null," "]
[null,null,null,null,null,null," "]
[null,null,null,null,null,null," "]
[null,null,null,null,null,null," "]
[null,null,null,null,null,null," "]
[null,null,null,null,null,null," "]
[null,null,null,null,null,null," "]
[null,null,null,null,null,null," "]
[null,null,null,null,null,null," "]
[null,null,null,null,null,null," "]
[null,null,null,null,null,null," "]
[null,null,null,null,null,null," "]
[null,null,null,null,null,null," "]
[null,null,null,null,null,null," "]
[null,null,null,null,null,null," "]
[null,null,null,null,null,null," "]
[null,null,null,null,null,null," "]
[null,null,null,null,null,null," "]
[null,null,null,null,null,null," "]
[null,null,null,null,null,null," "]
[null,null,null,null,null,null," "]
[null,null,null,null,null,null," "]
[null,null,null,null,null,null," "]
[null,null,null,null,null,null," "]
[null,null,null,null,null,null," "]
[null,null,null,null,null,null," "]
[null,null,null,null,null,null," "]
[null,null,null,null,null,null," "]
[null,null,null,null,null,null," "]
[null,null,null,null,null,null," "]
[null,null,null,null,null,null," "]
[null,null,null,null,null,null," "]
[null,null,null,null,null,null," "]
[null,null,null,null,null,null," "]
[null,null,null,null,null,null," "]
[null,null,null,null,null,null," "]
[null,null,null,null,null,null," "]
[null,null,null,null,null,null," "]
[null,null,null,null,null,null," "]
[null,null,null,null,null,null," "]
[null,null,null,null,null,null," "]
[null,null,null,null,null,null," "]
[null,null,null,null,null,null," "]
[null,null,null,null,null,null," "]
[null,null,null,null,null,null," "]
[null,null,null,null,null,null," "]
[null,null,null,null,null,null," "]
[null,null,null,null,null,null," "]
[null,null,null,null,null,null," "]
[null,null,null,null,null,null," "]
[null,null,null,null,null,null," "]
[null,null,null,null,null,null," "]
[null,null,null,null,null,null," "]
[null,null,null,null,null,null," "]
[null,null,null,null,null,null," "]
[null,null,null,null,null,null," "]
[null,null,null,null,null,null," "]
[null,null,null,null,null,null," "]
[null,null,null,null,null,null," "]
[null,null,null,null,null,null," "]
[null,null,null,null,null,null," "]
[null,null,null,null,null,null," "]
[null,null,null,null,null,null," "]
[null,null,null,null,null,null," "]
[null,null,null,null,null,null," "]
[null,null,null,null,null,null," "]
[null,null,null,null,null,null," "]
[null,null,null,null,null,null," "]
[null,null,null,null,null,null," "]
[null,null,null,null,null,null," "]
[null,null,null,null,null,null," "]
[null,null,null,null,null,null," "]
[null,null,null,null,null,null," "]
[null,null,null,null,null,null," "]
[null,null,null,null,null,null," "]
[null,null,null,null,null,null," "]
[null,null,null,null,null,null," "]
[null,null,null,null,null,null," "]
[null,null,null,null,null,null," "]
[null,null,null,null,null,null," "]
[null,null,null,null,null,null," "]
[null,null,null,null,null,null," "]

{"sheet":"Main of Month","index":1,"n_rows":452,"n_cols":179,"rows_kept":452,"cut":false,"hidden":false,"merged":[[1,30,1,31]]}
[null,null,null,{"$f":"EOMONTH(NOW(),0)","v":"2019-08-31"},null,null,null,null,null,null,null,null,null,null,null,"Main of Month","Main of Month",null,null,null,null,null,null,null,null,null,{"$f":"IF(ISERROR(INDEX($AB$3:$AB$70,MATCH(0,COUNTIF(#REF!,$AB$3:$AB$69),0))),\"\",INDEX($AB$3:$AB$69,MATCH(0,COUNTIF(#REF!,$AB$3:$AB$69),0)))","v":""},{"$f":"IF(AA1=\"\",\"\",COUNTIF(#REF!,AA1))","v":""},{"$f":"IF(AA1<>\"\",SUMPRODUCT(--($J$2:$J$69=AA1),$K$2:$K$69),\"\")","v":""}]
[null,"App. Date","Name","Surname","Pasaport No.","Date of birth",null,"Index","Sheet Name","No. of App.","Go To sheet","Total of Paid $","Total of Unpaid $",null,"Official time + work","Form","Form","Total amount","Total GT","Total TG.Gov",null,"Cost amount","Net profit",null,"Total amount of Month",null,"Route","Count","Total of Unpaid (Rout)",null,"Count of Sheets Color",null,null,"Official Activity"]
[null,"","","","","","",3,{"$f":"INDEX(SheetNames,H3)","v":"01-08-2019"},{"$f":"IF(I3=\"\",\"\",INDIRECT(\"'\"&$I3&\"'!$V10\"))","v":0},{"$f":"HYPERLINK(\"#'\"&I3&\"'!H3\",\"Go To Sheet\")","v":"Go To Sheet"},{"$f":"IF(I3=\"\",\"\",INDIRECT(\"'\"&$I3&\"'!$T7\"))","v":0},{"$f":"IF(I3=\"\",\"\",INDIRECT(\"'\"&$I3&\"'!$T10\"))","v":790},null,"hamza","2019-08-01","2019-07-31",{"$f":"IF(I2=\"\",\"\",INDIRECT(\"'\"&$I2&\"'!$T4\"))","v":{"$error":"#REF!"}},{"$f":"IF(I2=\"\",\"\",INDIRECT(\"'\"&$I2&\"'!$T13\"))","v":{"$error":"#REF!"}},{"$f":"IF(I2=\"\",\"\",INDIRECT(\"'\"&$I2&\"'!$T16\"))","v":{"$error":"#REF!"}},null,{"$f":"IF(I2=\"\",\"\",INDIRECT(\"'\"&$I2&\"'!$V14\"))","v":{"$error":"#REF!"}},{"$f":"IF(#REF!=\"\",\"\",INDIRECT(\"'\"&#REF!&\"'!$V4\"))","v":{"$error":"#REF!"}},null,{"$f":"SUM(R3:R70)","v":{"$error":"#REF!"}},"",null,null,null,"",0,null,{"$f":"Module5.WhatColor(AF3)","v":5},{"$f":"IF(AG3=1,\"other\",IF(AG3=4,\"official time + work\",IF(AG3=5,\"official time - work\",IF(AG3=3,\"official holiday\",\"\"))))","v":"official time - work"},null,null,null,null,null,null,null,null,null,null,null,null,null,null,null,null,null,null,null,null,null,null,null,null,null,null,"","","",null,null,null,null,null,null,null,null,null,null,null,null,null,null,null,null,null,null,null,null,null,null,null,null,null,null,null,null,null,null,null,null,null,null,null,null,null,null,null,null,null,null,null,null,null,null,null,null,null,null,null,null,null,null,null,null,null,null,null,null,null,null,null,null,null,null,null,null,null,null,null,null,null,null,null,null,null,null,null,null,null,null,null,null,null,null,null,null,null,null,null,null,null,null,null,null,null,null,null,null,null,null,null,null,null,null,null,null,null,null,null,null,null,"","",""]
[null,null,null,null,null,null,null,4,{"$f":"INDEX(SheetNames,H4)","v":"03-08-2019"},{"$f":"IF(I4=\"\",\"\",INDIRECT(\"'\"&$I4&\"'!$V10\"))","v":1},{"$f":"HYPERLINK(\"#'\"&I4&\"'!H3\",\"Go To Sheet\")","v":"Go To Sheet"},{"$f":"IF(I4=\"\",\"\",INDIRECT(\"'\"&$I4&\"'!$T7\"))","v":0},{"$f":"IF(I4=\"\",\"\",INDIRECT(\"'\"&$I4&\"'!$T10\"))","v":120},null,"salah","2019-08-03","2019-08-03",{"$f":"IF(I3=\"\",\"\",INDIRECT(\"'\"&$I3&\"'!$T4\"))","v":790},{"$f":"IF(I3=\"\",\"\",INDIRECT(\"'\"&$I3&\"'!$T13\"))","v":0},{"$f":"IF(I3=\"\",\"\",INDIRECT(\"'\"&$I3&\"'!$T16\"))","v":0},null,{"$f":"IF(I3=\"\",\"\",INDIRECT(\"'\"&$I3&\"'!$V14\"))","v":0},{"$f":"IF(I3=\"\",\"\",INDIRECT(\"'\"&$I3&\"'!$V4\"))","v":790},null,null,"",null,null,null,null,3,null,{"$f":"Module5.WhatColor(AF4)","v":4},{"$f":"IF(AG4=1,\"other\",IF(AG4=4,\"official time + work\",IF(AG4=5,\"official time - work\",IF(AG4=3,\"official holiday\",\"\"))))","v":"official time + work"},null,null,null,null,null,null,null,null,null,null,null,null,null,null,null,null,null,null,null,null,null,null,null,null,null,null,"","","",null,null,null,null,null,null,null,null,null,null,null,null,null,null,null,null,null,null,null,null,null,null,null,null,null,null,null,null,null,null,null,null,null,null,null,null,null,null,null,null,null,null,null,null,null,null,null,null,null,null,null,null,null,null,null,null,null,null,null,null,null,null,null,null,null,null,null,null,null,null,null,null,null,null,null,null,null,null,null,null,null,null,null,null,"","","",null,null,null,null,null,null,null,null,null,null,null,null,null,null,null,null,null,null,null,null,null,null,null,null,null,null,"","",""]
[null,"","","","","","",5,{"$f":"INDEX(SheetNames,H5)","v":"23-08-2019"},{"$f":"IF(I5=\"\",\"\",INDIRECT(\"'\"&$I5&\"'!$V10\"))","v":0},{"$f":"HYPERLINK(\"#'\"&I5&\"'!H3\",\"Go To Sheet\")","v":"Go To Sheet"},{"$f":"IF(I5=\"\",\"\",INDIRECT(\"'\"&$I5&\"'!$T7\"))","v":0},{"$f":"IF(I5=\"\",\"\",INDIRECT(\"'\"&$I5&\"'!$T10\"))","v":0},null,"ihab","2019-08-23",null,{"$f":"IF(I4=\"\",\"\",INDIRECT(\"'\"&$I4&\"'!$T4\"))","v":330},{"$f":"IF(I4=\"\",\"\",INDIRECT(\"'\"&$I4&\"'!$T13\"))","v":1725},{"$f":"IF(I4=\"\",\"\",INDIRECT(\"'\"&$I4&\"'!$T16\"))","v":0},null,{"$f":"IF(I4=\"\",\"\",INDIRECT(\"'\"&$I4&\"'!$V14\"))","v":1725},{"$f":"IF(I4=\"\",\"\",INDIRECT(\"'\"&$I4&\"'!$V4\"))","v":-1395},null,"Cost amount of Month","",null,null,null,null,0,null,3,"official holiday",null,null,null,null,null,null,null,null,null,null,null,null,null,null,null,null,null,null,null,null,null,null,null,null,null,null,"","","",null,null,null,null,null,null,null,null,null,null,null,null,null,null,null,null,null,null,null,null,null,null,null,null,null,null,null,null,null,null,null,null,null,null,null,null,null,null,null,null,null,null,null,null,null,null,null,null,null,null,null,null,null,null,null,null,null,null,null,null,null,null,null,null,null,null,null,null,null,null,null,null,null,null,null,null,null,null,null,null,null,null,null,null,"","","",null,null,null,null,null,null,null,null,null,null,null,null,null,null,null,null,null,null,null,null,null,null,null,null,null,null,"","",""]
[null,null,null,null,null,null,null,6,{"$f":"INDEX(SheetNames,H6)","v":"24-08-2019"},{"$f":"IF(I6=\"\",\"\",INDIRECT(\"'\"&$I6&\"'!$V10\"))","v":0},{"$f":"HYPERLINK(\"#'\"&I6&\"'!H3\",\"Go To Sheet\")","v":"Go To Sheet"},{"$f":"IF(I6=\"\",\"\",INDIRECT(\"'\"&$I6&\"'!$T7\"))","v":0},{"$f":"IF(I6=\"\",\"\",INDIRECT(\"'\"&$I6&\"'!$T10\"))","v":0},null,"","2019-08-24",null,{"$f":"IF(I5=\"\",\"\",INDIRECT(\"'\"&$I5&\"'!$T4\"))","v":0},{"$f":"IF(I5=\"\",\"\",INDIRECT(\"'\"&$I5&\"'!$T13\"))","v":0},{"$f":"IF(I5=\"\",\"\",INDIRECT(\"'\"&$I5&\"'!$T16\"))","v":0},null,{"$f":"IF(I5=\"\",\"\",INDIRECT(\"'\"&$I5&\"'!$V14\"))","v":0},{"$f":"IF(I5=\"\",\"\",INDIRECT(\"'\"&$I5&\"'!$V4\"))","v":0},null,{"$f":"SUM(V3:V70)","v":{"$error":"#REF!"}},"",null,null,null,null,0,null,1,"other",null,null,null,null,null,null,null,null,null,null,null,null,null,null,null,null,null,null,null,null,null,null,null,null,null,null,"","","",null,null,null,null,null,null,null,null,null,null,null,null,null,null,null,null,null,null,null,null,null,null,null,null,null,null,null,null,null,null,null,null,null,null,null,null,null,null,null,null,null,null,null,null,null,null,null,null,null,null,null,null,null,null,null,null,null,null,null,null,null,null,null,null,null,null,null,null,null,null,null,null,null,null,null,null,null,null,null,null,null,null,null,null,"","","",null,null,null,null,null,null,null,null,null,null,null,null,null,null,null,null,null,null,null,null,null,null,null,null,null,null,"","",""]
[null,"","","","","","",7,{"$error":"#REF!"},{"$f":"IF(I7=\"\",\"\",INDIRECT(\"'\"&$I7&\"'!$V10\"))","v":{"$error":"#REF!"}},{"$f":"HYPERLINK(\"#'\"&I7&\"'!H3\",\"Go To Sheet\")","v":{"$error":"#REF!"}},{"$f":"IF(I7=\"\",\"\",INDIRECT(\"'\"&$I7&\"'!$T7\"))","v":{"$error":"#REF!"}},{"$f":"IF(I7=\"\",\"\",INDIRECT(\"'\"&$I7&\"'!$T10\"))","v":{"$error":"#REF!"}},null,"","",null,{"$f":"IF(I6=\"\",\"\",INDIRECT(\"'\"&$I6&\"'!$T4\"))","v":0},{"$f":"IF(I6=\"\",\"\",INDIRECT(\"'\"&$I6&\"'!$T13\"))","v":0},{"$f":"IF(I6=\"\",\"\",INDIRECT(\"'\"&$I6&\"'!$T16\"))","v":0},null,{"$f":"IF(I6=\"\",\"\",INDIRECT(\"'\"&$I6&\"'!$V14\"))","v":0},{"$f":"IF(I6=\"\",\"\",INDIRECT(\"'\"&$I6&\"'!$V4\"))","v":0},null,null,"",null,null,null,null,null,null,null,null,null,null,null,null,null,null,null,null,null,null,null,null,null,null,null,null,null,null,null,null,null,null,null,null,null,null,"","","",null,null,null,null,null,null,null,null,null,null,null,null,null,null,null,null,null,null,null,null,null,null,null,null,null,null,"","","",null,null,null,null,null,null,null,null,null,null,null,null,null,null,null,null,null,null,null,null,null,null,null,null,null,null,"","","",null,null,null,null,null,null,null,null,null,null,null,null,null,null,null,null,null,null,null,null,null,null,null,null,null,null,"","","",null,null,null,null,null,null,null,null,null,null,null,null,null,null,null,null,null,null,null,null,null,null,null,null,null,null,"","",""]
[null,null,null,null,null,null,null,8,{"$error":"#REF!"},{"$error":"#REF!"},{"$error":"#REF!"},{"$error":"#REF!"},{"$error":"#REF!"},null,"","",null,{"$f":"IF(I7=\"\",\"\",INDIRECT(\"'\"&$I7&\"'!$T4\"))","v":{"$error":"#REF!"}},{"$f":"IF(I7=\"\",\"\",INDIRECT(\"'\"&$I7&\"'!$T13\"))","v":{"$error":"#REF!"}},{"$f":"IF(I7=\"\",\"\",INDIRECT(\"'\"&$I7&\"'!$T16\"))","v":{"$error":"#REF!"}},null,{"$f":"IF(I7=\"\",\"\",INDIRECT(\"'\"&$I7&\"'!$V14\"))","v":{"$error":"#REF!"}},{"$f":"IF(I7=\"\",\"\",INDIRECT(\"'\"&$I7&\"'!$V4\"))","v":{"$error":"#REF!"}},null,"Net Profit of Month","",null,null,null,null,null,null,null,null,null,null,null,null,null,null,null,null,null,null,null,null,null,null,null,null,null,null,null,null,null,null,null,null,null,null,"","","",null,null,null,null,null,null,null,null,null,null,null,null,null,null,null,null,null,null,null,null,null,null,null,null,null,null,"","","",null,null,null,null,null,null,null,null,null,null,null,null,null,null,null,null,null,null,null,null,null,null,null,null,null,null,"","","",null,null,null,null,null,null,null,null,null,null,null,null,null,null,null,null,null,null,null,null,null,null,null,null,null,null,"","","",null,null,null,null,null,null,null,null,null,null,null,null,null,null,null,null,null,null,null,null,null,null,null,null,null,null,"","",""]
[null,"","","","","","",9,{"$error":"#REF!"},{"$error":"#REF!"},{"$error":"#REF!"},{"$error":"#REF!"},{"$error":"#REF!"},null,"","",null,{"$error":"#REF!"},{"$error":"#REF!"},{"$error":"#REF!"},null,{"$error":"#REF!"},{"$error":"#REF!"},null,{"$f":"SUM(W3:W70)","v":{"$error":"#REF!"}},"",null,null,null,null,null,null,null,null,null,null,null,null,null,null,null,null,null,null,null,null,null,null,null,null,null,null,null,null,null,null,null,null,null,null,"","","",null,null,null,null,null,null,null,null,null,null,null,null,null,null,null,null,null,null,null,null,null,null,null,null,null,null,"","","",null,null,null,null,null,null,null,null,null,null,null,null,null,null,null,null,null,null,null,null,null,null,null,null,null,null,"","","",null,null,null,null,null,null,null,null,null,null,null,null,null,null,null,null,null,null,null,null,null,null,null,null,null,null,"","","",null,null,null,null,null,null,null,null,null,null,null,null,null,null,null,null,null,null,null,null,null,null,null,null,null,null,"","",""]
[null,null,null,null,null,null,null,10,{"$error":"#REF!"},{"$error":"#REF!"},{"$error":"#REF!"},{"$error":"#REF!"},{"$error":"#REF!"},null,"","","","","","","","","","",null,"",null,null,null,null,null,null,null,null,null,null,null,null,null,null,null,null,null,null,null,null,null,null,null,null,null,null,null,null,null,null,null,null,null,null,"","","",null,null,null,null,null,null,null,null,null,null,null,null,null,null,null,null,null,null,null,null,null,null,null,null,null,null,"","","",null,null,null,null,null,null,null,null,null,null,null,null,null,null,null,null,null,null,null,null,null,null,null,null,null,null,"","","",null,null,null,null,null,null,null,null,null,null,null,null,null,null,null,null,null,null,null,null,null,null,null,null,null,null,"","","",null,null,null,null,null,null,null,null,null,null,null,null,null,null,null,null,null,null,null,null,null,null,null,null,null,null,"","",""]
[null,"","","","","","",11,{"$error":"#REF!"},{"$error":"#REF!"},{"$error":"#REF!"},{"$error":"#REF!"},{"$error":"#REF!"},null,"","","","","","","","","","","Total amount of (Rout)","",null,null,null,null,null,null,null,null,null,null,null,null,null,null,null,null,null,null,null,null,null,null,null,null,null,null,null,null,null,null,null,null,null,null,"","","",null,null,null,null,null,null,null,null,null,null,null,null,null,null,null,null,null,null,null,null,null,null,null,null,null,null,"","","",null,null,null,null,null,null,null,null,null,null,null,null,null,null,null,null,null,null,null,null,null,null,null,null,null,null,"","","",null,null,null,null,null,null,null,null,null,null,null,null,null,null,null,null,null,null,null,null,null,null,null,null,null,null,"","","",null,null,null,null,null,null,null,null,null,null,null,null,null,null,null,null,null,null,null,null,null,null,null,null,null,null,"","",""]
[null,null,null,null,null,null,null,12,{"$error":"#REF!"},{"$error":"#REF!"},{"$error":"#REF!"},{"$error":"#REF!"},{"$error":"#REF!"},null,"","","Route","","","","","","","",{"$f":"SUM(AB2:AB16)","v":0},"",null,null,null,null,null,null,null,null,null,null,null,null,null,null,null,null,null,null,null,null,null,null,null,null,null,null,null,null,null,null,null,null,null,null,"","","",null,null,null,null,null,null,null,null,null,null,null,null,null,null,null,null,null,null,null,null,null,null,null,null,null,null,"","","",null,null,null,null,null,null,null,null,null,null,null,null,null,null,null,null,null,null,null,null,null,null,null,null,null,null,"","","",null,null,null,null,null,null,null,null,null,null,null,null,null,null,null,null,null,null,null,null,null,null,null,null,null,null,"","","",null,null,null,null,null,null,null,null,null,null,null,null,null,null,null,null,null,null,null,null,null,null,null,null,null,null,"","",""]
[null,null,null,null,null,null,null,13,{"$error":"#REF!"},{"$error":"#REF!"},{"$error":"#REF!"},{"$error":"#REF!"},{"$error":"#REF!"},null,"","","","","","","","","","","","",null,null,null,null,null,null,null,null,null,null,null,null,null,null,null,null,null,null,null,null,null,null,null,null,null,null,null,null,null,null,null,null,null,null,"","","",null,null,null,null,null,null,null,null,null,null,null,null,null,null,null,null,null,null,null,null,null,null,null,null,null,null,"","","",null,null,null,null,null,null,null,null,null,null,null,null,null,null,null,null,null,null,null,null,null,null,null,null,null,null,"","","",null,null,null,null,null,null,null,null,null,null,null,null,null,null,null,null,null,null,null,null,null,null,null,null,null,null,"","","",null,null,null,null,null,null,null,null,null,null,null,null,null,null,null,null,null,null,null,null,null,null,null,null,null,null,"","",""]
[null,null,null,null,null,null,null,14,{"$error":"#REF!"},{"$error":"#REF!"},{"$error":"#REF!"},{"$error":"#REF!"},{"$error":"#REF!"},null,"","",null,{"$error":"#REF!"},{"$error":"#REF!"},{"$error":"#REF!"},null,{"$error":"#REF!"},{"$error":"#REF!"},null,"","",null,null,null,null,null,null,null,null,null,null,null,null,null,null,null,null,null,null,null,null,null,null,null,null,null,null,null,null,null,null,null,null,null,null,"","","",null,null,null,null,null,null,null,null,null,null,null,null,null,null,null,null,null,null,null,null,null,null,null,null,null,null,"","","",null,null,null,null,null,null,null,null,null,null,null,null,null,null,null,null,null,null,null,null,null,null,null,null,null,null,"","","",null,null,null,null,null,null,null,null,null,null,null,null,null,null,null,null,null,null,null,null,null,null,null,null,null,null,"","","",null,null,null,null,null,null,null,null,null,null,null,null,null,null,null,null,null,null,null,null,null,null,null,null,null,null,"","",""]
[null,null,null,null,null,null,null,15,{"$error":"#REF!"},{"$error":"#REF!"},{"$error":"#REF!"},{"$error":"#REF!"},{"$error":"#REF!"},null,"","",null,{"$error":"#REF!"},{"$error":"#REF!"},{"$error":"#REF!"},null,{"$error":"#REF!"},{"$error":"#REF!"},null,"","",null,null,null,null,null,null,null,null,null,null,null,null,null,null,null,null,null,null,null,null,null,null,null,null,null,null,null,null,null,null,null,null,null,null,"","","",null,null,null,null,null,null,null,null,null,null,null,null,null,null,null,null,null,null,null,null,null,null,null,null,null,null,"","","",null,null,null,null,null,null,null,null,null,null,null,null,null,null,null,null,null,null,null,null,null,null,null,null,null,null,"","","",null,null,null,null,null,null,null,null,null,null,null,null,null,null,null,null,null,null,null,null,null,null,null,null,null,null,"","","",null,null,null,null,null,null,null,null,null,null,null,null,null,null,null,null,null,null,null,null,null,null,null,null,null,null,"","",""]
[null,null,null,null,null,null,null,16,{"$error":"#REF!"},{"$error":"#REF!"},{"$error":"#REF!"},{"$error":"#REF!"},{"$error":"#REF!"},null,null,"",null,{"$error":"#REF!"},{"$error":"#REF!"},{"$error":"#REF!"},null,{"$error":"#REF!"},{"$error":"#REF!"},null,null,null,null,null,null,null,null,null,null,null,null,null,null,null,null,null,null,null,null,null,null,null,null,null,null,null,null,null,null,null,null,null,null,null,null,null,"","","",null,null,null,null,null,null,null,null,null,null,null,null,null,null,null,null,null,null,null,null,null,null,null,null,null,null,"","","",null,null,null,null,null,null,null,null,null,null,null,null,null,null,null,null,null,null,null,null,null,null,null,null,null,null,"","","",null,null,null,null,null,null,null,null,null,null,null,null,null,null,null,null,null,null,null,null,null,null,null,null,null,null,"","","",null,null,null,null,null,null,null,null,null,null,null,null,null,null,null,null,null,null,null,null,null,null,null,null,null,null,"","",""]
[null,null,null,null,null,null,null,17,{"$error":"#REF!"},{"$error":"#REF!"},{"$error":"#REF!"},{"$error":"#REF!"},{"$error":"#REF!"},null,"Route","",null,{"$error":"#REF!"},{"$error":"#REF!"},{"$error":"#REF!"},null,{"$error":"#REF!"},{"$error":"#REF!"},null,null,null,null,null,null,null,null,null,null,null,null,null,null,null,null,null,null,null,null,null,null,null,null,null,null,null,null,null,null,null,null,null,null,null,null,null,"","","",null,null,null,null,null,null,null,null,null,null,null,null,null,null,null,null,null,null,null,null,null,null,null,null,null,null,"","","",null,null,null,null,null,null,null,null,null,null,null,null,null,null,null,null,null,null,null,null,null,null,null,null,null,null,"","","",null,null,null,null,null,null,null,null,null,null,null,null,null,null,null,null,null,null,null,null,null,null,null,null,null,null,"","","",null,null,null,null,null,null,null,null,null,null,null,null,null,null,null,null,null,null,null,null,null,null,null,null,null,null,"","",""]
[null,null,null,null,null,null,null,18,{"$error":"#REF!"},{"$error":"#REF!"},{"$error":"#REF!"},{"$error":"#REF!"},{"$error":"#REF!"},null,"","",null,{"$error":"#REF!"},{"$error":"#REF!"},{"$error":"#REF!"},null,{"$error":"#REF!"},{"$error":"#REF!"},null,null,null,null,null,null,null,null,null,null,null,null,null,null,null,null,null,null,null,null,null,null,null,null,null,null,null,null,null,null,null,null,null,null,null,null,null,"","","",null,null,null,null,null,null,null,null,null,null,null,null,null,null,null,null,null,null,null,null,null,null,null,null,null,null,"","","",null,null,null,null,null,null,null,null,null,null,null,null,null,null,null,null,null,null,null,null,null,null,null,null,null,null,"","","",null,null,null,null,null,null,null,null,null,null,null,null,null,null,null,null,null,null,null,null,null,null,null,null,null,null,"","","",null,null,null,null,null,null,null,null,null,null,null,null,null,null,null,null,null,null,null,null,null,null,null,null,null,null,"","",""]
[null,null,null,null,null,null," ",19,{"$error":"#REF!"},{"$error":"#REF!"},{"$error":"#REF!"},{"$error":"#REF!"},{"$error":"#REF!"},null,"","",null,{"$error":"#REF!"},{"$error":"#REF!"},{"$error":"#REF!"},null,{"$error":"#REF!"},{"$error":"#REF!"},null,null,null,null,null,null,null,null,null,null,null,null,null,null,null,null,null,null,null,null,null,null,null,null,null,null,null,null,null,null,null,null,null,null,null,null,null,"","","",null,null,null,null,null,null,null,null,null,null,null,null,null,null,null,null,null,null,null,null,null,null,null,null,null,null,"","","",null,null,null,null,null,null,null,null,null,null,null,null,null,null,null,null,null,null,null,null,null,null,null,null,null,null,"","","",null,null,null,null,null,null,null,null,null,null,null,null,null,null,null,null,null,null,null,null,null,null,null,null,null,null,"","","",null,null,null,null,null,null,null,null,null,null,null,null,null,null,null,null,null,null,null,null,null,null,null,null,null,null,"","",""]
[null,null,null,null,null,null," ",20,{"$error":"#REF!"},{"$error":"#REF!"},{"$error":"#REF!"},{"$error":"#REF!"},{"$error":"#REF!"},null,"","",null,{"$error":"#REF!"},{"$error":"#REF!"},{"$error":"#REF!"},null,{"$error":"#REF!"},{"$error":"#REF!"},null,null,null,null,null,null,null,null,null,null,null,null,null,null,null,null,null,null,null,null,null,null,null,null,null,null,null,null,null,null,null,null,null,null,null,null,null,"","","",null,null,null,null,null,null,null,null,null,null,null,null,null,null,null,null,null,null,null,null,null,null,null,null,null,null,"","","",null,null,null,null,null,null,null,null,null,null,null,null,null,null,null,null,null,null,null,null,null,null,null,null,null,null,"","","",null,null,null,null,null,null,null,null,null,null,null,null,null,null,null,null,null,null,null,null,null,null,null,null,null,null,"","","",null,null,null,null,null,null,null,null,null,null,null,null,null,null,null,null,null,null,null,null,null,null,null,null,null,null,"","",""]
[null,null,null,null,null,null," ",21,{"$error":"#REF!"},{"$error":"#REF!"},{"$error":"#REF!"},{"$error":"#REF!"},{"$error":"#REF!"},null,"","",null,{"$error":"#REF!"},{"$error":"#REF!"},{"$error":"#REF!"},null,{"$error":"#REF!"},{"$error":"#REF!"},null,null,null,null,null,null,null,null,null,null,null,null,null,null,null,null,null,null,null,null,null,null,null,null,null,null,null,null,null,null,null,null,null,null,null,null,null,"","","",null,null,null,null,null,null,null,null,null,null,null,null,null,null,null,null,null,null,null,null,null,null,null,null,null,null,"","","",null,null,null,null,null,null,null,null,null,null,null,null,null,null,null,null,null,null,null,null,null,null,null,null,null,null,"","","",null,null,null,null,null,null,null,null,null,null,null,null,null,null,null,null,null,null,null,null,null,null,null,null,null,null,"","","",null,null,null,null,null,null,null,null,null,null,null,null,null,null,null,null,null,null,null,null,null,null,null,null,null,null,"","",""]
[null,null,null,null,null,null," ",22,{"$error":"#REF!"},{"$error":"#REF!"},{"$error":"#REF!"},{"$error":"#REF!"},{"$error":"#REF!"},null,"","",null,{"$error":"#REF!"},{"$error":"#REF!"},{"$error":"#REF!"},null,{"$error":"#REF!"},{"$error":"#REF!"}]
[null,null,null,null,null,null," ",23,{"$error":"#REF!"},{"$error":"#REF!"},{"$error":"#REF!"},{"$error":"#REF!"},{"$error":"#REF!"},null,"","",null,{"$error":"#REF!"},{"$error":"#REF!"},{"$error":"#REF!"},null,{"$error":"#REF!"},{"$error":"#REF!"}]
[null,null,null,null,null,null," ",24,{"$error":"#REF!"},{"$error":"#REF!"},{"$error":"#REF!"},{"$error":"#REF!"},{"$error":"#REF!"},null,"","",null,{"$error":"#REF!"},{"$error":"#REF!"},{"$error":"#REF!"},null,{"$error":"#REF!"},{"$error":"#REF!"}]
[null,null,null,null,null,null," ",25,{"$error":"#REF!"},{"$error":"#REF!"},{"$error":"#REF!"},{"$error":"#REF!"},{"$error":"#REF!"},null,"","",null,{"$error":"#REF!"},{"$error":"#REF!"},{"$error":"#REF!"},null,{"$error":"#REF!"},{"$error":"#REF!"}]
[null,null,null,null,null,null," ",26,{"$error":"#REF!"},{"$error":"#REF!"},{"$error":"#REF!"},{"$error":"#REF!"},{"$error":"#REF!"},null,"","",null,{"$error":"#REF!"},{"$error":"#REF!"},{"$error":"#REF!"},null,{"$error":"#REF!"},{"$error":"#REF!"}]
[null,null,null,null,null,null," ",27,{"$error":"#REF!"},{"$error":"#REF!"},{"$error":"#REF!"},{"$error":"#REF!"},{"$error":"#REF!"},null,"","",null,{"$error":"#REF!"},{"$error":"#REF!"},{"$error":"#REF!"},null,{"$error":"#REF!"},{"$error":"#REF!"}]
[null,null,null,null,null,null," ",28,{"$error":"#REF!"},{"$error":"#REF!"},{"$error":"#REF!"},{"$error":"#REF!"},{"$error":"#REF!"},null,null,null,null,{"$error":"#REF!"},{"$error":"#REF!"},{"$error":"#REF!"},null,{"$error":"#REF!"},{"$error":"#REF!"}]
[null,null,null,null,null,null," ",29,{"$error":"#REF!"},{"$error":"#REF!"},{"$error":"#REF!"},{"$error":"#REF!"},{"$error":"#REF!"},null,null,"00:00:00",null,{"$error":"#REF!"},{"$error":"#REF!"},{"$error":"#REF!"},null,{"$error":"#REF!"},{"$error":"#REF!"}]
[null,null,null,null,null,null," ",30,{"$error":"#REF!"},{"$error":"#REF!"},{"$error":"#REF!"},{"$error":"#REF!"},{"$error":"#REF!"},null,null,"00:00:00",null,{"$error":"#REF!"},{"$error":"#REF!"},{"$error":"#REF!"},null,{"$error":"#REF!"},{"$error":"#REF!"}]
[null,null,null,null,null,null," ",31,{"$error":"#REF!"},{"$error":"#REF!"},{"$error":"#REF!"},{"$error":"#REF!"},{"$error":"#REF!"},"","hamza","00:00:00","",{"$f":"IF(I30=\"\",\"\",INDIRECT(\"'\"&$I30&\"'!$T4\"))","v":{"$error":"#REF!"}},{"$f":"IF(I30=\"\",\"\",INDIRECT(\"'\"&$I30&\"'!$T13\"))","v":{"$error":"#REF!"}},{"$f":"IF(I30=\"\",\"\",INDIRECT(\"'\"&$I30&\"'!$T16\"))","v":{"$error":"#REF!"}},"",{"$f":"IF(I30=\"\",\"\",INDIRECT(\"'\"&$I30&\"'!$V14\"))","v":{"$error":"#REF!"}},{"$f":"IF(I30=\"\",\"\",INDIRECT(\"'\"&$I30&\"'!$V4\"))","v":{"$error":"#REF!"}},"",""]
[null,null,null,null,null,null," ",null,null,null,null,null,null,null,"abdo",0]
[null,null,null,null,null,null," ",null,null,null,null,null,null,null,"akram",""]
[null,null,null,null,null,null," ",null,null,null,null,null,null,null,"akram","00:00:00"]
[null,null,null,null,null,null," ",null,null,null,null,null,null,null,"abdo",""]
[null,null,null,null,null,null," ",null,null,null,null,null,null,null,"ihab",""]
[null,null,null,null,null,null," ",null,null,null,null,null,null,null,"ihab",""]
[null,null,null,null,null,null," ",null,null,null,null,null,null,null,"",""]
[null,null,null,null,null,null," ",null,null,null,null,null,null,null,"",""]
[null,null,null,null,null,null," ",null,null,null,null,null,null,null,"",""]
[null,null,null,null,null,null," ",null,null,null,null,null,"","","",""]
[null,null,null,null,null,null," ",null,null,null,null,null,"","",null,"00:00:00"]
[null,null,null,null,null,null," ",null,null,null,null,null,null,null,null,"00:00:00"]
[null,null,null,null,null,null," ",null,null,null,null,null,"","","salah",""]
[null,null,null,null,null,null," ",null,null,null,null,null,"","","salah",""]
[null,null,null,null,null,null," ",null,null,null,null,null,"","","ihab",""]
[null,null,null,null,null,null," ",null,null,null,null,null,"","","",""]
[null,null,null,null,null,null," ",null,null,null,null,null,"","","",""]
[null,null,null,null,null,null," ",null,null,null,null,null,"","","",""]
[null,null,null,null,null,null," ",null,null,null,null,null,"","","",""]
[null,null,null,null,null,null," ",null,null,null,null,null,"","","",""]
[null,null,null,null,null,null," ",null,null,null,null,null,"","","","",null,null,null,null,null,null,null,null,null,null,null,null,null,"","","","","","","","","",""]
[null,null,null,null,null,null," ",null,null,null,null,null,"","","","",null,null,null,null,null,null,null,null,null,null,null,null,null,"","","","","","","","","",""]
[null,null,null,null,null,null," ",null,null,null,null,null,"","","","",null,null,null,null,null,null,null,null,null,null,null,null,null,"","","","","","","","","",""]
[null,null,null,null,null,null," ",null,null,null,null,null,"","",null,""]
[null,null,null,null,null,null," ",null,null,null,null,null,null,null,null,""]
[null,null,null,null,null,null," ",null,null,null,null,null,null,null,"Route",""]
[null,null,null,null,null,null," ",null,null,null,null,null,null,null,"",""]
[null,null,null,null,null,null," ",null,null,null,null,null,null,null,"",""]
[null,null,null,null,null,null," ",null,null,null,null,null,null,null,"",""]
[null,null,null,null,null,null," ",null,null,null,null,null,null,null,"",""]
[null,null,null,null,null,null," ",null,null,null,null,null,null,null,"",""]
[null,null,null,null,null,null," ",null,null,null,null,null,null,null,"",""]
[null,null,null,null,null,null," ",null,null,null,null,null,null,null,"",""]
[null,null,null,null,null,null," ",null,null,null,null,null,null,null,"",""]
[null,null,null,null,null,null," ",null,null,null,null,null,null,null,"",""]
[null,null,null,null,null,null," ",null,null,null,null,null,null,null,"",""]
[null,null,null,null,null,null," ",null,null,null,null,null,null,null,"hamza","00:00:00"]
[null,null,null,null,null,null," ",null,null,null,null,null,null,null,"abdo","00:00:00"]
[null,null,null,null,null,null," ",null,null,null,null,null,null,null,"akram",""]
[null,null,null,null,null,null,null,null,null,null,null,null,null,null,"akram","00:00:00"]
[null,null,null,null,null,null,null,null,null,null,null,null,null,null,"abdo",""]
[null,null,null,null,null,null," "," ",null,null,null,null,null,null,"ihab",""]
[null,null,null,null,null,null," "," ",null,null,null,null,null,null,"ihab",""]
[null,null,null,null,null,null," "," ",null,null,null,null,null,null,"",""]
[null,null,null,null,null,null," "," ",null,null,null,null,null,null,"",""]
[null,null,null,null,null,null," "," ",null,null,null,null,null,null,"",""]
[null,null,null,null,null,null," "," ",null,null,null,null,null,null,null,0]
[null,null,null,null,null,null," "," ",null,null,null,null,null,null,null,0]
[null,null,null,null,null,null," "," ",null,null,null,null,"","","salah",""]
[null,null,null,null,null,null," "," ",null,null,null,null,"","","salah",""]
[null,null,null,null,null,null," "," ",null,null,null,null,"","","ihab",""]
[null,null,null,null,null,null," "," ",null,null,null,null,"","","",""]
[null,null,null,null,null,null," "," ",null,null,null,null,"","","",""]
[null,null,null,null,null,null," "," ",null,null,null,null,"","","",""]
[null,null,null,null,null,null," "," ",null,null,null,null,"","","",""]
[null,null,null,null,null,null," "," ",null,null,null,null,"","","",""]
[null,null,null,null,null,null," "," ",null,null,null,null,"","","",""]
[null,null,null,null,null,null," "," ",null,null,null,null,"","","",""]
[null,null,null,null,null,null," "," ",null,null,null,null,"","",null,""]
[null,null,null,null,null,null," "," ",null,null,null,null,"","",null,""]
[null,null,null,null,null,null," "," ",null,null,null,null,"","","Route",""]
[null,null,null,null,null,null," "," ",null,null,null,null,"","","",""]
[null,null,null,null,null,null," "," ",null,null,null,null,"","","",""]
[null,null,null,null,null,null," ",null,null,null,null,null,"","","",""]
[null,null,null,null,null,null," ",null,null,null,null,null,"","","",""]
[null,null,null,null,null,null," ",null,null,null,null,null,"","","",""]
[null,null,null,null,null,null," ",null,null,null,null,null,"","","",""]
[null,null,null,null,null,null," ",null,null,null,null,null,"","","",""]
[null,null,null,null,null,null," ",null,null,null,null,null,"","","",""]
[null,null,null,null,null,null," ",null,null,null,null,null,"","","",""]
[null,null,null,null,null,null,null,null,null,null,null,null,"","","",""]
[]
[]
[]
[]
[]
[]
[]
[]
[]
[]
[]
[]
[]
[]
[null,null,null,null,null,null,null,null,null,null,null,"","",null,""]
[null,null,null,null,null,null,null,null,null,null,null,"","",null,""]
[]
[]
[]
[]
[]
[]
[]
[]
[]
[]
[]
[]
[]
[]
[]
[]
[]
[]
[]
[]
[]
[]
[]
[]
[]
[]
[]
[]
[]
[]
[]
[]
[]
[]
[]
[]
[]
[]
[]
[]
[]
[]
[]
[]
[]
[]
[]
[]
[]
[]
[]
[]
[]
[]
[]
[]
[]
[]
[]
[]
[]
[]
[]
[]
[]
[]
[]
[]
[]
[]
[]
[]
[]
[]
[]
[]
[]
[]
[]
[]
[]
[]
[]
[]
[]
[]
[]
[]
[]
[]
[]
[]
[]
[]
[]
[]
[]
[]
[]
[]
[]
[]
[]
[]
[]
[]
[]
[]
[]
[]
[]
[]
[]
[]
[]
[]
[]
[]
[]
[]
[]
[]
[]
[]
[]
[]
[]
[]
[]
[]
[]
[]
[]
[]
[]
[]
[]
[]
[]
[]
[]
[]
[]
[]
[]
[]
[]
[]
[]
[]
[]
[]
[]
[]
[]
[]
[]
[]
[]
[]
[]
[]
[]
[]
[]
[]
[]
[]
[]
[]
[]
[]
[]
[]
[]
[]
[]
[null,null,null,null,null,null,null,null,null,null,null,""]
[null,null,null,null,null,null,null,null,null,null,null,""]
[null,null,null,null,null,null,null,null,null,null,null,""]
[null,null,null,null,null,null,null,null,null,null,null,""]
[]
[]
[]
[]
[]
[]
[]
[]
[]
[]
[]
[]
[]
[]
[]
[]
[]
[]
[]
[]
[null,null,null,null,null,null,null,null,null,null,null,""]
[null,null,null,null,null,null,null,null,null,null,null,""]
[null,null,null,null,null,null,null,null,null,null,null,""]
[null,null,null,null,null,null,null,null,null,null,null,""]
[]
[]
[]
[]
[]
[]
[]
[]
[]
[]
[]
[]
[]
[]
[]
[]
[]
[]
[]
[]
[]
[]
[]
[]
[]
[]
[]
[]
[null,null,null,null,null,null,null,null,null,null,null,""]
[null,null,null,null,null,null,null,null,null,null,null,""]
[null,null,null,null,null,null,null,null,null,null,null,""]
[null,null,null,null,null,null,null,null,null,null,null,""]
[null,null,null,null,null,null,null,null,null,null,null,"","","",""]
[null,null,null,null,null,null,null,null,null,null,null,"","","",""]
[null,null,null,null,null,null,null,null,null,null,null,"","","",""]
[]
[]
[]
[]
[]
[]
[]
[]
[null,null,null,null,null,null,null,null,null,null,null,"",null,null,""]
[null,null,null,null,null,null,null,null,null,null,null,null,null,null,0]
[null,null,null,null,null,null,null,null,null,null,null,"",null,null,""]
[null,null,null,null,null,null,null,null,null,null,null,"",null,null,""]
[null,null,null,null,null,null,null,null,null,null,null,"","","",""]
[null,null,null,null,null,null,null,null,null,null,null,"","","",""]
[null,null,null,null,null,null,null,null,null,null,null,"","","",""]
[null,null,null,null,null,null,null,null,null,null,null,"","","",""]
[null,null,null,null,null,null,null,null,null,null,null,"","","",""]
[null,null,null,null,null,null,null,null,null,null,null,"","","",""]
[null,null,null,null,null,null,null,null,null,null,null,"","","",""]
[null,null,null,null,null,null,null,null,null,null,null,null,null,null,0]
[null,null,null,null,null,null,null,null,null,null,null,null,null,null,0]
[null,null,null,null,null,null,null,null,null,null,null,null,null,null,0]
[null,null,null,null,null,null,null,null,null,null,null,null,null,null,0]
[null,null,null,null,null,null,null,null,null,null,null,null,null,null,""]
[null,null,null,null,null,null,null,null,null,null,null,null,null,null,0]
[null,null,null,null,null,null,null,null,null,null,null,null,null,null,""]
[null,null,null,null,null,null,null,null,null,null,null,null,null,null,""]
[null,null,null,null,null,null,null,null,null,null,null,null,null,null,""]
[null,null,null,null,null,null,null,null,null,null,null,null,null,null,""]
[null,null,null,null,null,null,null,null,null,null,null,null,null,null,""]
[null,null,null,null,null,null,null,null,null,null,null,null,null,null,""]
[null,null,null,null,null,null,null,null,null,null,null,null,null,null,0]
[null,null,null,null,null,null,null,null,null,null,null,null,null,null,0]
[null,null,null,null,null,null,null,null,null,null,null,null,null,null,""]
[null,null,null,null,null,null,null,null,null,null,null,null,null,null,""]
[null,null,null,null,null,null,null,null,null,null,null,null,null,null,""]
[null,null,null,null,null,null,null,null,null,null,null,"","","",""]
[null,null,null,null,null,null,null,null,null,null,null,"","","",""]
[null,null,null,null,null,null,null,null,null,null,null,"","","",""]
[null,null,null,null,null,null,null,null,null,null,null,"","","",""]
[null,null,null,null,null,null,null,null,null,null,null,"","","",""]
[null,null,null,null,null,null,null,null,null,null,null,"","","","","","","","","","","","",""]
[null,null,null,null,null,null,null,null,null,null,null,"","","","","","","","","","","","",""]
[null,null,null,null,null,null,null,null,null,null,null,null,null,null,null,null,"Route","","","","","","",""]
[null,null,null,null,null,null,null,null,null,null,null,null,"","","","","","","","","","","","",""]
[null,null,null,null,null,null,null,null,null,null,null,null,"","","","","","","","","","","","",""]
[null,null,null,null,null,null,null,null,null,null,null,null,null,null,"Route","","","","","","","","","",""]
[null,null,null,null,null,null,null,null,null,null,null,null,"","","","","","","","","","","","",""]
[]
[null,null,null,null,null,null,null,null,null,null,null,null,null,null,null,null,null,null,null,null,null,null,"",""]
[null,null,null,null,null,null,null,null,null,null,null,null,null,null,null,null,null,null,null,null,null,null,"",""]
[null,null,null,null,null,null,null,null,null,null,null,null,null,null,null,null,null,null,null,null,null,null,"",""]
[null,null,null,null,null,null,null,null,null,null,null,null,null,null,null,null,null,null,null,null,null,null,"",""]
[]
[null,null,null,null,null,null,null,null,null,null,null,null,null,null,null,null,null,null,null,null,null,null,"","",""]
[null,null,null,null,null,null,null,null,null,null,null,null,null,null,null,null,null,null,null,null,null,null,"","",""]
[null,null,null,null,null,null,null,null,null,null,null,null,null,null,null,null,null,null,null,null,null,null,"","",""]
[null,null,null,null,null,null,null,null,null,null,null,null,null,null,null,null,null,null,null,null,null,null,"","",""]
[]
[null,null,null,null,null,null,null,null,null,null,null,null,null,null,null,null,null,null,null,null,null,null,"","",""]
[null,null,null,null,null,null,null,null,null,null,null,null,null,null,null,null,null,null,null,null,null,null,"","",""]
[null,null,null,null,null,null,null,null,null,null,null,null,null,null,null,null,null,null,null,null,null,null,"","",""]
[null,null,null,null,null,null,null,null,null,null,null,null,null,null,null,null,null,null,null,null,null,null,"","",""]
[]
[null,null,null,null,null,null,null,null,null,null,null,null,null,null,null,null,null,null,null,null,null,null,"","",""]
[null,null,null,null,null,null,null,null,null,null,null,null,null,null,null,null,null,null,null,null,null,null,"","",""]
[null,null,null,null,null,null,null,null,null,null,null,null,null,null,null,null,null,null,null,null,null,null,"","",""]
[null,null,null,null,null,null,null,null,null,null,null,null,"","","","","","","","","","","","",""]
[]
[]
[]
[]
[]
[]
[]
[]
[]
[]
[]
[]
[]
[]
[]
[]
[]
[]
[]
[null,null,null,null,null,null,null,null,null,null,null,null,null,null,null,null,null,null,null,null,null,null,null,null,null,null,{"$f":"IF(ISERROR(INDEX($AB$3:$AB$70,MATCH(0,COUNTIF($X$3:AA445,$AB$3:$AB$69),0))),\"\",INDEX($AB$3:$AB$69,MATCH(0,COUNTIF($X$3:AA445,$AB$3:$AB$69),0)))","v":""},{"$f":"IF(AA446=\"\",\"\",COUNTIF(M444:M542,AA446))","v":""},{"$f":"IF(AA446<>\"\",SUMPRODUCT(--($J$2:$J$69=AA446),$K$2:$K$69),\"\")","v":""}]
[null,null,null,null,null,null,null,null,null,null,null,null,null,null,null,null,null,null,null,null,null,null,null,null,null,null,{"$f":"IF(ISERROR(INDEX($AB$3:$AB$70,MATCH(0,COUNTIF($X$3:AA446,$AB$3:$AB$69),0))),\"\",INDEX($AB$3:$AB$69,MATCH(0,COUNTIF($X$3:AA446,$AB$3:$AB$69),0)))","v":""},"",""]
[null,null,null,null,null,null,null,null,null,null,null,null,null,null,null,null,null,null,null,null,null,null,null,null,null,null,{"$f":"IF(ISERROR(INDEX($AB$3:$AB$70,MATCH(0,COUNTIF($X$3:AA447,$AB$3:$AB$69),0))),\"\",INDEX($AB$3:$AB$69,MATCH(0,COUNTIF($X$3:AA447,$AB$3:$AB$69),0)))","v":""},"",""]
[null,null,null,null,null,null,null,null,null,null,null,null,null,null,null,null,null,null,null,null,null,null,null,null,null,null,{"$f":"IF(ISERROR(INDEX($AB$3:$AB$70,MATCH(0,COUNTIF($X$3:AA448,$AB$3:$AB$69),0))),\"\",INDEX($AB$3:$AB$69,MATCH(0,COUNTIF($X$3:AA448,$AB$3:$AB$69),0)))","v":""},"",""]
[null,null,null,null,null,null,null,null,null,null,null,null,null,null,null,null,null,null,null,null,null,null,null,null,null,null,{"$f":"IF(ISERROR(INDEX($AB$3:$AB$70,MATCH(0,COUNTIF($X$3:AA449,$AB$3:$AB$69),0))),\"\",INDEX($AB$3:$AB$69,MATCH(0,COUNTIF($X$3:AA449,$AB$3:$AB$69),0)))","v":""},"",""]
[null,null,null,null,null,null,null,null,null,null,null,null,null,null,null,null,null,null,null,null,null,null,null,null,null,null,{"$f":"IF(ISERROR(INDEX($AB$3:$AB$70,MATCH(0,COUNTIF($X$3:AA450,$AB$3:$AB$69),0))),\"\",INDEX($AB$3:$AB$69,MATCH(0,COUNTIF($X$3:AA450,$AB$3:$AB$69),0)))","v":""},"",""]
[null,null,null,null,null,null,null,null,null,null,null,null,null,null,null,null,null,null,null,null,null,null,null,null,null,null,null,{"$f":"NoBlanks(AD454:AD947)","v":""},{"$f":"IFERROR(INDEX($J$2:$J$492,SMALL(IF($J$2:$J$492<>\"\",ROW($J$1:$J$492)-ROW($J$2)+1,\"\"),ROWS(AH$21:$AI452))),\"\")","v":""}]

{"sheet":"01-08-2019","index":2,"n_rows":494,"n_cols":31,"rows_kept":494,"cut":false,"hidden":false,"merged":[[1,19,1,21]]}
["Official time - work",null,null,null,null,null,null,null,null,null,null,null,null,null,null,"رجــــوع"]
["#","App. Date","Name","Surname","Pasaport No.","Date of birth","Note of status","Price $","Paid $","Route","Unpaid $","GT","Case of appl","TG.Gov",null,"رجــــوع","رجــــوع",null,null,"TOTAL"]
[null,null,null,null,null,null,null,100,{"$f":"IF(J3<>\"\",\"\",H3)","v":""},"hamza",{"$f":"IF(AND(I3=\"\",J3<>\"\"),H3,\"\")","v":100},{"$f":"IF(C3=\"\",\"\",25)","v":""},"Not extractor",{"$f":"IF(M3=\"Extractor\",62.5,0)","v":0},null,"رجــــوع",null,"DONE",null,"Total amount",null,"Net profit",null,"Route","Coun of Rout","Total Unpaid",null,{"$f":"NoBlanks(J3:J100)","v":"hamza"},null,"Note of status","Count of Mistake"]
[null,null,null,null,null,null,null,120,"","abdo",120,{"$f":"IF(C4=\"\",\"\",25)","v":""},null,{"$f":"IF(M4=\"Extractor\",62.5,0)","v":0},null,null,null,"CANCELLED",null,{"$f":"SUM(H3:H71)","v":790},null,{"$f":"T4-V14","v":790},null,{"$f":"IF(ISERROR(INDEX($AB$3:$AB$70,MATCH(0,COUNTIF($X$3:X3,$AB$3:$AB$69),0))),\"\",INDEX($AB$3:$AB$69,MATCH(0,COUNTIF($X$3:X3,$AB$3:$AB$69),0)))","v":"hamza"},{"$f":"IF(X4=\"\",\"\",COUNTIF(J2:J100,X4))","v":1},{"$f":"IF(X4<>\"\",SUMPRODUCT(--($J$2:$J$69=X4),$K$2:$K$69),\"\")","v":100},null,{"$f":"NoBlanks(J3:J500)","v":"hamza"},null,"DONE",{"$f":"COUNTIF(C1:C69,\"Done\")","v":0}]
[null,null,null,null,null,null,null,100,"","akram",100,"",null,0,null,null,null,"REFUSED",null,null,null,null,null,{"$f":"IF(ISERROR(INDEX($AB$3:$AB$70,MATCH(0,COUNTIF($X$3:X4,$AB$3:$AB$69),0))),\"\",INDEX($AB$3:$AB$69,MATCH(0,COUNTIF($X$3:X4,$AB$3:$AB$69),0)))","v":"abdo"},2,230,null,{"$f":"NoBlanks(J4:J501)","v":"abdo"},null,"CANCELLED",{"$f":"COUNTIF(C2:C70,\"Cancelled\")","v":0}]
[null,null,null,null,null,null,null,120,"","akram",120,"",null,0,null,null,null,"MISTAKE",null,"Total Paid",null,"Difrent amount",null,{"$f":"IF(ISERROR(INDEX($AB$3:$AB$70,MATCH(0,COUNTIF($X$3:X5,$AB$3:$AB$69),0))),\"\",INDEX($AB$3:$AB$69,MATCH(0,COUNTIF($X$3:X5,$AB$3:$AB$69),0)))","v":"akram"},2,220,null,{"$f":"NoBlanks(J5:J502)","v":"akram"},null,"REFUSED",{"$f":"COUNTIF(C3:C71,\"Refused\")","v":0}]
[null,null,null,null,null,null,null,110,"","abdo",110,"",null,0,null,null,null,"GREEN PASS.",null,{"$f":"SUM(I3:I71)","v":0},null,{"$f":"T4-(T7+T10)","v":0},null,{"$f":"IF(ISERROR(INDEX($AB$3:$AB$70,MATCH(0,COUNTIF($X$3:X6,$AB$3:$AB$69),0))),\"\",INDEX($AB$3:$AB$69,MATCH(0,COUNTIF($X$3:X6,$AB$3:$AB$69),0)))","v":"ihab"},{"$f":"IF(X7=\"\",\"\",COUNTIF(J5:J103,X7))","v":2},240,{"$f":"IF(K3=\"\",\"\",J3)","v":"hamza"},{"$f":"NoBlanks(J6:J503)","v":"akram"},null,"MISTAKE IN DOB",{"$f":"COUNTIF(C4:C72,\"Mistake\")","v":0}]
[null,null,null,null,null,null,null,120,"","ihab",120,"",null,0,null,null,null,null,null,null,null,null,null,{"$f":"IF(ISERROR(INDEX($AB$3:$AB$70,MATCH(0,COUNTIF($X$3:X7,$AB$3:$AB$69),0))),\"\",INDEX($AB$3:$AB$69,MATCH(0,COUNTIF($X$3:X7,$AB$3:$AB$69),0)))","v":""},{"$f":"IF(X8=\"\",\"\",COUNTIF(J6:J104,X8))","v":""},"","abdo",{"$f":"NoBlanks(J7:J504)","v":"abdo"},null,"GREEN PASS",{"$f":"COUNTIF(C5:C73,\"Green Pass.\")","v":0}]
[null,null,null,null,null,null,null,120,"","ihab",120,"",null,0,null,null,null,"official time",null,"Total UnPaid",null,"No. of applicants",null,{"$f":"IF(ISERROR(INDEX($AB$3:$AB$70,MATCH(0,COUNTIF($X$3:X8,$AB$3:$AB$69),0))),\"\",INDEX($AB$3:$AB$69,MATCH(0,COUNTIF($X$3:X8,$AB$3:$AB$69),0)))","v":""},"","","akram",{"$f":"NoBlanks(J8:J505)","v":"ihab"}]
[null,null,null,null,null,null,null,null,0,null,{"$f":"IF(AND(I10=\"\",J10<>\"\"),H10,\"\")","v":""},"",null,0,null,null,null,"official holiday",null,{"$f":"SUM(K3:K71)","v":790},null,{"$f":"COUNT(B:B)","v":0},null,{"$f":"IF(ISERROR(INDEX($AB$3:$AB$70,MATCH(0,COUNTIF($X$3:X9,$AB$3:$AB$69),0))),\"\",INDEX($AB$3:$AB$69,MATCH(0,COUNTIF($X$3:X9,$AB$3:$AB$69),0)))","v":""},"","","akram",{"$f":"NoBlanks(J9:J506)","v":"ihab"}]
[null,null,null,null,null,null,null,null,0,null,"","",null,0,null,null,null,"other",null,null,null,null,null,{"$f":"IF(ISERROR(INDEX($AB$3:$AB$70,MATCH(0,COUNTIF($X$3:X10,$AB$3:$AB$69),0))),\"\",INDEX($AB$3:$AB$69,MATCH(0,COUNTIF($X$3:X10,$AB$3:$AB$69),0)))","v":""},"","","abdo",{"$f":"NoBlanks(J10:J507)","v":""}]
[null,null,null,null,null,null,null,null,0,null,"","",null,0,null,null,null,null,null,"Total GT",null,null,null,{"$f":"IF(ISERROR(INDEX($AB$3:$AB$70,MATCH(0,COUNTIF($X$3:X11,$AB$3:$AB$69),0))),\"\",INDEX($AB$3:$AB$69,MATCH(0,COUNTIF($X$3:X11,$AB$3:$AB$69),0)))","v":""},"","","ihab",{"$f":"NoBlanks(J11:J508)","v":""}]
[null,null,null,null,null,null,null,null,0,null,"","",null,0,null,null,null,null,null,{"$f":"SUM(L3:L71)","v":0},null,"Cost amount",null,{"$f":"IF(ISERROR(INDEX($AB$3:$AB$70,MATCH(0,COUNTIF($X$3:X12,$AB$3:$AB$69),0))),\"\",INDEX($AB$3:$AB$69,MATCH(0,COUNTIF($X$3:X12,$AB$3:$AB$69),0)))","v":""},"","","ihab",{"$f":"NoBlanks(J12:J509)","v":""}]
[null,null,null,null,null,null,null,null,0,null,"","",null,0,null,null,null,null,null,null,null,{"$f":"IF(AND(T13<>\"\",T16<>\"\"),T13+T16,\"\")","v":0},null,{"$f":"IF(ISERROR(INDEX($AB$3:$AB$70,MATCH(0,COUNTIF($X$3:X13,$AB$3:$AB$69),0))),\"\",INDEX($AB$3:$AB$69,MATCH(0,COUNTIF($X$3:X13,$AB$3:$AB$69),0)))","v":""},"","","",{"$f":"NoBlanks(J13:J510)","v":""}]
[null,null,null,null,null,null,null,null,0,null,"","",null,0,null,null,null,null,null,"Total T.Gov",null,null,null,{"$f":"IF(ISERROR(INDEX($AB$3:$AB$70,MATCH(0,COUNTIF($X$3:X14,$AB$3:$AB$69),0))),\"\",INDEX($AB$3:$AB$69,MATCH(0,COUNTIF($X$3:X14,$AB$3:$AB$69),0)))","v":""},"","","",{"$f":"NoBlanks(J14:J511)","v":""}]
[null,null,null,null,null,null,null,null,0,null,"","",null,0,null,null,null,null,null,{"$f":"SUM(N3:N71)","v":0},null,null,null,{"$f":"IF(ISERROR(INDEX($AB$3:$AB$70,MATCH(0,COUNTIF($X$3:X15,$AB$3:$AB$69),0))),\"\",INDEX($AB$3:$AB$69,MATCH(0,COUNTIF($X$3:X15,$AB$3:$AB$69),0)))","v":""},"","","",{"$f":"NoBlanks(J15:J512)","v":""}]
[null,null,null,null,null,null,null," "," ",null,"","",null,0,null,null,null,null,null,null,null,null,null,{"$f":"IF(ISERROR(INDEX($AB$3:$AB$70,MATCH(0,COUNTIF($X$3:X16,$AB$3:$AB$69),0))),\"\",INDEX($AB$3:$AB$69,MATCH(0,COUNTIF($X$3:X16,$AB$3:$AB$69),0)))","v":""},"","","",{"$f":"NoBlanks(J16:J513)","v":""}]
[null,null,null,null,null,null,null," "," ",null,{"$f":"IF(AND(I18=\"\",J18<>\"\"),H18,\"\")","v":""},"",null,0,null,null,null,null,null,null,null,null,null,{"$f":"IF(ISERROR(INDEX($AB$3:$AB$70,MATCH(0,COUNTIF($X$3:X17,$AB$3:$AB$69),0))),\"\",INDEX($AB$3:$AB$69,MATCH(0,COUNTIF($X$3:X17,$AB$3:$AB$69),0)))","v":""},"","","",{"$f":"NoBlanks(J17:J514)","v":""}]
[null,null,null,null,null,null," "," "," ",null,{"$f":"IF(AND(I19=\"\",J19<>\"\"),H19,\"\")","v":""},"",null,0,null,null,null,null,null,null,null,null,null,{"$f":"IF(ISERROR(INDEX($AB$3:$AB$70,MATCH(0,COUNTIF($X$3:X18,$AB$3:$AB$69),0))),\"\",INDEX($AB$3:$AB$69,MATCH(0,COUNTIF($X$3:X18,$AB$3:$AB$69),0)))","v":""},"","","",{"$f":"NoBlanks(J18:J515)","v":""}]
[null,null,null,null,null,null," "," "," ",null,"","",null,0,null,null,null,null,null,null,null,null,null,{"$f":"IF(ISERROR(INDEX($AB$3:$AB$70,MATCH(0,COUNTIF($X$3:X19,$AB$3:$AB$69),0))),\"\",INDEX($AB$3:$AB$69,MATCH(0,COUNTIF($X$3:X19,$AB$3:$AB$69),0)))","v":""},"","","",{"$f":"NoBlanks(J19:J516)","v":""}]
[null,null,null,null,null,null," "," "," ",null,"","",null,0,null,null,null,null,null,null,null,null,null,{"$f":"IF(ISERROR(INDEX($AB$3:$AB$70,MATCH(0,COUNTIF($X$3:X20,$AB$3:$AB$69),0))),\"\",INDEX($AB$3:$AB$69,MATCH(0,COUNTIF($X$3:X20,$AB$3:$AB$69),0)))","v":""},"","","",{"$f":"NoBlanks(J20:J517)","v":""}]
[null,null,null,null,null,null," ",null,0,null,"","",null,0,null,null,null,null,null,null,null,null,null,{"$f":"IF(ISERROR(INDEX($AB$3:$AB$70,MATCH(0,COUNTIF($X$3:X21,$AB$3:$AB$69),0))),\"\",INDEX($AB$3:$AB$69,MATCH(0,COUNTIF($X$3:X21,$AB$3:$AB$69),0)))","v":""},"","","",{"$f":"NoBlanks(J21:J518)","v":""}]
[null,null,null,null,null,null," ",null,0,null,"","",null,0,null,null,null,null,null,null,null,null,null,null,{"$f":"NoBlanks(AA25:AA518)","v":""},{"$f":"IFERROR(INDEX($J$2:$J$492,SMALL(IF($J$2:$J$492<>\"\",ROW($J$1:$J$492)-ROW($J$2)+1,\"\"),ROWS(AD$21:$AH23))),\"\")","v":""},null,{"$f":"NoBlanks(J22:J519)","v":""}]
[null,null,null,null,null,null," ",null,0,null,"","",null,0,null,null,null,null,null,null,null,"Done",null,null,null,null,{"$f":"IF(K20=\"\",\"\",J20)","v":""},{"$f":"NoBlanks(J23:J520)","v":""}]
[null,null,null,null,null,null," ",null,0,null,"","",null,0,null,null,null,null,null,null,null,"Cancelled",null,null,null,null,"",{"$f":"NoBlanks(J24:J521)","v":""}]
[null,null,null,null,null,null," ",null,0,null,"","",null,0,null,null,null,null,null,null,null,"Refused",null,null,null,null,"",{"$f":"NoBlanks(J25:J522)","v":""}]
[null,null,null,null,null,null," ",null,0,null,"","",null,0,null,null,null,null,null,null,null,"Green pass.",null,null,null,null,"",{"$f":"NoBlanks(J26:J523)","v":""}]
[null,null,null,null,null,null," ",null,0,null,"","",null,0,null,null,null,null,null,null,null,"Mistake",null,null,null,null,"",{"$f":"NoBlanks(J27:J524)","v":""}]
[null,null,null,null,null,null," ",null,0,null,"","",null,0,null,null,null,null,null,null,null,null,null,null,null,null,"",{"$f":"NoBlanks(J28:J525)","v":""}]
[null,null,null,null,null,null," ",null,0,null,"","",null,0,null,null,null,null,null,null,null,null,null,null,null,null,"",{"$f":"NoBlanks(J29:J526)","v":""}]
[null,null,null,null,null,null," ",null,0,null,"","",null,0,null,null,null,null,null,null,null,null,null,null,null,null,"",{"$f":"NoBlanks(J30:J527)","v":""}]
[null,null,null,null,null,null," ",null,0,null,"","",null,0,null,null,null,null,null,null,null,null,null,null,null,null,"",{"$f":"NoBlanks(J31:J528)","v":""}]
[null,null,null,null,null,null," ",null,0,null,"","",null,0,null,null,null,null,null,null,null,null,null,null,null,null,"",{"$f":"NoBlanks(J32:J529)","v":""}]
[null,null,null,null,null,null," ",null,0,null,"","",null,0,null,null,null,null,null,null,null,null,null,null,null,null,"",{"$f":"NoBlanks(J33:J530)","v":""}]
[null,null,null,null,null,null," ",null,0,null,"","",null,0,null,null,null,null,null,null,null,null,null,null,null,null,"",{"$f":"NoBlanks(J34:J531)","v":""}]
[null,null,null,null,null,null," ",null,0,null,"","",null,0,null,null,null,null,null,null,null,null,null,null,null,null,"",{"$f":"NoBlanks(J35:J532)","v":""}]
[null,null,null,null,null,null," ",null,0,null,"","",null,0,null,null,null,null,null,null,null,null,null,null,null,null,"",{"$f":"NoBlanks(J36:J533)","v":""}]
[null,null,null,null,null,null," ",null,0,null,"","",null,0,null,null,null,null,null,null,null,null,null,null,null,null,"",{"$f":"NoBlanks(J37:J534)","v":""}]
[null,null,null,null,null,null," ",null,0,null,"","",null,0,null,null,null,null,null,null,null,null,null,null,null,null,"",{"$f":"NoBlanks(J38:J535)","v":""}]
[null,null,null,null,null,null," ",null,0,null,"","",null,0,null,null,null,null,null,null,null,null,null,null,null,null,"",{"$f":"NoBlanks(J39:J536)","v":""}]
[null,null,null,null,null,null," ",null,0,null,"","",null,0,null,null,null,null,null,null,null,null,null,null,null,null,"",{"$f":"NoBlanks(J40:J537)","v":""}]
[null,null,null,null,null,null," ",null,0,null,"","",null,0,null,null,null,null,null,null,null,null,null,null,null,null,"",{"$f":"NoBlanks(J41:J538)","v":""}]
[null,null,null,null,null,null," ",null,0,null,"","",null,0,null,null,null,null,null,null,null,null,null,null,null,null,"",{"$f":"NoBlanks(J42:J539)","v":""}]
[null,null,null,null,null,null," ",null,0,null,"","",null,0,null,null,null,null,null,null,null,null,null,null,null,null,"",{"$f":"NoBlanks(J43:J540)","v":""}]
[null,null,null,null,null,null," ",null,0,null,"","",null,0,null,null,null,null,null,null,null,null,null,null,null,null,"",{"$f":"NoBlanks(J44:J541)","v":""}]
[null,null,null,null,null,null," ",null,0,null,"","",null,0,null,null,null,null,null,null,null,null,null,null,null,null,"",{"$f":"NoBlanks(J45:J542)","v":""}]
[null,null,null,null,null,null," ",null,0,null,"","",null,0,null,null,null,null,null,null,null,null,null,null,null,null,"",{"$f":"NoBlanks(J46:J543)","v":""}]
[null,null,null,null,null,null," ",null,0,null,"","",null,0,null,null,null,null,null,null,null,null,null,null,null,null,"",{"$f":"NoBlanks(J47:J544)","v":""}]
[null,null,null,null,null,null," ",null,0,null,"","",null,0,null,null,null,null,null,null,null,null,null,null,null,null,"",{"$f":"NoBlanks(J48:J545)","v":""}]
[null,null,null,null,null,null," ",null,0,null,"","",null,0,null,null,null,null,null,null,null,null,null,null,null,null,"",{"$f":"NoBlanks(J49:J546)","v":""}]
[null,null,null,null,null,null," ",null,0,null,"","",null,0,null,null,null,null,null,null,null,null,null,null,null,null,"",{"$f":"NoBlanks(J50:J547)","v":""}]
[null,null,null,null,null,null," ",null,0,null,"","",null,0,null,null,null,null,null,null,null,null,null,null,null,null,"",{"$f":"NoBlanks(J51:J548)","v":""}]
[null,null,null,null,null,null," ",null,0,null,"","",null,0,null,null,null,null,null,null,null,null,null,null,null,null,"",{"$f":"NoBlanks(J52:J549)","v":""}]
[null,null,null,null,null,null," ",null,0,null,"","",null,0,null,null,null,null,null,null,null,null,null,null,null,null,"",{"$f":"NoBlanks(J53:J550)","v":""}]
[null,null,null,null,null,null," ",null,0,null,"","",null,0,null,null,null,null,null,null,null,null,null,null,null,null,"",{"$f":"NoBlanks(J54:J551)","v":""}]
[null,null,null,null,null,null," ",null,0,null,"","",null,0,null,null,null,null,null,null,null,null,null,null,null,null,{"$f":"IF(K52=\"\",\"\",J52)","v":""},{"$f":"NoBlanks(J55:J552)","v":""}]
[null,null,null,null,null,null," ",null,0,null,"","",null,0,null,null,null,null,null,null,null,null,null,null,null,null,"",{"$f":"NoBlanks(J56:J553)","v":""}]
[null,null,null,null,null,null," ",null,0,null,"","",null,0,null,null,null,null,null,null,null,null,null,null,null,null,"",{"$f":"NoBlanks(J57:J554)","v":""}]
[null,null,null,null,null,null," ",null,0,null,"","",null,0,null,null,null,null,null,null,null,null,null,null,null,null,"",{"$f":"NoBlanks(J58:J555)","v":""}]
[null,null,null,null,null,null," ",null,0,null,"","",null,0,null,null,null,null,null,null,null,null,null,null,null,null,"",{"$f":"NoBlanks(J59:J556)","v":""}]
[null,null,null,null,null,null," ",null,0,null,"","",null,0,null,null,null,null,null,null,null,null,null,null,null,null,"",{"$f":"NoBlanks(J60:J557)","v":""}]
[null,null,null,null,null,null," ",null,0,null,"","",null,0,null,null,null,null,null,null,null,null,null,null,null,null,"",{"$f":"NoBlanks(J61:J558)","v":""}]
[null,null,null,null,null,null," ",null,0,null,"","",null,0,null,null,null,null,null,null,null,null,null,null,null,null,"",{"$f":"NoBlanks(J62:J559)","v":""}]
[null,null,null,null,null,null," ",null,0,null,"","",null,0,null,null,null,null,null,null,null,null,null,null,null,null,"",{"$f":"NoBlanks(J63:J560)","v":""}]
[null,null,null,null,null,null," ",null,0,null,{"$f":"IF(AND(I65=\"\",J65<>\"\"),H65,\"\")","v":""},"",null,0,null,null,null,null,null,null,null,null,null,null,null,null,"",{"$f":"NoBlanks(J64:J561)","v":""}]
[null,null,null,null,null,null," ",null,0,null,{"$f":"IF(AND(I66=\"\",J66<>\"\"),H66,\"\")","v":""},"",null,0,null,null,null,null,null,null,null,null,null,null,null,null,"",{"$f":"NoBlanks(J65:J562)","v":""}]
[null,null,null,null,null,null," ",null,{"$f":"IF(J67<>\"\",\"\",H67)","v":0},null,"","",null,0,null,null,null,null,null,null,null,null,null,null,null,null,"",{"$f":"NoBlanks(J66:J563)","v":""}]
[null,null,null,null,null,null," ",null,0,null,"",{"$f":"IF(C68=\"\",\"\",25)","v":""},null,{"$f":"IF(M68=\"Extractor\",62.5,0)","v":0},null,null,null,null,null,null,null,null,null,null,null,null,"",{"$f":"NoBlanks(J67:J564)","v":""}]
[null,null,null,null,null,null," ",null,0,null,"","",null,0,null,null,null,null,null,null,null,null,null,null,null,null,"",{"$f":"NoBlanks(J68:J565)","v":""}]
[null,null,null,null,null,null," ",null,0,null,"","",null,0,null,null,null,null,null,null,null,null,null,null,null,null,"",{"$f":"NoBlanks(J69:J566)","v":""}]
[null,null,null,null,null,null," ",null,0,null,"","",null,0,null,null,null,null,null,null,null,null,null,null,null,null,"",{"$f":"NoBlanks(J70:J567)","v":""}]
[null,null,null,null,null,null," "," ",null,null,null,null,null,null,null,null,null,null,null,null,null,null,null,null,null,null,"",{"$f":"NoBlanks(J71:J568)","v":""}]
[null,null,null,null,null,null," "," ",null,null,null,null,null,null,null,null,null,null,null,null,null,null,null,null,null,null,"",{"$f":"NoBlanks(J72:J569)","v":""}]
[null,null,null,null,null,null," "," ",null,null,null,null,null,null,null,null,null,null,null,null,null,null,null,null,null,null,"",{"$f":"NoBlanks(J73:J570)","v":""}]
[null,null,null,null,null,null," "," ",null,null,null,null,null,null,null,null,null,null,null,null,null,null,null,null,null,null,"",{"$f":"NoBlanks(J74:J571)","v":""}]
[null,null,null,null,null,null," "," ",null,null,null,null,null,null,null,null,null,null,null,null,null,null,null,null,null,null,"",{"$f":"NoBlanks(J75:J572)","v":""}]
[null,null,null,null,null,null," "," ",null,null,null,null,null,null,null,null,null,null,null,null,null,null,null,null,null,null,"",{"$f":"NoBlanks(J76:J573)","v":""}]
[null,null,null,null,null,null," "," ",null,null,null,null,null,null,null,null,null,null,null,null,null,null,null,null,null,null,"",{"$f":"NoBlanks(J77:J574)","v":""}]
[null,null,null,null,null,null," "," ",null,null,null,null,null,null,null,null,null,null,null,null,null,null,null,null,null,null,"",{"$f":"NoBlanks(J78:J575)","v":""}]
[null,null,null,null,null,null," "," ",null,null,null,null,null,null,null,null,null,null,null,null,null,null,null,null,null,null,"",{"$f":"NoBlanks(J79:J576)","v":""}]
[null,null,null,null,null,null," "," ",null,null,null,null,null,null,null,null,null,null,null,null,null,null,null,null,null,null,"",{"$f":"NoBlanks(J80:J577)","v":""}]
[null,null,null,null,null,null," "," ",null,null,null,null,null,null,null,null,null,null,null,null,null,null,null,null,null,null,"",{"$f":"NoBlanks(J81:J578)","v":""}]
[null,null,null,null,null,null," "," ",null,null,null,null,null,null,null,null,null,null,null,null,null,null,null,null,null,null,"",{"$f":"NoBlanks(J82:J579)","v":""}]
[null,null,null,null,null,null," "," ",null,null,null,null,null,null,null,null,null,null,null,null,null,null,null,null,null,null,"",{"$f":"NoBlanks(J83:J580)","v":""}]
[null,null,null,null,null,null," "," ",null,null,null,null,null,null,null,null,null,null,null,null,null,null,null,null,null,null,"",{"$f":"NoBlanks(J84:J581)","v":""}]
[null,null,null,null,null,null," "," ",null,null,null,null,null,null,null,null,null,null,null,null,null,null,null,null,null,null,"",{"$f":"NoBlanks(J85:J582)","v":""}]
[null,null,null,null,null,null," "," ",null,null,null,null,null,null,null,null,null,null,null,null,null,null,null,null,null,null,"",{"$f":"NoBlanks(J86:J583)","v":""}]
[null,null,null,null,null,null," "," ",null,null,null,null,null,null,null,null,null,null,null,null,null,null,null,null,null,null,{"$f":"IF(K84=\"\",\"\",J84)","v":""},{"$f":"NoBlanks(J87:J584)","v":""}]
[null,null,null,null,null,null," "," ",null,null,null,null,null,null,null,null,null,null,null,null,null,null,null,null,null,null,"",{"$f":"NoBlanks(J88:J585)","v":""}]
[null,null,null,null,null,null," "," ",null,null,null,null,null,null,null,null,null,null,null,null,null,null,null,null,null,null,"",{"$f":"NoBlanks(J89:J586)","v":""}]
[null,null,null,null,null,null," "," ",null,null,null,null,null,null,null,null,null,null,null,null,null,null,null,null,null,null,"",{"$f":"NoBlanks(J90:J587)","v":""}]
[null,null,null,null,null,null," "," ",null,null,null,null,null,null,null,null,null,null,null,null,null,null,null,null,null,null,"",{"$f":"NoBlanks(J91:J588)","v":""}]
[null,null,null,null,null,null," "," ",null,null,null,null,null,null,null,null,null,null,null,null,null,null,null,null,null,null,"",{"$f":"NoBlanks(J92:J589)","v":""}]
[null,null,null,null,null,null," "," ",null,null,null,null,null,null,null,null,null,null,null,null,null,null,null,null,null,null,"",{"$f":"NoBlanks(J93:J590)","v":""}]
[null,null,null,null,null,null," ",null,null,null,null,null,null,null,null,null,null,null,null,null,null,null,null,null,null,null,"",{"$f":"NoBlanks(J94:J591)","v":""}]
[null,null,null,null,null,null," ",null,null,null,null,null,null,null,null,null,null,null,null,null,null,null,null,null,null,null,"",{"$f":"NoBlanks(J95:J592)","v":""}]
[null,null,null,null,null,null," ",null,null,null,null,null,null,null,null,null,null,null,null,null,null,null,null,null,null,null,"",{"$f":"NoBlanks(J96:J593)","v":""}]
[null,null,null,null,null,null," ",null,null,null,null,null,null,null,null,null,null,null,null,null,null,null,null,null,null,null,"",{"$f":"NoBlanks(J97:J594)","v":""}]
[null,null,null,null,null,null," ",null,null,null,null,null,null,null,null,null,null,null,null,null,null,null,null,null,null,null,"",{"$f":"NoBlanks(J98:J595)","v":""}]
[null,null,null,null,null,null," ",null,null,null,null,null,null,null,null,null,null,null,null,null,null,null,null,null,null,null,"",{"$f":"NoBlanks(J99:J596)","v":""}]
[null,null,null,null,null,null," ",null,null,null,null,null,null,null,null,null,null,null,null,null,null,null,null,null,null,null,"",{"$f":"NoBlanks(J100:J597)","v":""}]
[null,null,null,null,null,null," ",null,null,null,null,null,null,null,null,null,null,null,null,null,null,null,null,null,null,null,"",{"$f":"NoBlanks(J101:J598)","v":""}]
[null,null,null,null,null,null," ",null,null,null,null,null,null,null,null,null,null,null,null,null,null,null,null,null,null,null,null,{"$f":"NoBlanks(J102:J599)","v":""}]
[null,null,null,null,null,null," ",null,null,null,null,null,null,null,null,null,null,null,null,null,null,null,null,null,null,null,null,{"$f":"NoBlanks(J103:J600)","v":""}]
[null,null,null,null,null,null," ",null,null,null,null,null,null,null,null,null,null,null,null,null,null,null,null,null,null,null,null,{"$f":"NoBlanks(J104:J601)","v":""}]
[null,null,null,null,null,null," ",null,null,null,null,null,null,null,null,null,null,null,null,null,null,null,null,null,null,null,null,{"$f":"NoBlanks(J105:J602)","v":""}]
[null,null,null,null,null,null," ",null,null,null,null,null,null,null,null,null,null,null,null,null,null,null,null,null,null,null,null,{"$f":"NoBlanks(J106:J603)","v":""}]
[null,null,null,null,null,null," ",null,null,null,null,null,null,null,null,null,null,null,null,null,null,null,null,null,null,null,null,{"$f":"NoBlanks(J107:J604)","v":""}]
[null,null,null,null,null,null," ",null,null,null,null,null,null,null,null,null,null,null,null,null,null,null,null,null,null,null,null,{"$f":"NoBlanks(J108:J605)","v":""}]
[null,null,null,null,null,null," ",null,null,null,null,null,null,null,null,null,null,null,null,null,null,null,null,null,null,null,null,{"$f":"NoBlanks(J109:J606)","v":""}]
[null,null,null,null,null,null," ",null,null,null,null,null,null,null,null,null,null,null,null,null,null,null,null,null,null,null,null,{"$f":"NoBlanks(J110:J607)","v":""}]
[null,null,null,null,null,null," ",null,null,null,null,null,null,null,null,null,null,null,null,null,null,null,null,null,null,null,null,{"$f":"NoBlanks(J111:J608)","v":""}]
[null,null,null,null,null,null," ",null,null,null,null,null,null,null,null,null,null,null,null,null,null,null,null,null,null,null,null,{"$f":"NoBlanks(J112:J609)","v":""}]
[null,null,null,null,null,null," ",null,null,null,null,null,null,null,null,null,null,null,null,null,null,null,null,null,null,null,null,{"$f":"NoBlanks(J113:J610)","v":""}]
[null,null,null,null,null,null," ",null,null,null,null,null,null,null,null,null,null,null,null,null,null,null,null,null,null,null,null,{"$f":"NoBlanks(J114:J611)","v":""}]
[null,null,null,null,null,null," ",null,null,null,null,null,null,null,null,null,null,null,null,null,null,null,null,null,null,null,null,{"$f":"NoBlanks(J115:J612)","v":""}]
[null,null,null,null,null,null," ",null,null,null,null,null,null,null,null,null,null,null,null,null,null,null,null,null,null,null,null,{"$f":"NoBlanks(J116:J613)","v":""}]
[null,null,null,null,null,null," ",null,null,null,null,null,null,null,null,null,null,null,null,null,null,null,null,null,null,null,null,{"$f":"NoBlanks(J117:J614)","v":""}]
[null,null,null,null,null,null," ",null,null,null,null,null,null,null,null,null,null,null,null,null,null,null,null,null,null,null,null,{"$f":"NoBlanks(J118:J615)","v":""}]
[null,null,null,null,null,null," ",null,null,null,null,null,null,null,null,null,null,null,null,null,null,null,null,null,null,null,null,{"$f":"NoBlanks(J119:J616)","v":""}]
[null,null,null,null,null,null," ",null,null,null,null,null,null,null,null,null,null,null,null,null,null,null,null,null,null,null,null,{"$f":"NoBlanks(J120:J617)","v":""}]
[null,null,null,null,null,null," ",null,null,null,null,null,null,null,null,null,null,null,null,null,null,null,null,null,null,null,null,{"$f":"NoBlanks(J121:J618)","v":""}]
[null,null,null,null,null,null," ",null,null,null,null,null,null,null,null,null,null,null,null,null,null,null,null,null,null,null,null,{"$f":"NoBlanks(J122:J619)","v":""}]
[null,null,null,null,null,null," ",null,null,null,null,null,null,null,null,null,null,null,null,null,null,null,null,null,null,null,null,{"$f":"NoBlanks(J123:J620)","v":""}]
[null,null,null,null,null,null," ",null,null,null,null,null,null,null,null,null,null,null,null,null,null,null,null,null,null,null,null,{"$f":"NoBlanks(J124:J621)","v":""}]
[null,null,null,null,null,null," ",null,null,null,null,null,null,null,null,null,null,null,null,null,null,null,null,null,null,null,null,{"$f":"NoBlanks(J125:J622)","v":""}]
[null,null,null,null,null,null," ",null,null,null,null,null,null,null,null,null,null,null,null,null,null,null,null,null,null,null,null,{"$f":"NoBlanks(J126:J623)","v":""}]
[null,null,null,null,null,null," ",null,null,null,null,null,null,null,null,null,null,null,null,null,null,null,null,null,null,null,null,{"$f":"NoBlanks(J127:J624)","v":""}]
[null,null,null,null,null,null," ",null,null,null,null,null,null,null,null,null,null,null,null,null,null,null,null,null,null,null,null,{"$f":"NoBlanks(J128:J625)","v":""}]
[null,null,null,null,null,null," ",null,null,null,null,null,null,null,null,null,null,null,null,null,null,null,null,null,null,null,null,{"$f":"NoBlanks(J129:J626)","v":""}]
[null,null,null,null,null,null," ",null,null,null,null,null,null,null,null,null,null,null,null,null,null,null,null,null,null,null,null,{"$f":"NoBlanks(J130:J627)","v":""}]
[null,null,null,null,null,null," ",null,null,null,null,null,null,null,null,null,null,null,null,null,null,null,null,null,null,null,null,{"$f":"NoBlanks(J131:J628)","v":""}]
[null,null,null,null,null,null," ",null,null,null,null,null,null,null,null,null,null,null,null,null,null,null,null,null,null,null,null,{"$f":"NoBlanks(J132:J629)","v":""}]
[null,null,null,null,null,null," ",null,null,null,null,null,null,null,null,null,null,null,null,null,null,null,null,null,null,null,null,{"$f":"NoBlanks(J133:J630)","v":""}]
[null,null,null,null,null,null," ",null,null,null,null,null,null,null,null,null,null,null,null,null,null,null,null,null,null,null,null,{"$f":"NoBlanks(J134:J631)","v":""}]
[null,null,null,null,null,null," ",null,null,null,null,null,null,null,null,null,null,null,null,null,null,null,null,null,null,null,null,{"$f":"NoBlanks(J135:J632)","v":""}]
[null,null,null,null,null,null," ",null,null,null,null,null,null,null,null,null,null,null,null,null,null,null,null,null,null,null,null,{"$f":"NoBlanks(J136:J633)","v":""}]
[null,null,null,null,null,null," ",null,null,null,null,null,null,null,null,null,null,null,null,null,null,null,null,null,null,null,null,{"$f":"NoBlanks(J137:J634)","v":""}]
[null,null,null,null,null,null," ",null,null,null,null,null,null,null,null,null,null,null,null,null,null,null,null,null,null,null,null,{"$f":"NoBlanks(J138:J635)","v":""}]
[null,null,null,null,null,null," ",null,null,null,null,null,null,null,null,null,null,null,null,null,null,null,null,null,null,null,null,{"$f":"NoBlanks(J139:J636)","v":""}]
[null,null,null,null,null,null," ",null,null,null,null,null,null,null,null,null,null,null,null,null,null,null,null,null,null,null,null,{"$f":"NoBlanks(J140:J637)","v":""}]
[null,null,null,null,null,null," ",null,null,null,null,null,null,null,null,null,null,null,null,null,null,null,null,null,null,null,null,{"$f":"NoBlanks(J141:J638)","v":""}]
[null,null,null,null,null,null," ",null,null,null,null,null,null,null,null,null,null,null,null,null,null,null,null,null,null,null,null,{"$f":"NoBlanks(J142:J639)","v":""}]
[null,null,null,null,null,null," ",null,null,null,null,null,null,null,null,null,null,null,null,null,null,null,null,null,null,null,null,{"$f":"NoBlanks(J143:J640)","v":""}]
[null,null,null,null,null,null," ",null,null,null,null,null,null,null,null,null,null,null,null,null,null,null,null,null,null,null,null,{"$f":"NoBlanks(J144:J641)","v":""}]
[null,null,null,null,null,null," ",null,null,null,null,null,null,null,null,null,null,null,null,null,null,null,null,null,null,null,null,{"$f":"NoBlanks(J145:J642)","v":""}]
[null,null,null,null,null,null," ",null,null,null,null,null,null,null,null,null,null,null,null,null,null,null,null,null,null,null,null,{"$f":"NoBlanks(J146:J643)","v":""}]
[null,null,null,null,null,null," ",null,null,null,null,null,null,null,null,null,null,null,null,null,null,null,null,null,null,null,null,{"$f":"NoBlanks(J147:J644)","v":""}]
[null,null,null,null,null,null," ",null,null,null,null,null,null,null,null,null,null,null,null,null,null,null,null,null,null,null,null,{"$f":"NoBlanks(J148:J645)","v":""}]
[null,null,null,null,null,null," ",null,null,null,null,null,null,null,null,null,null,null,null,null,null,null,null,null,null,null,null,{"$f":"NoBlanks(J149:J646)","v":""}]
[null,null,null,null,null,null," ",null,null,null,null,null,null,null,null,null,null,null,null,null,null,null,null,null,null,null,null,{"$f":"NoBlanks(J150:J647)","v":""}]
[null,null,null,null,null,null," ",null,null,null,null,null,null,null,null,null,null,null,null,null,null,null,null,null,null,null,null,{"$f":"NoBlanks(J151:J648)","v":""}]
[null,null,null,null,null,null," ",null,null,null,null,null,null,null,null,null,null,null,null,null,null,null,null,null,null,null,null,{"$f":"NoBlanks(J152:J649)","v":""}]
[null,null,null,null,null,null," ",null,null,null,null,null,null,null,null,null,null,null,null,null,null,null,null,null,null,null,null,{"$f":"NoBlanks(J153:J650)","v":""}]
[null,null,null,null,null,null," ",null,null,null,null,null,null,null,null,null,null,null,null,null,null,null,null,null,null,null,null,{"$f":"NoBlanks(J154:J651)","v":""}]
[null,null,null,null,null,null," ",null,null,null,null,null,null,null,null,null,null,null,null,null,null,null,null,null,null,null,null,{"$f":"NoBlanks(J155:J652)","v":""}]
[null,null,null,null,null,null," ",null,null,null,null,null,null,null,null,null,null,null,null,null,null,null,null,null,null,null,null,{"$f":"NoBlanks(J156:J653)","v":""}]
[null,null,null,null,null,null," ",null,null,null,null,null,null,null,null,null,null,null,null,null,null,null,null,null,null,null,null,{"$f":"NoBlanks(J157:J654)","v":""}]
[null,null,null,null,null,null," ",null,null,null,null,null,null,null,null,null,null,null,null,null,null,null,null,null,null,null,null,{"$f":"NoBlanks(J158:J655)","v":""}]
[null,null,null,null,null,null," ",null,null,null,null,null,null,null,null,null,null,null,null,null,null,null,null,null,null,null,null,{"$f":"NoBlanks(J159:J656)","v":""}]
[null,null,null,null,null,null," ",null,null,null,null,null,null,null,null,null,null,null,null,null,null,null,null,null,null,null,null,{"$f":"NoBlanks(J160:J657)","v":""}]
[null,null,null,null,null,null," ",null,null,null,null,null,null,null,null,null,null,null,null,null,null,null,null,null,null,null,null,{"$f":"NoBlanks(J161:J658)","v":""}]
[null,null,null,null,null,null," ",null,null,null,null,null,null,null,null,null,null,null,null,null,null,null,null,null,null,null,null,{"$f":"NoBlanks(J162:J659)","v":""}]
[null,null,null,null,null,null," ",null,null,null,null,null,null,null,null,null,null,null,null,null,null,null,null,null,null,null,null,{"$f":"NoBlanks(J163:J660)","v":""}]
[null,null,null,null,null,null," ",null,null,null,null,null,null,null,null,null,null,null,null,null,null,null,null,null,null,null,null,{"$f":"NoBlanks(J164:J661)","v":""}]
[null,null,null,null,null,null," ",null,null,null,null,null,null,null,null,null,null,null,null,null,null,null,null,null,null,null,null,{"$f":"NoBlanks(J165:J662)","v":""}]
[null,null,null,null,null,null," ",null,null,null,null,null,null,null,null,null,null,null,null,null,null,null,null,null,null,null,null,{"$f":"NoBlanks(J166:J663)","v":""}]
[null,null,null,null,null,null," ",null,null,null,null,null,null,null,null,null,null,null,null,null,null,null,null,null,null,null,null,{"$f":"NoBlanks(J167:J664)","v":""}]
[null,null,null,null,null,null," ",null,null,null,null,null,null,null,null,null,null,null,null,null,null,null,null,null,null,null,null,{"$f":"NoBlanks(J168:J665)","v":""}]
[null,null,null,null,null,null," ",null,null,null,null,null,null,null,null,null,null,null,null,null,null,null,null,null,null,null,null,{"$f":"NoBlanks(J169:J666)","v":""}]
[null,null,null,null,null,null," ",null,null,null,null,null,null,null,null,null,null,null,null,null,null,null,null,null,null,null,null,{"$f":"NoBlanks(J170:J667)","v":""}]
[null,null,null,null,null,null," ",null,null,null,null,null,null,null,null,null,null,null,null,null,null,null,null,null,null,null,null,{"$f":"NoBlanks(J171:J668)","v":""}]
[null,null,null,null,null,null," ",null,null,null,null,null,null,null,null,null,null,null,null,null,null,null,null,null,null,null,null,{"$f":"NoBlanks(J172:J669)","v":""}]
[null,null,null,null,null,null," ",null,null,null,null,null,null,null,null,null,null,null,null,null,null,null,null,null,null,null,null,{"$f":"NoBlanks(J173:J670)","v":""}]
[null,null,null,null,null,null," ",null,null,null,null,null,null,null,null,null,null,null,null,null,null,null,null,null,null,null,null,{"$f":"NoBlanks(J174:J671)","v":""}]
[null,null,null,null,null,null," ",null,null,null,null,null,null,null,null,null,null,null,null,null,null,null,null,null,null,null,null,{"$f":"NoBlanks(J175:J672)","v":""}]
[null,null,null,null,null,null," ",null,null,null,null,null,null,null,null,null,null,null,null,null,null,null,null,null,null,null,null,{"$f":"NoBlanks(J176:J673)","v":""}]
[null,null,null,null,null,null," ",null,null,null,null,null,null,null,null,null,null,null,null,null,null,null,null,null,null,null,null,{"$f":"NoBlanks(J177:J674)","v":""}]
[null,null,null,null,null,null," ",null,null,null,null,null,null,null,null,null,null,null,null,null,null,null,null,null,null,null,null,{"$f":"NoBlanks(J178:J675)","v":""}]
[null,null,null,null,null,null," ",null,null,null,null,null,null,null,null,null,null,null,null,null,null,null,null,null,null,null,null,{"$f":"NoBlanks(J179:J676)","v":""}]
[null,null,null,null,null,null," ",null,null,null,null,null,null,null,null,null,null,null,null,null,null,null,null,null,null,null,null,{"$f":"NoBlanks(J180:J677)","v":""}]
[null,null,null,null,null,null," ",null,null,null,null,null,null,null,null,null,null,null,null,null,null,null,null,null,null,null,null,{"$f":"NoBlanks(J181:J678)","v":""}]
[null,null,null,null,null,null," ",null,null,null,null,null,null,null,null,null,null,null,null,null,null,null,null,null,null,null,null,{"$f":"NoBlanks(J182:J679)","v":""}]
[null,null,null,null,null,null," ",null,null,null,null,null,null,null,null,null,null,null,null,null,null,null,null,null,null,null,null,{"$f":"NoBlanks(J183:J680)","v":""}]
[null,null,null,null,null,null," ",null,null,null,null,null,null,null,null,null,null,null,null,null,null,null,null,null,null,null,null,{"$f":"NoBlanks(J184:J681)","v":""}]
[null,null,null,null,null,null," ",null,null,null,null,null,null,null,null,null,null,null,null,null,null,null,null,null,null,null,null,{"$f":"NoBlanks(J185:J682)","v":""}]
[null,null,null,null,null,null," ",null,null,null,null,null,null,null,null,null,null,null,null,null,null,null,null,null,null,null,null,{"$f":"NoBlanks(J186:J683)","v":""}]
[null,null,null,null,null,null," ",null,null,null,null,null,null,null,null,null,null,null,null,null,null,null,null,null,null,null,null,{"$f":"NoBlanks(J187:J684)","v":""}]
[null,null,null,null,null,null," ",null,null,null,null,null,null,null,null,null,null,null,null,null,null,null,null,null,null,null,null,{"$f":"NoBlanks(J188:J685)","v":""}]
[null,null,null,null,null,null," ",null,null,null,null,null,null,null,null,null,null,null,null,null,null,null,null,null,null,null,null,{"$f":"NoBlanks(J189:J686)","v":""}]
[null,null,null,null,null,null," ",null,null,null,null,null,null,null,null,null,null,null,null,null,null,null,null,null,null,null,null,{"$f":"NoBlanks(J190:J687)","v":""}]
[null,null,null,null,null,null," ",null,null,null,null,null,null,null,null,null,null,null,null,null,null,null,null,null,null,null,null,{"$f":"NoBlanks(J191:J688)","v":""}]
[null,null,null,null,null,null," ",null,null,null,null,null,null,null,null,null,null,null,null,null,null,null,null,null,null,null,null,{"$f":"NoBlanks(J192:J689)","v":""}]
[null,null,null,null,null,null," ",null,null,null,null,null,null,null,null,null,null,null,null,null,null,null,null,null,null,null,null,{"$f":"NoBlanks(J193:J690)","v":""}]
[null,null,null,null,null,null," ",null,null,null,null,null,null,null,null,null,null,null,null,null,null,null,null,null,null,null,null,{"$f":"NoBlanks(J194:J691)","v":""}]
[null,null,null,null,null,null," ",null,null,null,null,null,null,null,null,null,null,null,null,null,null,null,null,null,null,null,null,{"$f":"NoBlanks(J195:J692)","v":""}]
[null,null,null,null,null,null," ",null,null,null,null,null,null,null,null,null,null,null,null,null,null,null,null,null,null,null,null,{"$f":"NoBlanks(J196:J693)","v":""}]
[null,null,null,null,null,null," ",null,null,null,null,null,null,null,null,null,null,null,null,null,null,null,null,null,null,null,null,{"$f":"NoBlanks(J197:J694)","v":""}]
[null,null,null,null,null,null," "]
[null,null,null,null,null,null," "]
[null,null,null,null,null,null," "]
[null,null,null,null,null,null," "]
[null,null,null,null,null,null," "]
[null,null,null,null,null,null," "]
[null,null,null,null,null,null," "]
[null,null,null,null,null,null," "]
[null,null,null,null,null,null," "]
[null,null,null,null,null,null," "]
[null,null,null,null,null,null," "]
[null,null,null,null,null,null," "]
[null,null,null,null,null,null," "]
[null,null,null,null,null,null," "]
[null,null,null,null,null,null," "]
[null,null,null,null,null,null," "]
[null,null,null,null,null,null," "]
[null,null,null,null,null,null," "]
[null,null,null,null,null,null," "]
[null,null,null,null,null,null," "]
[null,null,null,null,null,null," "]
[null,null,null,null,null,null," "]
[null,null,null,null,null,null," "]
[null,null,null,null,null,null," "]
[null,null,null,null,null,null," "]
[null,null,null,null,null,null," "]
[null,null,null,null,null,null," "]
[null,null,null,null,null,null," "]
[null,null,null,null,null,null," "]
[null,null,null,null,null,null," "]
[null,null,null,null,null,null," "]
[null,null,null,null,null,null," "]
[null,null,null,null,null,null," "]
[null,null,null,null,null,null," "]
[null,null,null,null,null,null," "]
[null,null,null,null,null,null," "]
[null,null,null,null,null,null," "]
[null,null,null,null,null,null," "]
[null,null,null,null,null,null," "]
[null,null,null,null,null,null," "]
[null,null,null,null,null,null," "]
[null,null,null,null,null,null," "]
[null,null,null,null,null,null," "]
[null,null,null,null,null,null," "]
[null,null,null,null,null,null," "]
[null,null,null,null,null,null," "]
[null,null,null,null,null,null," "]
[null,null,null,null,null,null," "]
[null,null,null,null,null,null," "]
[null,null,null,null,null,null," "]
[null,null,null,null,null,null," "]
[null,null,null,null,null,null," "]
[null,null,null,null,null,null," "]
[null,null,null,null,null,null," "]
[null,null,null,null,null,null," "]
[null,null,null,null,null,null," "]
[null,null,null,null,null,null," "]
[null,null,null,null,null,null," "]
[null,null,null,null,null,null," "]
[null,null,null,null,null,null," "]
[null,null,null,null,null,null," "]
[null,null,null,null,null,null," "]
[null,null,null,null,null,null," "]
[null,null,null,null,null,null," "]
[null,null,null,null,null,null," "]
[null,null,null,null,null,null," "]
[null,null,null,null,null,null," "]
[null,null,null,null,null,null," "]
[null,null,null,null,null,null," "]
[null,null,null,null,null,null," "]
[null,null,null,null,null,null," "]
[null,null,null,null,null,null," "]
[null,null,null,null,null,null," "]
[null,null,null,null,null,null," "]
[null,null,null,null,null,null," "]
[null,null,null,null,null,null," "]
[null,null,null,null,null,null," "]
[null,null,null,null,null,null," "]
[null,null,null,null,null,null," "]
[null,null,null,null,null,null," "]
[null,null,null,null,null,null," "]
[null,null,null,null,null,null," "]
[null,null,null,null,null,null," "]
[null,null,null,null,null,null," "]
[null,null,null,null,null,null," "]
[null,null,null,null,null,null," "]
[null,null,null,null,null,null," "]
[null,null,null,null,null,null," "]
[null,null,null,null,null,null," "]
[null,null,null,null,null,null," "]
[null,null,null,null,null,null," "]
[null,null,null,null,null,null," "]
[null,null,null,null,null,null," "]
[null,null,null,null,null,null," "]
[null,null,null,null,null,null," "]
[null,null,null,null,null,null," "]
[null,null,null,null,null,null," "]
[null,null,null,null,null,null," "]
[null,null,null,null,null,null," "]
[null,null,null,null,null,null," "]
[null,null,null,null,null,null," "]
[null,null,null,null,null,null," "]
[null,null,null,null,null,null," "]
[null,null,null,null,null,null," "]
[null,null,null,null,null,null," "]
[null,null,null,null,null,null," "]
[null,null,null,null,null,null," "]
[null,null,null,null,null,null," "]
[null,null,null,null,null,null," "]
[null,null,null,null,null,null," "]
[null,null,null,null,null,null," "]
[null,null,null,null,null,null," "]
[null,null,null,null,null,null," "]
[null,null,null,null,null,null," "]
[null,null,null,null,null,null," "]
[null,null,null,null,null,null," "]
[null,null,null,null,null,null," "]
[null,null,null,null,null,null," "]
[null,null,null,null,null,null," "]
[null,null,null,null,null,null," "]
[null,null,null,null,null,null," "]
[null,null,null,null,null,null," "]
[null,null,null,null,null,null," "]
[null,null,null,null,null,null," "]
[null,null,null,null,null,null," "]
[null,null,null,null,null,null," "]
[null,null,null,null,null,null," "]
[null,null,null,null,null,null," "]
[null,null,null,null,null,null," "]
[null,null,null,null,null,null," "]
[null,null,null,null,null,null," "]
[null,null,null,null,null,null," "]
[null,null,null,null,null,null," "]
[null,null,null,null,null,null," "]
[null,null,null,null,null,null," "]
[null,null,null,null,null,null," "]
[null,null,null,null,null,null," "]
[null,null,null,null,null,null," "]
[null,null,null,null,null,null," "]
[null,null,null,null,null,null," "]
[null,null,null,null,null,null," "]
[null,null,null,null,null,null," "]
[null,null,null,null,null,null," "]
[null,null,null,null,null,null," "]
[null,null,null,null,null,null," "]
[null,null,null,null,null,null," "]
[null,null,null,null,null,null," "]
[null,null,null,null,null,null," "]
[null,null,null,null,null,null," "]
[null,null,null,null,null,null," "]
[null,null,null,null,null,null," "]
[null,null,null,null,null,null," "]
[null,null,null,null,null,null," "]
[null,null,null,null,null,null," "]
[null,null,null,null,null,null," "]
[null,null,null,null,null,null," "]
[null,null,null,null,null,null," "]
[null,null,null,null,null,null," "]
[null,null,null,null,null,null," "]
[null,null,null,null,null,null," "]
[null,null,null,null,null,null," "]
[null,null,null,null,null,null," "]
[null,null,null,null,null,null," "]
[null,null,null,null,null,null," "]
[null,null,null,null,null,null," "]
[null,null,null,null,null,null," "]
[null,null,null,null,null,null," "]
[null,null,null,null,null,null," "]
[null,null,null,null,null,null," "]
[null,null,null,null,null,null," "]
[null,null,null,null,null,null," "]
[null,null,null,null,null,null," "]
[null,null,null,null,null,null," "]
[null,null,null,null,null,null," "]
[null,null,null,null,null,null," "]
[null,null,null,null,null,null," "]
[null,null,null,null,null,null," "]
[null,null,null,null,null,null," "]
[null,null,null,null,null,null," "]
[null,null,null,null,null,null," "]
[null,null,null,null,null,null," "]
[null,null,null,null,null,null," "]
[null,null,null,null,null,null," "]
[null,null,null,null,null,null," "]
[null,null,null,null,null,null," "]
[null,null,null,null,null,null," "]
[null,null,null,null,null,null," "]
[null,null,null,null,null,null," "]
[null,null,null,null,null,null," "]
[null,null,null,null,null,null," "]
[null,null,null,null,null,null," "]
[null,null,null,null,null,null," "]
[null,null,null,null,null,null," "]
[null,null,null,null,null,null," "]
[null,null,null,null,null,null," "]
[null,null,null,null,null,null," "]
[null,null,null,null,null,null," "]
[null,null,null,null,null,null," "]
[null,null,null,null,null,null," "]
[null,null,null,null,null,null," "]
[null,null,null,null,null,null," "]
[null,null,null,null,null,null," "]
[null,null,null,null,null,null," "]
[null,null,null,null,null,null," "]
[null,null,null,null,null,null," "]
[null,null,null,null,null,null," "]
[null,null,null,null,null,null," "]
[null,null,null,null,null,null," "]
[null,null,null,null,null,null," "]
[null,null,null,null,null,null," "]
[null,null,null,null,null,null," "]
[null,null,null,null,null,null," "]
[null,null,null,null,null,null," "]
[null,null,null,null,null,null," "]
[null,null,null,null,null,null," "]
[null,null,null,null,null,null," "]
[null,null,null,null,null,null," "]
[null,null,null,null,null,null," "]
[null,null,null,null,null,null," "]
[null,null,null,null,null,null," "]
[null,null,null,null,null,null," "]
[null,null,null,null,null,null," "]
[null,null,null,null,null,null," "]
[null,null,null,null,null,null," "]
[null,null,null,null,null,null," "]
[null,null,null,null,null,null," "]
[null,null,null,null,null,null," "]
[null,null,null,null,null,null," "]
[null,null,null,null,null,null," "]
[null,null,null,null,null,null," "]
[null,null,null,null,null,null," "]
[null,null,null,null,null,null," "]
[null,null,null,null,null,null," "]
[null,null,null,null,null,null," "]
[null,null,null,null,null,null," "]
[null,null,null,null,null,null," "]
[null,null,null,null,null,null," "]
[null,null,null,null,null,null," "]
[null,null,null,null,null,null," "]
[null,null,null,null,null,null," "]
[null,null,null,null,null,null," "]
[null,null,null,null,null,null," "]
[null,null,null,null,null,null," "]
[null,null,null,null,null,null," "]
[null,null,null,null,null,null," "]
[null,null,null,null,null,null," "]
[null,null,null,null,null,null," "]
[null,null,null,null,null,null," "]
[null,null,null,null,null,null," "]
[null,null,null,null,null,null," "]
[null,null,null,null,null,null," "]
[null,null,null,null,null,null," "]
[null,null,null,null,null,null," "]
[null,null,null,null,null,null," "]
[null,null,null,null,null,null," "]
[null,null,null,null,null,null," "]
[null,null,null,null,null,null," "]
[null,null,null,null,null,null," "]
[null,null,null,null,null,null," "]
[null,null,null,null,null,null," "]
[null,null,null,null,null,null," "]
[null,null,null,null,null,null," "]
[null,null,null,null,null,null," "]
[null,null,null,null,null,null," "]
[null,null,null,null,null,null," "]
[null,null,null,null,null,null," "]
[null,null,null,null,null,null," "]
[null,null,null,null,null,null," "]
[null,null,null,null,null,null," "]
[null,null,null,null,null,null," "]
[null,null,null,null,null,null," "]
[null,null,null,null,null,null," "]
[null,null,null,null,null,null," "]
[null,null,null,null,null,null," "]
[null,null,null,null,null,null," "]
[null,null,null,null,null,null," "]
[null,null,null,null,null,null," "]
[null,null,null,null,null,null," "]
[null,null,null,null,null,null," "]
[null,null,null,null,null,null," "]
[null,null,null,null,null,null," "]
[null,null,null,null,null,null," "]
[null,null,null,null,null,null," "]
[null,null,null,null,null,null," "]
[null,null,null,null,null,null," "]
[null,null,null,null,null,null," "]
[null,null,null,null,null,null," "]
[null,null,null,null,null,null," "]
[null,null,null,null,null,null," "]
[null,null,null,null,null,null," "]
[null,null,null,null,null,null," "]
[null,null,null,null,null,null," "]
[null,null,null,null,null,null," "]
[null,null,null,null,null,null," "]
[null,null,null,null,null,null," "]
[null,null,null,null,null,null," "]

{"sheet":"03-08-2019","index":3,"n_rows":494,"n_cols":31,"rows_kept":494,"cut":false,"hidden":false,"merged":[[1,19,1,21]]}
["Official time - work",null,null,null,null,null,null,null,null,null,null,null,null,null,null,"رجــــوع"]
["#","App. Date","Name","Surname","Pasaport No.","Date of birth","Note of status","Price $","Paid $","Route","Unpaid $","GT","Case of appl","TG.Gov",null,"رجــــوع","رجــــوع",null,null,"TOTAL"]
[null,null,null,null,null,null,null,100,{"$f":"IF(J3<>\"\",\"\",H3)","v":""},"hamza",{"$f":"IF(AND(I3=\"\",J3<>\"\"),H3,\"\")","v":100},25,"Not extractor",{"$f":"IF(M3=\"Extractor\",62.5,0)","v":0},null,"رجــــوع",null,"DONE",null,"Total amount",null,"Net profit",null,"Route","Coun of Rout","Total Unpaid",null,{"$f":"NoBlanks(J3:J100)","v":"hamza"},null,"Note of status","Count of Mistake"]
[null,"2019-08-03",null,null,null,null,null,110,"","salah",{"$f":"IF(AND(I4=\"\",J4<>\"\"),H4,\"\")","v":110},25,null,{"$f":"IF(M4=\"Extractor\",62.5,0)","v":0},null,null,null,"CANCELLED",null,{"$f":"SUM(H3:H70)","v":330},null,{"$f":"T4-V14","v":-1395},null,{"$f":"IF(ISERROR(INDEX($AB$3:$AB$70,MATCH(0,COUNTIF($X$3:X3,$AB$3:$AB$69),0))),\"\",INDEX($AB$3:$AB$69,MATCH(0,COUNTIF($X$3:X3,$AB$3:$AB$69),0)))","v":"hamza"},{"$f":"IF(X4=\"\",\"\",COUNTIF(J2:J100,X4))","v":1},{"$f":"IF(X4<>\"\",SUMPRODUCT(--($J$2:$J$69=X4),$K$2:$K$69),\"\")","v":100},null,{"$f":"NoBlanks(J3:J500)","v":"hamza"},null,"DONE",{"$f":"COUNTIF(C1:C69,\"Done\")","v":0}]
[null,null,null,null,null,"2012-02-02",null,120,"","ihab",{"$f":"IF(AND(I5=\"\",J5<>\"\"),H5,\"\")","v":120},25,null,0,null,null,null,"REFUSED",null,null,null,null,null,{"$f":"IF(ISERROR(INDEX($AB$3:$AB$70,MATCH(0,COUNTIF($X$3:X4,$AB$3:$AB$69),0))),\"\",INDEX($AB$3:$AB$69,MATCH(0,COUNTIF($X$3:X4,$AB$3:$AB$69),0)))","v":"salah"},1,110,null,{"$f":"NoBlanks(J4:J501)","v":"salah"},null,"CANCELLED",{"$f":"COUNTIF(C2:C70,\"Cancelled\")","v":0}]
[null,null,null,null,null,null,null," "," ",null,{"$f":"IF(AND(I6=\"\",J6<>\"\"),H6,\"\")","v":""},25,null,0,null,null,null,"MISTAKE",null,"Total Paid",null,"Difrent amount",null,{"$f":"IF(ISERROR(INDEX($AB$3:$AB$70,MATCH(0,COUNTIF($X$3:X5,$AB$3:$AB$69),0))),\"\",INDEX($AB$3:$AB$69,MATCH(0,COUNTIF($X$3:X5,$AB$3:$AB$69),0)))","v":"ihab"},1,120,null,{"$f":"NoBlanks(J5:J502)","v":"ihab"},null,"REFUSED",{"$f":"COUNTIF(C3:C71,\"Refused\")","v":0}]
[null,null,null,null,null,null,null," "," ",null,"",25,null,0,null,null,null,"GREEN PASS.",null,{"$f":"SUM(I3:I68)","v":0},null,{"$f":"T4-(T7+T10)","v":210},null,{"$f":"IF(ISERROR(INDEX($AB$3:$AB$70,MATCH(0,COUNTIF($X$3:X6,$AB$3:$AB$69),0))),\"\",INDEX($AB$3:$AB$69,MATCH(0,COUNTIF($X$3:X6,$AB$3:$AB$69),0)))","v":""},{"$f":"IF(X7=\"\",\"\",COUNTIF(J5:J103,X7))","v":""},"",{"$f":"IF(K3=\"\",\"\",J3)","v":"hamza"},{"$f":"NoBlanks(J6:J503)","v":""},null,"MISTAKE IN DOB",{"$f":"COUNTIF(C4:C72,\"Mistake\")","v":0}]
[null,null,null,null,null,null,null," "," ",null,"",25,null,0,null,null,null,null,null,null,null,null,null,{"$f":"IF(ISERROR(INDEX($AB$3:$AB$70,MATCH(0,COUNTIF($X$3:X7,$AB$3:$AB$69),0))),\"\",INDEX($AB$3:$AB$69,MATCH(0,COUNTIF($X$3:X7,$AB$3:$AB$69),0)))","v":""},{"$f":"IF(X8=\"\",\"\",COUNTIF(J6:J104,X8))","v":""},"","salah",{"$f":"NoBlanks(J7:J504)","v":""},null,"GREEN PASS",{"$f":"COUNTIF(C5:C73,\"Green Pass.\")","v":0}]
[null,null,null,null,null,null,null," "," ",null,"",25,null,0,null,null,null,"official time",null,"Total UnPaid",null,"No. of applicants",null,{"$f":"IF(ISERROR(INDEX($AB$3:$AB$70,MATCH(0,COUNTIF($X$3:X8,$AB$3:$AB$69),0))),\"\",INDEX($AB$3:$AB$69,MATCH(0,COUNTIF($X$3:X8,$AB$3:$AB$69),0)))","v":""},"","","ihab",{"$f":"NoBlanks(J8:J505)","v":""}]
[null,null,null,null,null,null,null," "," ",null,"",25,null,0,null,null,null,"official holiday",null,{"$f":"SUM(K5:K16)","v":120},null,{"$f":"COUNT(B:B)","v":1},null,{"$f":"IF(ISERROR(INDEX($AB$3:$AB$70,MATCH(0,COUNTIF($X$3:X9,$AB$3:$AB$69),0))),\"\",INDEX($AB$3:$AB$69,MATCH(0,COUNTIF($X$3:X9,$AB$3:$AB$69),0)))","v":""},"","","",{"$f":"NoBlanks(J9:J506)","v":""}]
[null,null,null,null,null,null,null," "," ",null,"",25,null,0,null,null,null,"other",null,null,null,null,null,{"$f":"IF(ISERROR(INDEX($AB$3:$AB$70,MATCH(0,COUNTIF($X$3:X10,$AB$3:$AB$69),0))),\"\",INDEX($AB$3:$AB$69,MATCH(0,COUNTIF($X$3:X10,$AB$3:$AB$69),0)))","v":""},"","","",{"$f":"NoBlanks(J10:J507)","v":""}]
[null,null,null,null,null,null,null," "," ",null,"",25,null,0,null,null,null,null,null,"Total GT",null,null,null,{"$f":"IF(ISERROR(INDEX($AB$3:$AB$70,MATCH(0,COUNTIF($X$3:X11,$AB$3:$AB$69),0))),\"\",INDEX($AB$3:$AB$69,MATCH(0,COUNTIF($X$3:X11,$AB$3:$AB$69),0)))","v":""},"","","",{"$f":"NoBlanks(J11:J508)","v":""}]
[null,null,null,null,null,null,null," "," ",null,"",25,null,0,null,null,null,null,null,{"$f":"SUM(L3:L71)","v":1725},null,"Cost amount",null,{"$f":"IF(ISERROR(INDEX($AB$3:$AB$70,MATCH(0,COUNTIF($X$3:X12,$AB$3:$AB$69),0))),\"\",INDEX($AB$3:$AB$69,MATCH(0,COUNTIF($X$3:X12,$AB$3:$AB$69),0)))","v":""},"","","",{"$f":"NoBlanks(J12:J509)","v":""}]
[null,null,null,null,null,null,null," "," ",null,"",25,null,0,null,null,null,null,null,null,null,{"$f":"IF(AND(T13<>\"\",T16<>\"\"),T13+T16,\"\")","v":1725},null,{"$f":"IF(ISERROR(INDEX($AB$3:$AB$70,MATCH(0,COUNTIF($X$3:X13,$AB$3:$AB$69),0))),\"\",INDEX($AB$3:$AB$69,MATCH(0,COUNTIF($X$3:X13,$AB$3:$AB$69),0)))","v":""},"","","",{"$f":"NoBlanks(J13:J510)","v":""}]
[null,null,null,null,null,null,null," "," ",null,"",25,null,0,null,null,null,null,null,"Total T.Gov",null,null,null,{"$f":"IF(ISERROR(INDEX($AB$3:$AB$70,MATCH(0,COUNTIF($X$3:X14,$AB$3:$AB$69),0))),\"\",INDEX($AB$3:$AB$69,MATCH(0,COUNTIF($X$3:X14,$AB$3:$AB$69),0)))","v":""},"","","",{"$f":"NoBlanks(J14:J511)","v":""}]
[null,null,null,null,null,null,null," "," ",null,"",25,null,0,null,null,null,null,null,{"$f":"SUM(N6:N74)","v":0},null,null,null,{"$f":"IF(ISERROR(INDEX($AB$3:$AB$70,MATCH(0,COUNTIF($X$3:X15,$AB$3:$AB$69),0))),\"\",INDEX($AB$3:$AB$69,MATCH(0,COUNTIF($X$3:X15,$AB$3:$AB$69),0)))","v":""},"","","",{"$f":"NoBlanks(J15:J512)","v":""}]
[null,null,null,null,null,null,null," "," ",null,"",25,null,0,null,null,null,null,null,null,null,null,null,{"$f":"IF(ISERROR(INDEX($AB$3:$AB$70,MATCH(0,COUNTIF($X$3:X16,$AB$3:$AB$69),0))),\"\",INDEX($AB$3:$AB$69,MATCH(0,COUNTIF($X$3:X16,$AB$3:$AB$69),0)))","v":""},"","","",{"$f":"NoBlanks(J16:J513)","v":""}]
[null,null,null,null,null,null,null," "," ",null,{"$f":"IF(AND(I18=\"\",J18<>\"\"),H18,\"\")","v":""},25,null,0,null,null,null,null,null,null,null,null,null,{"$f":"IF(ISERROR(INDEX($AB$3:$AB$70,MATCH(0,COUNTIF($X$3:X17,$AB$3:$AB$69),0))),\"\",INDEX($AB$3:$AB$69,MATCH(0,COUNTIF($X$3:X17,$AB$3:$AB$69),0)))","v":""},"","","",{"$f":"NoBlanks(J17:J514)","v":""}]
[null,null,null,null,null,null," "," "," ",null,{"$f":"IF(AND(I19=\"\",J19<>\"\"),H19,\"\")","v":""},25,null,0,null,null,null,null,null,null,null,null,null,{"$f":"IF(ISERROR(INDEX($AB$3:$AB$70,MATCH(0,COUNTIF($X$3:X18,$AB$3:$AB$69),0))),\"\",INDEX($AB$3:$AB$69,MATCH(0,COUNTIF($X$3:X18,$AB$3:$AB$69),0)))","v":""},"","","",{"$f":"NoBlanks(J18:J515)","v":""}]
[null,null,null,null,null,null," "," "," ",null,"",25,null,0,null,null,null,null,null,null,null,null,null,{"$f":"IF(ISERROR(INDEX($AB$3:$AB$70,MATCH(0,COUNTIF($X$3:X19,$AB$3:$AB$69),0))),\"\",INDEX($AB$3:$AB$69,MATCH(0,COUNTIF($X$3:X19,$AB$3:$AB$69),0)))","v":""},"","","",{"$f":"NoBlanks(J19:J516)","v":""}]
[null,null,null,null,null,null," "," "," ",null,"",25,null,0,null,null,null,null,null,null,null,null,null,{"$f":"IF(ISERROR(INDEX($AB$3:$AB$70,MATCH(0,COUNTIF($X$3:X20,$AB$3:$AB$69),0))),\"\",INDEX($AB$3:$AB$69,MATCH(0,COUNTIF($X$3:X20,$AB$3:$AB$69),0)))","v":""},"","","",{"$f":"NoBlanks(J20:J517)","v":""}]
[null,null,null,null,null,null," ",null,0,null,"",25,null,0,null,null,null,null,null,null,null,null,null,{"$f":"IF(ISERROR(INDEX($AB$3:$AB$70,MATCH(0,COUNTIF($X$3:X21,$AB$3:$AB$69),0))),\"\",INDEX($AB$3:$AB$69,MATCH(0,COUNTIF($X$3:X21,$AB$3:$AB$69),0)))","v":""},"","","",{"$f":"NoBlanks(J21:J518)","v":""}]
[null,null,null,null,null,null," ",null,0,null,"",25,null,0,null,null,null,null,null,null,null,null,null,null,{"$f":"NoBlanks(AA25:AA518)","v":""},{"$f":"IFERROR(INDEX($J$2:$J$492,SMALL(IF($J$2:$J$492<>\"\",ROW($J$1:$J$492)-ROW($J$2)+1,\"\"),ROWS(AD$21:$AH23))),\"\")","v":""},null,{"$f":"NoBlanks(J22:J519)","v":""}]
[null,null,null,null,null,null," ",null,0,null,"",25,null,0,null,null,null,null,null,null,null,"Done",null,null,null,null,{"$f":"IF(K20=\"\",\"\",J20)","v":""},{"$f":"NoBlanks(J23:J520)","v":""}]
[null,null,null,null,null,null," ",null,0,null,"",25,null,0,null,null,null,null,null,null,null,"Cancelled",null,null,null,null,"",{"$f":"NoBlanks(J24:J521)","v":""},null,null,{"$f":"IFERROR(INDEX($J$3:$J$493,SMALL(IF($J$3:$J$493<>\"\",ROW($J$3:$J$493)-ROW($J$3)+1,\"\"),ROWS(AE$22:$AI25))),\"\")","v":""}]
[null,null,null,null,null,null," ",null,0,null,"",25,null,0,null,null,null,null,null,null,null,"Refused",null,null,null,null,"",{"$f":"NoBlanks(J25:J522)","v":""},null,null,{"$f":"IFERROR(INDEX($J$3:$J$493,SMALL(IF($J$3:$J$493<>\"\",ROW($J$3:$J$493)-ROW($J$3)+1,\"\"),ROWS(AE$22:$AI26))),\"\")","v":""}]
[null,null,null,null,null,null," ",null,0,null,"",25,null,0,null,null,null,null,null,null,null,"Green pass.",null,null,null,null,"",{"$f":"NoBlanks(J26:J523)","v":""}]
[null,null,null,null,null,null," ",null,0,null,"",25,null,0,null,null,null,null,null,null,null,"Mistake",null,null,null,null,"",{"$f":"NoBlanks(J27:J524)","v":""}]
[null,null,null,null,null,null," ",null,0,null,"",25,null,0,null,null,null,null,null,null,null,null,null,null,null,null,"",{"$f":"NoBlanks(J28:J525)","v":""}]
[null,null,null,null,null,null," ",null,0,null,"",25,null,0,null,null,null,null,null,null,null,null,null,null,null,null,"",{"$f":"NoBlanks(J29:J526)","v":""}]
[null,null,null,null,null,null," ",null,0,null,"",25,null,0,null,null,null,null,null,null,null,null,null,null,null,null,"",{"$f":"NoBlanks(J30:J527)","v":""}]
[null,null,null,null,null,null," ",null,0,null,"",25,null,0,null,null,null,null,null,null,null,null,null,null,null,null,"",{"$f":"NoBlanks(J31:J528)","v":""}]
[null,null,null,null,null,null," ",null,0,null,"",25,null,0,null,null,null,null,null,null,null,null,null,null,null,null,"",{"$f":"NoBlanks(J32:J529)","v":""}]
[null,null,null,null,null,null," ",null,0,null,"",25,null,0,null,null,null,null,null,null,null,null,null,null,null,null,"",{"$f":"NoBlanks(J33:J530)","v":""}]
[null,null,null,null,null,null," ",null,0,null,"",25,null,0,null,null,null,null,null,null,null,null,null,null,null,null,"",{"$f":"NoBlanks(J34:J531)","v":""}]
[null,null,null,null,null,null," ",null,0,null,"",25,null,0,null,null,null,null,null,null,null,null,null,null,null,null,"",{"$f":"NoBlanks(J35:J532)","v":""}]
[null,null,null,null,null,null," ",null,0,null,"",25,null,0,null,null,null,null,null,null,null,null,null,null,null,null,"",{"$f":"NoBlanks(J36:J533)","v":""}]
[null,null,null,null,null,null," ",null,0,null,"",25,null,0,null,null,null,null,null,null,null,null,null,null,null,null,"",{"$f":"NoBlanks(J37:J534)","v":""}]
[null,null,null,null,null,null," ",null,0,null,"",25,null,0,null,null,null,null,null,null,null,null,null,null,null,null,"",{"$f":"NoBlanks(J38:J535)","v":""}]
[null,null,null,null,null,null," ",null,0,null,"",25,null,0,null,null,null,null,null,null,null,null,null,null,null,null,"",{"$f":"NoBlanks(J39:J536)","v":""}]
[null,null,null,null,null,null," ",null,0,null,"",25,null,0,null,null,null,null,null,null,null,null,null,null,null,null,"",{"$f":"NoBlanks(J40:J537)","v":""}]
[null,null,null,null,null,null," ",null,0,null,"",25,null,0,null,null,null,null,null,null,null,null,null,null,null,null,"",{"$f":"NoBlanks(J41:J538)","v":""}]
[null,null,null,null,null,null," ",null,0,null,"",25,null,0,null,null,null,null,null,null,null,null,null,null,null,null,"",{"$f":"NoBlanks(J42:J539)","v":""}]
[null,null,null,null,null,null," ",null,0,null,"",25,null,0,null,null,null,null,null,null,null,null,null,null,null,null,"",{"$f":"NoBlanks(J43:J540)","v":""}]
[null,null,null,null,null,null," ",null,0,null,"",25,null,0,null,null,null,null,null,null,null,null,null,null,null,null,"",{"$f":"NoBlanks(J44:J541)","v":""}]
[null,null,null,null,null,null," ",null,0,null,"",25,null,0,null,null,null,null,null,null,null,null,null,null,null,null,"",{"$f":"NoBlanks(J45:J542)","v":""}]
[null,null,null,null,null,null," ",null,0,null,"",25,null,0,null,null,null,null,null,null,null,null,null,null,null,null,"",{"$f":"NoBlanks(J46:J543)","v":""}]
[null,null,null,null,null,null," ",null,0,null,"",25,null,0,null,null,null,null,null,null,null,null,null,null,null,null,"",{"$f":"NoBlanks(J47:J544)","v":""}]
[null,null,null,null,null,null," ",null,0,null,"",25,null,0,null,null,null,null,null,null,null,null,null,null,null,null,"",{"$f":"NoBlanks(J48:J545)","v":""}]
[null,null,null,null,null,null," ",null,0,null,"",25,null,0,null,null,null,null,null,null,null,null,null,null,null,null,"",{"$f":"NoBlanks(J49:J546)","v":""}]
[null,null,null,null,null,null," ",null,0,null,"",25,null,0,null,null,null,null,null,null,null,null,null,null,null,null,"",{"$f":"NoBlanks(J50:J547)","v":""}]
[null,null,null,null,null,null," ",null,0,null,"",25,null,0,null,null,null,null,null,null,null,null,null,null,null,null,"",{"$f":"NoBlanks(J51:J548)","v":""}]
[null,null,null,null,null,null," ",null,0,null,"",25,null,0,null,null,null,null,null,null,null,null,null,null,null,null,"",{"$f":"NoBlanks(J52:J549)","v":""}]
[null,null,null,null,null,null," ",null,0,null,"",25,null,0,null,null,null,null,null,null,null,null,null,null,null,null,"",{"$f":"NoBlanks(J53:J550)","v":""}]
[null,null,null,null,null,null," ",null,0,null,"",25,null,0,null,null,null,null,null,null,null,null,null,null,null,null,"",{"$f":"NoBlanks(J54:J551)","v":""}]
[null,null,null,null,null,null," ",null,0,null,"",25,null,0,null,null,null,null,null,null,null,null,null,null,null,null,{"$f":"IF(K52=\"\",\"\",J52)","v":""},{"$f":"NoBlanks(J55:J552)","v":""}]
[null,null,null,null,null,null," ",null,0,null,"",25,null,0,null,null,null,null,null,null,null,null,null,null,null,null,"",{"$f":"NoBlanks(J56:J553)","v":""}]
[null,null,null,null,null,null," ",null,0,null,"",25,null,0,null,null,null,null,null,null,null,null,null,null,null,null,"",{"$f":"NoBlanks(J57:J554)","v":""}]
[null,null,null,null,null,null," ",null,0,null,"",25,null,0,null,null,null,null,null,null,null,null,null,null,null,null,"",{"$f":"NoBlanks(J58:J555)","v":""}]
[null,null,null,null,null,null," ",null,0,null,"",25,null,0,null,null,null,null,null,null,null,null,null,null,null,null,"",{"$f":"NoBlanks(J59:J556)","v":""}]
[null,null,null,null,null,null," ",null,0,null,"",25,null,0,null,null,null,null,null,null,null,null,null,null,null,null,"",{"$f":"NoBlanks(J60:J557)","v":""}]
[null,null,null,null,null,null," ",null,0,null,"",25,null,0,null,null,null,null,null,null,null,null,null,null,null,null,"",{"$f":"NoBlanks(J61:J558)","v":""}]
[null,null,null,null,null,null," ",null,0,null,"",25,null,0,null,null,null,null,null,null,null,null,null,null,null,null,"",{"$f":"NoBlanks(J62:J559)","v":""}]
[null,null,null,null,null,null," ",null,0,null,"",25,null,0,null,null,null,null,null,null,null,null,null,null,null,null,"",{"$f":"NoBlanks(J63:J560)","v":""}]
[null,null,null,null,null,null," ",null,0,null,{"$f":"IF(AND(I65=\"\",J65<>\"\"),H65,\"\")","v":""},25,null,0,null,null,null,null,null,null,null,null,null,null,null,null,"",{"$f":"NoBlanks(J64:J561)","v":""}]
[null,null,null,null,null,null," ",null,0,null,{"$f":"IF(AND(I66=\"\",J66<>\"\"),H66,\"\")","v":""},25,null,0,null,null,null,null,null,null,null,null,null,null,null,null,"",{"$f":"NoBlanks(J65:J562)","v":""}]
[null,null,null,null,null,null," ",null,{"$f":"IF(J67<>\"\",\"\",H67)","v":0},null,"",25,null,0,null,null,null,null,null,null,null,null,null,null,null,null,"",{"$f":"NoBlanks(J66:J563)","v":""}]
[null,null,null,null,null,null," ",null,0,null,"",25,null,{"$f":"IF(M68=\"Extractor\",62.5,0)","v":0},null,null,null,null,null,null,null,null,null,null,null,null,"",{"$f":"NoBlanks(J67:J564)","v":""}]
[null,null,null,null,null,null," ",null,0,null,"",25,null,0,null,null,null,null,null,null,null,null,null,null,null,null,"",{"$f":"NoBlanks(J68:J565)","v":""}]
[null,null,null,null,null,null," ",null,0,null,"",25,null,0,null,null,null,null,null,null,null,null,null,null,null,null,"",{"$f":"NoBlanks(J69:J566)","v":""}]
[null,null,null,null,null,null," ",null,0,null,"",25,null,0,null,null,null,null,null,null,null,null,null,null,null,null,"",{"$f":"NoBlanks(J70:J567)","v":""}]
[null,null,null,null,null,null," "," ",null,null,null,null,null,null,null,null,null,null,null,null,null,null,null,null,null,null,"",{"$f":"NoBlanks(J71:J568)","v":""}]
[null,null,null,null,null,null," "," ",null,null,null,null,null,null,null,null,null,null,null,null,null,null,null,null,null,null,"",{"$f":"NoBlanks(J72:J569)","v":""}]
[null,null,null,null,null,null," "," ",null,null,null,null,null,null,null,null,null,null,null,null,null,null,null,null,null,null,"",{"$f":"NoBlanks(J73:J570)","v":""}]
[null,null,null,null,null,null," "," ",null,null,null,null,null,null,null,null,null,null,null,null,null,null,null,null,null,null,"",{"$f":"NoBlanks(J74:J571)","v":""}]
[null,null,null,null,null,null," "," ",null,null,null,null,null,null,null,null,null,null,null,null,null,null,null,null,null,null,"",{"$f":"NoBlanks(J75:J572)","v":""}]
[null,null,null,null,null,null," "," ",null,null,null,null,null,null,null,null,null,null,null,null,null,null,null,null,null,null,"",{"$f":"NoBlanks(J76:J573)","v":""}]
[null,null,null,null,null,null," "," ",null,null,null,null,null,null,null,null,null,null,null,null,null,null,null,null,null,null,"",{"$f":"NoBlanks(J77:J574)","v":""}]
[null,null,null,null,null,null," "," ",null,null,null,null,null,null,null,null,null,null,null,null,null,null,null,null,null,null,"",{"$f":"NoBlanks(J78:J575)","v":""}]
[null,null,null,null,null,null," "," ",null,null,null,null,null,null,null,null,null,null,null,null,null,null,null,null,null,null,"",{"$f":"NoBlanks(J79:J576)","v":""}]
[null,null,null,null,null,null," "," ",null,null,null,null,null,null,null,null,null,null,null,null,null,null,null,null,null,null,"",{"$f":"NoBlanks(J80:J577)","v":""}]
[null,null,null,null,null,null," "," ",null,null,null,null,null,null,null,null,null,null,null,null,null,null,null,null,null,null,"",{"$f":"NoBlanks(J81:J578)","v":""}]
[null,null,null,null,null,null," "," ",null,null,null,null,null,null,null,null,null,null,null,null,null,null,null,null,null,null,"",{"$f":"NoBlanks(J82:J579)","v":""}]
[null,null,null,null,null,null," "," ",null,null,null,null,null,null,null,null,null,null,null,null,null,null,null,null,null,null,"",{"$f":"NoBlanks(J83:J580)","v":""}]
[null,null,null,null,null,null," "," ",null,null,null,null,null,null,null,null,null,null,null,null,null,null,null,null,null,null,"",{"$f":"NoBlanks(J84:J581)","v":""}]
[null,null,null,null,null,null," "," ",null,null,null,null,null,null,null,null,null,null,null,null,null,null,null,null,null,null,"",{"$f":"NoBlanks(J85:J582)","v":""}]
[null,null,null,null,null,null," "," ",null,null,null,null,null,null,null,null,null,null,null,null,null,null,null,null,null,null,"",{"$f":"NoBlanks(J86:J583)","v":""}]
[null,null,null,null,null,null," "," ",null,null,null,null,null,null,null,null,null,null,null,null,null,null,null,null,null,null,{"$f":"IF(K84=\"\",\"\",J84)","v":""},{"$f":"NoBlanks(J87:J584)","v":""}]
[null,null,null,null,null,null," "," ",null,null,null,null,null,null,null,null,null,null,null,null,null,null,null,null,null,null,"",{"$f":"NoBlanks(J88:J585)","v":""}]
[null,null,null,null,null,null," "," ",null,null,null,null,null,null,null,null,null,null,null,null,null,null,null,null,null,null,"",{"$f":"NoBlanks(J89:J586)","v":""}]
[null,null,null,null,null,null," "," ",null,null,null,null,null,null,null,null,null,null,null,null,null,null,null,null,null,null,"",{"$f":"NoBlanks(J90:J587)","v":""}]
[null,null,null,null,null,null," "," ",null,null,null,null,null,null,null,null,null,null,null,null,null,null,null,null,null,null,"",{"$f":"NoBlanks(J91:J588)","v":""}]
[null,null,null,null,null,null," "," ",null,null,null,null,null,null,null,null,null,null,null,null,null,null,null,null,null,null,"",{"$f":"NoBlanks(J92:J589)","v":""}]
[null,null,null,null,null,null," "," ",null,null,null,null,null,null,null,null,null,null,null,null,null,null,null,null,null,null,"",{"$f":"NoBlanks(J93:J590)","v":""}]
[null,null,null,null,null,null," ",null,null,null,null,null,null,null,null,null,null,null,null,null,null,null,null,null,null,null,"",{"$f":"NoBlanks(J94:J591)","v":""}]
[null,null,null,null,null,null," ",null,null,null,null,null,null,null,null,null,null,null,null,null,null,null,null,null,null,null,"",{"$f":"NoBlanks(J95:J592)","v":""}]
[null,null,null,null,null,null," ",null,null,null,null,null,null,null,null,null,null,null,null,null,null,null,null,null,null,null,"",{"$f":"NoBlanks(J96:J593)","v":""}]
[null,null,null,null,null,null," ",null,null,null,null,null,null,null,null,null,null,null,null,null,null,null,null,null,null,null,"",{"$f":"NoBlanks(J97:J594)","v":""}]
[null,null,null,null,null,null," ",null,null,null,null,null,null,null,null,null,null,null,null,null,null,null,null,null,null,null,"",{"$f":"NoBlanks(J98:J595)","v":""}]
[null,null,null,null,null,null," ",null,null,null,null,null,null,null,null,null,null,null,null,null,null,null,null,null,null,null,"",{"$f":"NoBlanks(J99:J596)","v":""}]
[null,null,null,null,null,null," ",null,null,null,null,null,null,null,null,null,null,null,null,null,null,null,null,null,null,null,"",{"$f":"NoBlanks(J100:J597)","v":""}]
[null,null,null,null,null,null," ",null,null,null,null,null,null,null,null,null,null,null,null,null,null,null,null,null,null,null,"",{"$f":"NoBlanks(J101:J598)","v":""}]
[null,null,null,null,null,null," ",null,null,null,null,null,null,null,null,null,null,null,null,null,null,null,null,null,null,null,null,{"$f":"NoBlanks(J102:J599)","v":""}]
[null,null,null,null,null,null," ",null,null,null,null,null,null,null,null,null,null,null,null,null,null,null,null,null,null,null,null,{"$f":"NoBlanks(J103:J600)","v":""}]
[null,null,null,null,null,null," ",null,null,null,null,null,null,null,null,null,null,null,null,null,null,null,null,null,null,null,null,{"$f":"NoBlanks(J104:J601)","v":""}]
[null,null,null,null,null,null," ",null,null,null,null,null,null,null,null,null,null,null,null,null,null,null,null,null,null,null,null,{"$f":"NoBlanks(J105:J602)","v":""}]
[null,null,null,null,null,null," ",null,null,null,null,null,null,null,null,null,null,null,null,null,null,null,null,null,null,null,null,{"$f":"NoBlanks(J106:J603)","v":""}]
[null,null,null,null,null,null," ",null,null,null,null,null,null,null,null,null,null,null,null,null,null,null,null,null,null,null,null,{"$f":"NoBlanks(J107:J604)","v":""}]
[null,null,null,null,null,null," ",null,null,null,null,null,null,null,null,null,null,null,null,null,null,null,null,null,null,null,null,{"$f":"NoBlanks(J108:J605)","v":""}]
[null,null,null,null,null,null," ",null,null,null,null,null,null,null,null,null,null,null,null,null,null,null,null,null,null,null,null,{"$f":"NoBlanks(J109:J606)","v":""}]
[null,null,null,null,null,null," ",null,null,null,null,null,null,null,null,null,null,null,null,null,null,null,null,null,null,null,null,{"$f":"NoBlanks(J110:J607)","v":""}]
[null,null,null,null,null,null," ",null,null,null,null,null,null,null,null,null,null,null,null,null,null,null,null,null,null,null,null,{"$f":"NoBlanks(J111:J608)","v":""}]
[null,null,null,null,null,null," ",null,null,null,null,null,null,null,null,null,null,null,null,null,null,null,null,null,null,null,null,{"$f":"NoBlanks(J112:J609)","v":""}]
[null,null,null,null,null,null," ",null,null,null,null,null,null,null,null,null,null,null,null,null,null,null,null,null,null,null,null,{"$f":"NoBlanks(J113:J610)","v":""}]
[null,null,null,null,null,null," ",null,null,null,null,null,null,null,null,null,null,null,null,null,null,null,null,null,null,null,null,{"$f":"NoBlanks(J114:J611)","v":""}]
[null,null,null,null,null,null," ",null,null,null,null,null,null,null,null,null,null,null,null,null,null,null,null,null,null,null,null,{"$f":"NoBlanks(J115:J612)","v":""}]
[null,null,null,null,null,null," ",null,null,null,null,null,null,null,null,null,null,null,null,null,null,null,null,null,null,null,null,{"$f":"NoBlanks(J116:J613)","v":""}]
[null,null,null,null,null,null," ",null,null,null,null,null,null,null,null,null,null,null,null,null,null,null,null,null,null,null,null,{"$f":"NoBlanks(J117:J614)","v":""}]
[null,null,null,null,null,null," ",null,null,null,null,null,null,null,null,null,null,null,null,null,null,null,null,null,null,null,null,{"$f":"NoBlanks(J118:J615)","v":""}]
[null,null,null,null,null,null," ",null,null,null,null,null,null,null,null,null,null,null,null,null,null,null,null,null,null,null,null,{"$f":"NoBlanks(J119:J616)","v":""}]
[null,null,null,null,null,null," ",null,null,null,null,null,null,null,null,null,null,null,null,null,null,null,null,null,null,null,null,{"$f":"NoBlanks(J120:J617)","v":""}]
[null,null,null,null,null,null," ",null,null,null,null,null,null,null,null,null,null,null,null,null,null,null,null,null,null,null,null,{"$f":"NoBlanks(J121:J618)","v":""}]
[null,null,null,null,null,null," ",null,null,null,null,null,null,null,null,null,null,null,null,null,null,null,null,null,null,null,null,{"$f":"NoBlanks(J122:J619)","v":""}]
[null,null,null,null,null,null," ",null,null,null,null,null,null,null,null,null,null,null,null,null,null,null,null,null,null,null,null,{"$f":"NoBlanks(J123:J620)","v":""}]
[null,null,null,null,null,null," ",null,null,null,null,null,null,null,null,null,null,null,null,null,null,null,null,null,null,null,null,{"$f":"NoBlanks(J124:J621)","v":""}]
[null,null,null,null,null,null," ",null,null,null,null,null,null,null,null,null,null,null,null,null,null,null,null,null,null,null,null,{"$f":"NoBlanks(J125:J622)","v":""}]
[null,null,null,null,null,null," ",null,null,null,null,null,null,null,null,null,null,null,null,null,null,null,null,null,null,null,null,{"$f":"NoBlanks(J126:J623)","v":""}]
[null,null,null,null,null,null," ",null,null,null,null,null,null,null,null,null,null,null,null,null,null,null,null,null,null,null,null,{"$f":"NoBlanks(J127:J624)","v":""}]
[null,null,null,null,null,null," ",null,null,null,null,null,null,null,null,null,null,null,null,null,null,null,null,null,null,null,null,{"$f":"NoBlanks(J128:J625)","v":""}]
[null,null,null,null,null,null," ",null,null,null,null,null,null,null,null,null,null,null,null,null,null,null,null,null,null,null,null,{"$f":"NoBlanks(J129:J626)","v":""}]
[null,null,null,null,null,null," ",null,null,null,null,null,null,null,null,null,null,null,null,null,null,null,null,null,null,null,null,{"$f":"NoBlanks(J130:J627)","v":""}]
[null,null,null,null,null,null," ",null,null,null,null,null,null,null,null,null,null,null,null,null,null,null,null,null,null,null,null,{"$f":"NoBlanks(J131:J628)","v":""}]
[null,null,null,null,null,null," ",null,null,null,null,null,null,null,null,null,null,null,null,null,null,null,null,null,null,null,null,{"$f":"NoBlanks(J132:J629)","v":""}]
[null,null,null,null,null,null," ",null,null,null,null,null,null,null,null,null,null,null,null,null,null,null,null,null,null,null,null,{"$f":"NoBlanks(J133:J630)","v":""}]
[null,null,null,null,null,null," ",null,null,null,null,null,null,null,null,null,null,null,null,null,null,null,null,null,null,null,null,{"$f":"NoBlanks(J134:J631)","v":""}]
[null,null,null,null,null,null," ",null,null,null,null,null,null,null,null,null,null,null,null,null,null,null,null,null,null,null,null,{"$f":"NoBlanks(J135:J632)","v":""}]
[null,null,null,null,null,null," ",null,null,null,null,null,null,null,null,null,null,null,null,null,null,null,null,null,null,null,null,{"$f":"NoBlanks(J136:J633)","v":""}]
[null,null,null,null,null,null," ",null,null,null,null,null,null,null,null,null,null,null,null,null,null,null,null,null,null,null,null,{"$f":"NoBlanks(J137:J634)","v":""}]
[null,null,null,null,null,null," ",null,null,null,null,null,null,null,null,null,null,null,null,null,null,null,null,null,null,null,null,{"$f":"NoBlanks(J138:J635)","v":""}]
[null,null,null,null,null,null," ",null,null,null,null,null,null,null,null,null,null,null,null,null,null,null,null,null,null,null,null,{"$f":"NoBlanks(J139:J636)","v":""}]
[null,null,null,null,null,null," ",null,null,null,null,null,null,null,null,null,null,null,null,null,null,null,null,null,null,null,null,{"$f":"NoBlanks(J140:J637)","v":""}]
[null,null,null,null,null,null," ",null,null,null,null,null,null,null,null,null,null,null,null,null,null,null,null,null,null,null,null,{"$f":"NoBlanks(J141:J638)","v":""}]
[null,null,null,null,null,null," ",null,null,null,null,null,null,null,null,null,null,null,null,null,null,null,null,null,null,null,null,{"$f":"NoBlanks(J142:J639)","v":""}]
[null,null,null,null,null,null," ",null,null,null,null,null,null,null,null,null,null,null,null,null,null,null,null,null,null,null,null,{"$f":"NoBlanks(J143:J640)","v":""}]
[null,null,null,null,null,null," ",null,null,null,null,null,null,null,null,null,null,null,null,null,null,null,null,null,null,null,null,{"$f":"NoBlanks(J144:J641)","v":""}]
[null,null,null,null,null,null," ",null,null,null,null,null,null,null,null,null,null,null,null,null,null,null,null,null,null,null,null,{"$f":"NoBlanks(J145:J642)","v":""}]
[null,null,null,null,null,null," ",null,null,null,null,null,null,null,null,null,null,null,null,null,null,null,null,null,null,null,null,{"$f":"NoBlanks(J146:J643)","v":""}]
[null,null,null,null,null,null," ",null,null,null,null,null,null,null,null,null,null,null,null,null,null,null,null,null,null,null,null,{"$f":"NoBlanks(J147:J644)","v":""}]
[null,null,null,null,null,null," ",null,null,null,null,null,null,null,null,null,null,null,null,null,null,null,null,null,null,null,null,{"$f":"NoBlanks(J148:J645)","v":""}]
[null,null,null,null,null,null," ",null,null,null,null,null,null,null,null,null,null,null,null,null,null,null,null,null,null,null,null,{"$f":"NoBlanks(J149:J646)","v":""}]
[null,null,null,null,null,null," ",null,null,null,null,null,null,null,null,null,null,null,null,null,null,null,null,null,null,null,null,{"$f":"NoBlanks(J150:J647)","v":""}]
[null,null,null,null,null,null," ",null,null,null,null,null,null,null,null,null,null,null,null,null,null,null,null,null,null,null,null,{"$f":"NoBlanks(J151:J648)","v":""}]
[null,null,null,null,null,null," ",null,null,null,null,null,null,null,null,null,null,null,null,null,null,null,null,null,null,null,null,{"$f":"NoBlanks(J152:J649)","v":""}]
[null,null,null,null,null,null," ",null,null,null,null,null,null,null,null,null,null,null,null,null,null,null,null,null,null,null,null,{"$f":"NoBlanks(J153:J650)","v":""}]
[null,null,null,null,null,null," ",null,null,null,null,null,null,null,null,null,null,null,null,null,null,null,null,null,null,null,null,{"$f":"NoBlanks(J154:J651)","v":""}]
[null,null,null,null,null,null," ",null,null,null,null,null,null,null,null,null,null,null,null,null,null,null,null,null,null,null,null,{"$f":"NoBlanks(J155:J652)","v":""}]
[null,null,null,null,null,null," ",null,null,null,null,null,null,null,null,null,null,null,null,null,null,null,null,null,null,null,null,{"$f":"NoBlanks(J156:J653)","v":""}]
[null,null,null,null,null,null," ",null,null,null,null,null,null,null,null,null,null,null,null,null,null,null,null,null,null,null,null,{"$f":"NoBlanks(J157:J654)","v":""}]
[null,null,null,null,null,null," ",null,null,null,null,null,null,null,null,null,null,null,null,null,null,null,null,null,null,null,null,{"$f":"NoBlanks(J158:J655)","v":""}]
[null,null,null,null,null,null," ",null,null,null,null,null,null,null,null,null,null,null,null,null,null,null,null,null,null,null,null,{"$f":"NoBlanks(J159:J656)","v":""}]
[null,null,null,null,null,null," ",null,null,null,null,null,null,null,null,null,null,null,null,null,null,null,null,null,null,null,null,{"$f":"NoBlanks(J160:J657)","v":""}]
[null,null,null,null,null,null," ",null,null,null,null,null,null,null,null,null,null,null,null,null,null,null,null,null,null,null,null,{"$f":"NoBlanks(J161:J658)","v":""}]
[null,null,null,null,null,null," ",null,null,null,null,null,null,null,null,null,null,null,null,null,null,null,null,null,null,null,null,{"$f":"NoBlanks(J162:J659)","v":""}]
[null,null,null,null,null,null," ",null,null,null,null,null,null,null,null,null,null,null,null,null,null,null,null,null,null,null,null,{"$f":"NoBlanks(J163:J660)","v":""}]
[null,null,null,null,null,null," ",null,null,null,null,null,null,null,null,null,null,null,null,null,null,null,null,null,null,null,null,{"$f":"NoBlanks(J164:J661)","v":""}]
[null,null,null,null,null,null," ",null,null,null,null,null,null,null,null,null,null,null,null,null,null,null,null,null,null,null,null,{"$f":"NoBlanks(J165:J662)","v":""}]
[null,null,null,null,null,null," ",null,null,null,null,null,null,null,null,null,null,null,null,null,null,null,null,null,null,null,null,{"$f":"NoBlanks(J166:J663)","v":""}]
[null,null,null,null,null,null," ",null,null,null,null,null,null,null,null,null,null,null,null,null,null,null,null,null,null,null,null,{"$f":"NoBlanks(J167:J664)","v":""}]
[null,null,null,null,null,null," ",null,null,null,null,null,null,null,null,null,null,null,null,null,null,null,null,null,null,null,null,{"$f":"NoBlanks(J168:J665)","v":""}]
[null,null,null,null,null,null," ",null,null,null,null,null,null,null,null,null,null,null,null,null,null,null,null,null,null,null,null,{"$f":"NoBlanks(J169:J666)","v":""}]
[null,null,null,null,null,null," ",null,null,null,null,null,null,null,null,null,null,null,null,null,null,null,null,null,null,null,null,{"$f":"NoBlanks(J170:J667)","v":""}]
[null,null,null,null,null,null," ",null,null,null,null,null,null,null,null,null,null,null,null,null,null,null,null,null,null,null,null,{"$f":"NoBlanks(J171:J668)","v":""}]
[null,null,null,null,null,null," ",null,null,null,null,null,null,null,null,null,null,null,null,null,null,null,null,null,null,null,null,{"$f":"NoBlanks(J172:J669)","v":""}]
[null,null,null,null,null,null," ",null,null,null,null,null,null,null,null,null,null,null,null,null,null,null,null,null,null,null,null,{"$f":"NoBlanks(J173:J670)","v":""}]
[null,null,null,null,null,null," ",null,null,null,null,null,null,null,null,null,null,null,null,null,null,null,null,null,null,null,null,{"$f":"NoBlanks(J174:J671)","v":""}]
[null,null,null,null,null,null," ",null,null,null,null,null,null,null,null,null,null,null,null,null,null,null,null,null,null,null,null,{"$f":"NoBlanks(J175:J672)","v":""}]
[null,null,null,null,null,null," ",null,null,null,null,null,null,null,null,null,null,null,null,null,null,null,null,null,null,null,null,{"$f":"NoBlanks(J176:J673)","v":""}]
[null,null,null,null,null,null," ",null,null,null,null,null,null,null,null,null,null,null,null,null,null,null,null,null,null,null,null,{"$f":"NoBlanks(J177:J674)","v":""}]
[null,null,null,null,null,null," ",null,null,null,null,null,null,null,null,null,null,null,null,null,null,null,null,null,null,null,null,{"$f":"NoBlanks(J178:J675)","v":""}]
[null,null,null,null,null,null," ",null,null,null,null,null,null,null,null,null,null,null,null,null,null,null,null,null,null,null,null,{"$f":"NoBlanks(J179:J676)","v":""}]
[null,null,null,null,null,null," ",null,null,null,null,null,null,null,null,null,null,null,null,null,null,null,null,null,null,null,null,{"$f":"NoBlanks(J180:J677)","v":""}]
[null,null,null,null,null,null," ",null,null,null,null,null,null,null,null,null,null,null,null,null,null,null,null,null,null,null,null,{"$f":"NoBlanks(J181:J678)","v":""}]
[null,null,null,null,null,null," ",null,null,null,null,null,null,null,null,null,null,null,null,null,null,null,null,null,null,null,null,{"$f":"NoBlanks(J182:J679)","v":""}]
[null,null,null,null,null,null," ",null,null,null,null,null,null,null,null,null,null,null,null,null,null,null,null,null,null,null,null,{"$f":"NoBlanks(J183:J680)","v":""}]
[null,null,null,null,null,null," ",null,null,null,null,null,null,null,null,null,null,null,null,null,null,null,null,null,null,null,null,{"$f":"NoBlanks(J184:J681)","v":""}]
[null,null,null,null,null,null," ",null,null,null,null,null,null,null,null,null,null,null,null,null,null,null,null,null,null,null,null,{"$f":"NoBlanks(J185:J682)","v":""}]
[null,null,null,null,null,null," ",null,null,null,null,null,null,null,null,null,null,null,null,null,null,null,null,null,null,null,null,{"$f":"NoBlanks(J186:J683)","v":""}]
[null,null,null,null,null,null," ",null,null,null,null,null,null,null,null,null,null,null,null,null,null,null,null,null,null,null,null,{"$f":"NoBlanks(J187:J684)","v":""}]
[null,null,null,null,null,null," ",null,null,null,null,null,null,null,null,null,null,null,null,null,null,null,null,null,null,null,null,{"$f":"NoBlanks(J188:J685)","v":""}]
[null,null,null,null,null,null," ",null,null,null,null,null,null,null,null,null,null,null,null,null,null,null,null,null,null,null,null,{"$f":"NoBlanks(J189:J686)","v":""}]
[null,null,null,null,null,null," ",null,null,null,null,null,null,null,null,null,null,null,null,null,null,null,null,null,null,null,null,{"$f":"NoBlanks(J190:J687)","v":""}]
[null,null,null,null,null,null," ",null,null,null,null,null,null,null,null,null,null,null,null,null,null,null,null,null,null,null,null,{"$f":"NoBlanks(J191:J688)","v":""}]
[null,null,null,null,null,null," ",null,null,null,null,null,null,null,null,null,null,null,null,null,null,null,null,null,null,null,null,{"$f":"NoBlanks(J192:J689)","v":""}]
[null,null,null,null,null,null," ",null,null,null,null,null,null,null,null,null,null,null,null,null,null,null,null,null,null,null,null,{"$f":"NoBlanks(J193:J690)","v":""}]
[null,null,null,null,null,null," ",null,null,null,null,null,null,null,null,null,null,null,null,null,null,null,null,null,null,null,null,{"$f":"NoBlanks(J194:J691)","v":""}]
[null,null,null,null,null,null," ",null,null,null,null,null,null,null,null,null,null,null,null,null,null,null,null,null,null,null,null,{"$f":"NoBlanks(J195:J692)","v":""}]
[null,null,null,null,null,null," ",null,null,null,null,null,null,null,null,null,null,null,null,null,null,null,null,null,null,null,null,{"$f":"NoBlanks(J196:J693)","v":""}]
[null,null,null,null,null,null," ",null,null,null,null,null,null,null,null,null,null,null,null,null,null,null,null,null,null,null,null,{"$f":"NoBlanks(J197:J694)","v":""}]
[null,null,null,null,null,null," "]
[null,null,null,null,null,null," "]
[null,null,null,null,null,null," "]
[null,null,null,null,null,null," "]
[null,null,null,null,null,null," "]
[null,null,null,null,null,null," "]
[null,null,null,null,null,null," "]
[null,null,null,null,null,null," "]
[null,null,null,null,null,null," "]
[null,null,null,null,null,null," "]
[null,null,null,null,null,null," "]
[null,null,null,null,null,null," "]
[null,null,null,null,null,null," "]
[null,null,null,null,null,null," "]
[null,null,null,null,null,null," "]
[null,null,null,null,null,null," "]
[null,null,null,null,null,null," "]
[null,null,null,null,null,null," "]
[null,null,null,null,null,null," "]
[null,null,null,null,null,null," "]
[null,null,null,null,null,null," "]
[null,null,null,null,null,null," "]
[null,null,null,null,null,null," "]
[null,null,null,null,null,null," "]
[null,null,null,null,null,null," "]
[null,null,null,null,null,null," "]
[null,null,null,null,null,null," "]
[null,null,null,null,null,null," "]
[null,null,null,null,null,null," "]
[null,null,null,null,null,null," "]
[null,null,null,null,null,null," "]
[null,null,null,null,null,null," "]
[null,null,null,null,null,null," "]
[null,null,null,null,null,null," "]
[null,null,null,null,null,null," "]
[null,null,null,null,null,null," "]
[null,null,null,null,null,null," "]
[null,null,null,null,null,null," "]
[null,null,null,null,null,null," "]
[null,null,null,null,null,null," "]
[null,null,null,null,null,null," "]
[null,null,null,null,null,null," "]
[null,null,null,null,null,null," "]
[null,null,null,null,null,null," "]
[null,null,null,null,null,null," "]
[null,null,null,null,null,null," "]
[null,null,null,null,null,null," "]
[null,null,null,null,null,null," "]
[null,null,null,null,null,null," "]
[null,null,null,null,null,null," "]
[null,null,null,null,null,null," "]
[null,null,null,null,null,null," "]
[null,null,null,null,null,null," "]
[null,null,null,null,null,null," "]
[null,null,null,null,null,null," "]
[null,null,null,null,null,null," "]
[null,null,null,null,null,null," "]
[null,null,null,null,null,null," "]
[null,null,null,null,null,null," "]
[null,null,null,null,null,null," "]
[null,null,null,null,null,null," "]
[null,null,null,null,null,null," "]
[null,null,null,null,null,null," "]
[null,null,null,null,null,null," "]
[null,null,null,null,null,null," "]
[null,null,null,null,null,null," "]
[null,null,null,null,null,null," "]
[null,null,null,null,null,null," "]
[null,null,null,null,null,null," "]
[null,null,null,null,null,null," "]
[null,null,null,null,null,null," "]
[null,null,null,null,null,null," "]
[null,null,null,null,null,null," "]
[null,null,null,null,null,null," "]
[null,null,null,null,null,null," "]
[null,null,null,null,null,null," "]
[null,null,null,null,null,null," "]
[null,null,null,null,null,null," "]
[null,null,null,null,null,null," "]
[null,null,null,null,null,null," "]
[null,null,null,null,null,null," "]
[null,null,null,null,null,null," "]
[null,null,null,null,null,null," "]
[null,null,null,null,null,null," "]
[null,null,null,null,null,null," "]
[null,null,null,null,null,null," "]
[null,null,null,null,null,null," "]
[null,null,null,null,null,null," "]
[null,null,null,null,null,null," "]
[null,null,null,null,null,null," "]
[null,null,null,null,null,null," "]
[null,null,null,null,null,null," "]
[null,null,null,null,null,null," "]
[null,null,null,null,null,null," "]
[null,null,null,null,null,null," "]
[null,null,null,null,null,null," "]
[null,null,null,null,null,null," "]
[null,null,null,null,null,null," "]
[null,null,null,null,null,null," "]
[null,null,null,null,null,null," "]
[null,null,null,null,null,null," "]
[null,null,null,null,null,null," "]
[null,null,null,null,null,null," "]
[null,null,null,null,null,null," "]
[null,null,null,null,null,null," "]
[null,null,null,null,null,null," "]
[null,null,null,null,null,null," "]
[null,null,null,null,null,null," "]
[null,null,null,null,null,null," "]
[null,null,null,null,null,null," "]
[null,null,null,null,null,null," "]
[null,null,null,null,null,null," "]
[null,null,null,null,null,null," "]
[null,null,null,null,null,null," "]
[null,null,null,null,null,null," "]
[null,null,null,null,null,null," "]
[null,null,null,null,null,null," "]
[null,null,null,null,null,null," "]
[null,null,null,null,null,null," "]
[null,null,null,null,null,null," "]
[null,null,null,null,null,null," "]
[null,null,null,null,null,null," "]
[null,null,null,null,null,null," "]
[null,null,null,null,null,null," "]
[null,null,null,null,null,null," "]
[null,null,null,null,null,null," "]
[null,null,null,null,null,null," "]
[null,null,null,null,null,null," "]
[null,null,null,null,null,null," "]
[null,null,null,null,null,null," "]
[null,null,null,null,null,null," "]
[null,null,null,null,null,null," "]
[null,null,null,null,null,null," "]
[null,null,null,null,null,null," "]
[null,null,null,null,null,null," "]
[null,null,null,null,null,null," "]
[null,null,null,null,null,null," "]
[null,null,null,null,null,null," "]
[null,null,null,null,null,null," "]
[null,null,null,null,null,null," "]
[null,null,null,null,null,null," "]
[null,null,null,null,null,null," "]
[null,null,null,null,null,null," "]
[null,null,null,null,null,null," "]
[null,null,null,null,null,null," "]
[null,null,null,null,null,null," "]
[null,null,null,null,null,null," "]
[null,null,null,null,null,null," "]
[null,null,null,null,null,null," "]
[null,null,null,null,null,null," "]
[null,null,null,null,null,null," "]
[null,null,null,null,null,null," "]
[null,null,null,null,null,null," "]
[null,null,null,null,null,null," "]
[null,null,null,null,null,null," "]
[null,null,null,null,null,null," "]
[null,null,null,null,null,null," "]
[null,null,null,null,null,null," "]
[null,null,null,null,null,null," "]
[null,null,null,null,null,null," "]
[null,null,null,null,null,null," "]
[null,null,null,null,null,null," "]
[null,null,null,null,null,null," "]
[null,null,null,null,null,null," "]
[null,null,null,null,null,null," "]
[null,null,null,null,null,null," "]
[null,null,null,null,null,null," "]
[null,null,null,null,null,null," "]
[null,null,null,null,null,null," "]
[null,null,null,null,null,null," "]
[null,null,null,null,null,null," "]
[null,null,null,null,null,null," "]
[null,null,null,null,null,null," "]
[null,null,null,null,null,null," "]
[null,null,null,null,null,null," "]
[null,null,null,null,null,null," "]
[null,null,null,null,null,null," "]
[null,null,null,null,null,null," "]
[null,null,null,null,null,null," "]
[null,null,null,null,null,null," "]
[null,null,null,null,null,null," "]
[null,null,null,null,null,null," "]
[null,null,null,null,null,null," "]
[null,null,null,null,null,null," "]
[null,null,null,null,null,null," "]
[null,null,null,null,null,null," "]
[null,null,null,null,null,null," "]
[null,null,null,null,null,null," "]
[null,null,null,null,null,null," "]
[null,null,null,null,null,null," "]
[null,null,null,null,null,null," "]
[null,null,null,null,null,null," "]
[null,null,null,null,null,null," "]
[null,null,null,null,null,null," "]
[null,null,null,null,null,null," "]
[null,null,null,null,null,null," "]
[null,null,null,null,null,null," "]
[null,null,null,null,null,null," "]
[null,null,null,null,null,null," "]
[null,null,null,null,null,null," "]
[null,null,null,null,null,null," "]
[null,null,null,null,null,null," "]
[null,null,null,null,null,null," "]
[null,null,null,null,null,null," "]
[null,null,null,null,null,null," "]
[null,null,null,null,null,null," "]
[null,null,null,null,null,null," "]
[null,null,null,null,null,null," "]
[null,null,null,null,null,null," "]
[null,null,null,null,null,null," "]
[null,null,null,null,null,null," "]
[null,null,null,null,null,null," "]
[null,null,null,null,null,null," "]
[null,null,null,null,null,null," "]
[null,null,null,null,null,null," "]
[null,null,null,null,null,null," "]
[null,null,null,null,null,null," "]
[null,null,null,null,null,null," "]
[null,null,null,null,null,null," "]
[null,null,null,null,null,null," "]
[null,null,null,null,null,null," "]
[null,null,null,null,null,null," "]
[null,null,null,null,null,null," "]
[null,null,null,null,null,null," "]
[null,null,null,null,null,null," "]
[null,null,null,null,null,null," "]
[null,null,null,null,null,null," "]
[null,null,null,null,null,null," "]
[null,null,null,null,null,null," "]
[null,null,null,null,null,null," "]
[null,null,null,null,null,null," "]
[null,null,null,null,null,null," "]
[null,null,null,null,null,null," "]
[null,null,null,null,null,null," "]
[null,null,null,null,null,null," "]
[null,null,null,null,null,null," "]
[null,null,null,null,null,null," "]
[null,null,null,null,null,null," "]
[null,null,null,null,null,null," "]
[null,null,null,null,null,null," "]
[null,null,null,null,null,null," "]
[null,null,null,null,null,null," "]
[null,null,null,null,null,null," "]
[null,null,null,null,null,null," "]
[null,null,null,null,null,null," "]
[null,null,null,null,null,null," "]
[null,null,null,null,null,null," "]
[null,null,null,null,null,null," "]
[null,null,null,null,null,null," "]
[null,null,null,null,null,null," "]
[null,null,null,null,null,null," "]
[null,null,null,null,null,null," "]
[null,null,null,null,null,null," "]
[null,null,null,null,null,null," "]
[null,null,null,null,null,null," "]
[null,null,null,null,null,null," "]
[null,null,null,null,null,null," "]
[null,null,null,null,null,null," "]
[null,null,null,null,null,null," "]
[null,null,null,null,null,null," "]
[null,null,null,null,null,null," "]
[null,null,null,null,null,null," "]
[null,null,null,null,null,null," "]
[null,null,null,null,null,null," "]
[null,null,null,null,null,null," "]
[null,null,null,null,null,null," "]
[null,null,null,null,null,null," "]
[null,null,null,null,null,null," "]
[null,null,null,null,null,null," "]
[null,null,null,null,null,null," "]
[null,null,null,null,null,null," "]
[null,null,null,null,null,null," "]
[null,null,null,null,null,null," "]
[null,null,null,null,null,null," "]
[null,null,null,null,null,null," "]
[null,null,null,null,null,null," "]
[null,null,null,null,null,null," "]
[null,null,null,null,null,null," "]
[null,null,null,null,null,null," "]
[null,null,null,null,null,null," "]
[null,null,null,null,null,null," "]
[null,null,null,null,null,null," "]
[null,null,null,null,null,null," "]
[null,null,null,null,null,null," "]
[null,null,null,null,null,null," "]
[null,null,null,null,null,null," "]
[null,null,null,null,null,null," "]
[null,null,null,null,null,null," "]
[null,null,null,null,null,null," "]
[null,null,null,null,null,null," "]
[null,null,null,null,null,null," "]
[null,null,null,null,null,null," "]
[null,null,null,null,null,null," "]
[null,null,null,null,null,null," "]
[null,null,null,null,null,null," "]
[null,null,null,null,null,null," "]

{"sheet":"23-08-2019","index":4,"n_rows":493,"n_cols":31,"rows_kept":493,"cut":false,"hidden":false,"merged":[[1,19,1,21]]}
["Official time - work",null,null,null,null,null,null,null,null,null,null,null,null,null,null,"رجــــوع"]
["#","App. Date","Name","Surname","Pasaport No.","Date of birth","Note of status"," ","Paid $","Route","Unpaid $","GT","Case of appl","TG.Gov",null,"رجــــوع","رجــــوع",null,null,"TOTAL"]
[null,null,null,null,null,null,null," ",{"$f":"IF(J3<>\"\",\"\",H3)","v":""},"ihab",{"$f":"IF(AND(I3=\"\",J3<>\"\"),H3,\"\")","v":" "},{"$f":"IF(C3=\"\",\"\",25)","v":""},null,{"$f":"IF(M3=\"Extractor\",62.5,0)","v":0},null,null,null,"DONE",null,"Total amount",null,"Net profit",null,"Route","Coun of Rout","Total Unpaid",null,{"$f":"NoBlanks(J3:J100)","v":"ihab"},null,"Note of status","Count of Mistake"]
[null,null,null,null,null,null,null," "," ",null,{"$f":"IF(AND(I4=\"\",J4<>\"\"),H4,\"\")","v":""},"",null,0,null,null,null,"CANCELLED",null,{"$f":"SUM(H2:H70)","v":0},null,{"$f":"T4-V14","v":0},null,{"$f":"IF(ISERROR(INDEX($AB$3:$AB$70,MATCH(0,COUNTIF($X$3:X3,$AB$3:$AB$69),0))),\"\",INDEX($AB$3:$AB$69,MATCH(0,COUNTIF($X$3:X3,$AB$3:$AB$69),0)))","v":"ihab"},{"$f":"IF(X4=\"\",\"\",COUNTIF(J2:J100,X4))","v":1},{"$f":"IF(X4<>\"\",SUMPRODUCT(--($J$2:$J$69=X4),$K$2:$K$69),\"\")","v":0},null,{"$f":"NoBlanks(J3:J500)","v":"ihab"},null,"DONE",{"$f":"COUNTIF(C1:C69,\"Done\")","v":0}]
[null,null,null,null,null,null,null," "," ",null,"","",null,0,null,null,null,"REFUSED",null,null,null,null,null,{"$f":"IF(ISERROR(INDEX($AB$3:$AB$70,MATCH(0,COUNTIF($X$3:X4,$AB$3:$AB$69),0))),\"\",INDEX($AB$3:$AB$69,MATCH(0,COUNTIF($X$3:X4,$AB$3:$AB$69),0)))","v":""},"","",null,{"$f":"NoBlanks(J4:J501)","v":""},null,"CANCELLED",{"$f":"COUNTIF(C2:C70,\"Cancelled\")","v":0}]
[null,null,null,null,null,null,null," "," ",null,"","",null,0,null,null,null,"MISTAKE",null,"Total Paid",null,"Difrent amount",null,{"$f":"IF(ISERROR(INDEX($AB$3:$AB$70,MATCH(0,COUNTIF($X$3:X5,$AB$3:$AB$69),0))),\"\",INDEX($AB$3:$AB$69,MATCH(0,COUNTIF($X$3:X5,$AB$3:$AB$69),0)))","v":""},"","",null,{"$f":"NoBlanks(J5:J502)","v":""},null,"REFUSED",{"$f":"COUNTIF(C3:C71,\"Refused\")","v":0}]
[null,null,null,null,null,null,null," "," ",null,"","",null,0,null,null,null,"GREEN PASS.",null,{"$f":"SUM(I2:I70)","v":0},null,{"$f":"T4-(T7+T10)","v":0},null,{"$f":"IF(ISERROR(INDEX($AB$3:$AB$70,MATCH(0,COUNTIF($X$3:X6,$AB$3:$AB$69),0))),\"\",INDEX($AB$3:$AB$69,MATCH(0,COUNTIF($X$3:X6,$AB$3:$AB$69),0)))","v":""},{"$f":"IF(X7=\"\",\"\",COUNTIF(J5:J103,X7))","v":""},"",{"$f":"IF(K3=\"\",\"\",J3)","v":"ihab"},{"$f":"NoBlanks(J6:J503)","v":""},null,"MISTAKE IN DOB",{"$f":"COUNTIF(C4:C72,\"Mistake\")","v":0}]
[null,null,null,null,null,null,null," "," ",null,"","",null,0,null,null,null,null,null,null,null,null,null,{"$f":"IF(ISERROR(INDEX($AB$3:$AB$70,MATCH(0,COUNTIF($X$3:X7,$AB$3:$AB$69),0))),\"\",INDEX($AB$3:$AB$69,MATCH(0,COUNTIF($X$3:X7,$AB$3:$AB$69),0)))","v":""},{"$f":"IF(X8=\"\",\"\",COUNTIF(J6:J104,X8))","v":""},"","",{"$f":"NoBlanks(J7:J504)","v":""},null,"GREEN PASS",{"$f":"COUNTIF(C5:C73,\"Green Pass.\")","v":0}]
[null,null,null,null,null,null,null," "," ",null,"","",null,0,null,null,null,"official time + work",null,"Total UnPaid",null,"No. of applicants",null,{"$f":"IF(ISERROR(INDEX($AB$3:$AB$70,MATCH(0,COUNTIF($X$3:X8,$AB$3:$AB$69),0))),\"\",INDEX($AB$3:$AB$69,MATCH(0,COUNTIF($X$3:X8,$AB$3:$AB$69),0)))","v":""},"","","",{"$f":"NoBlanks(J8:J505)","v":""},null,"GREEN PASS",{"$f":"COUNTIF(C6:C74,\"Green Pass.\")","v":0}]
[null,null,null,null,null,null,null," "," ",null,"","",null,0,null,null,null,"official time - work",null,{"$f":"SUM(K2:K70)","v":0},null,{"$f":"COUNT(B:B)","v":0},null,{"$f":"IF(ISERROR(INDEX($AB$3:$AB$70,MATCH(0,COUNTIF($X$3:X9,$AB$3:$AB$69),0))),\"\",INDEX($AB$3:$AB$69,MATCH(0,COUNTIF($X$3:X9,$AB$3:$AB$69),0)))","v":""},"","","",{"$f":"NoBlanks(J9:J506)","v":""}]
[null,null,null,null,null,null,null," "," ",null,"","",null,0,null,null,null,"official holiday",null,null,null,null,null,{"$f":"IF(ISERROR(INDEX($AB$3:$AB$70,MATCH(0,COUNTIF($X$3:X10,$AB$3:$AB$69),0))),\"\",INDEX($AB$3:$AB$69,MATCH(0,COUNTIF($X$3:X10,$AB$3:$AB$69),0)))","v":""},"","","",{"$f":"NoBlanks(J10:J507)","v":""}]
[null,null,null,null,null,null,null," "," ",null,"","",null,0,null,null,null,"other",null,"Total GT",null,null,null,{"$f":"IF(ISERROR(INDEX($AB$3:$AB$70,MATCH(0,COUNTIF($X$3:X11,$AB$3:$AB$69),0))),\"\",INDEX($AB$3:$AB$69,MATCH(0,COUNTIF($X$3:X11,$AB$3:$AB$69),0)))","v":""},"","","",{"$f":"NoBlanks(J11:J508)","v":""}]
[null,null,null,null,null,null,null," "," ",null,"","",null,0,null,null,null,null,null,{"$f":"SUM(L2:L70)","v":0},null,"Cost amount",null,{"$f":"IF(ISERROR(INDEX($AB$3:$AB$70,MATCH(0,COUNTIF($X$3:X12,$AB$3:$AB$69),0))),\"\",INDEX($AB$3:$AB$69,MATCH(0,COUNTIF($X$3:X12,$AB$3:$AB$69),0)))","v":""},"","","",{"$f":"NoBlanks(J12:J509)","v":""}]
[null,null,null,null,null,null,null," "," ",null,"","",null,0,null,null,null,null,null,null,null,{"$f":"IF(AND(T13<>\"\",T16<>\"\"),T13+T16,\"\")","v":0},null,{"$f":"IF(ISERROR(INDEX($AB$3:$AB$70,MATCH(0,COUNTIF($X$3:X13,$AB$3:$AB$69),0))),\"\",INDEX($AB$3:$AB$69,MATCH(0,COUNTIF($X$3:X13,$AB$3:$AB$69),0)))","v":""},"","","",{"$f":"NoBlanks(J13:J510)","v":""}]
[null,null,null,null,null,null,null," "," ",null,"","",null,0,null,null,null,null,null,"Total T.Gov",null,null,null,{"$f":"IF(ISERROR(INDEX($AB$3:$AB$70,MATCH(0,COUNTIF($X$3:X14,$AB$3:$AB$69),0))),\"\",INDEX($AB$3:$AB$69,MATCH(0,COUNTIF($X$3:X14,$AB$3:$AB$69),0)))","v":""},"","","",{"$f":"NoBlanks(J14:J511)","v":""}]
[null,null,null,null,null,null,null," "," ",null,"","",null,0,null,null,null,null,null,{"$f":"SUM(N2:N70)","v":0},null,null,null,{"$f":"IF(ISERROR(INDEX($AB$3:$AB$70,MATCH(0,COUNTIF($X$3:X15,$AB$3:$AB$69),0))),\"\",INDEX($AB$3:$AB$69,MATCH(0,COUNTIF($X$3:X15,$AB$3:$AB$69),0)))","v":""},"","","",{"$f":"NoBlanks(J15:J512)","v":""}]
[null,null,null,null,null,null,null," "," ",null,{"$f":"IF(AND(I17=\"\",J17<>\"\"),H17,\"\")","v":""},"",null,0,null,null,null,null,null,null,null,null,null,{"$f":"IF(ISERROR(INDEX($AB$3:$AB$70,MATCH(0,COUNTIF($X$3:X16,$AB$3:$AB$69),0))),\"\",INDEX($AB$3:$AB$69,MATCH(0,COUNTIF($X$3:X16,$AB$3:$AB$69),0)))","v":""},"","","",{"$f":"NoBlanks(J16:J513)","v":""}]
[null,null,null,null,null,null," "," "," ",null,{"$f":"IF(AND(I18=\"\",J18<>\"\"),H18,\"\")","v":""},"",null,0,null,null,null,null,null,null,null,null,null,{"$f":"IF(ISERROR(INDEX($AB$3:$AB$70,MATCH(0,COUNTIF($X$3:X17,$AB$3:$AB$69),0))),\"\",INDEX($AB$3:$AB$69,MATCH(0,COUNTIF($X$3:X17,$AB$3:$AB$69),0)))","v":""},"","","",{"$f":"NoBlanks(J17:J514)","v":""}]
[null,null,null,null,null,null," "," "," ",null,"","",null,0,null,null,null,null,null,null,null,null,null,{"$f":"IF(ISERROR(INDEX($AB$3:$AB$70,MATCH(0,COUNTIF($X$3:X18,$AB$3:$AB$69),0))),\"\",INDEX($AB$3:$AB$69,MATCH(0,COUNTIF($X$3:X18,$AB$3:$AB$69),0)))","v":""},"","","",{"$f":"NoBlanks(J18:J515)","v":""}]
[null,null,null,null,null,null," "," "," ",null,"","",null,0,null,null,null,null,null,null,null,null,null,{"$f":"IF(ISERROR(INDEX($AB$3:$AB$70,MATCH(0,COUNTIF($X$3:X19,$AB$3:$AB$69),0))),\"\",INDEX($AB$3:$AB$69,MATCH(0,COUNTIF($X$3:X19,$AB$3:$AB$69),0)))","v":""},"","","",{"$f":"NoBlanks(J19:J516)","v":""}]
[null,null,null,null,null,null," ",null,0,null,"","",null,0,null,null,null,null,null,null,null,null,null,{"$f":"IF(ISERROR(INDEX($AB$3:$AB$70,MATCH(0,COUNTIF($X$3:X20,$AB$3:$AB$69),0))),\"\",INDEX($AB$3:$AB$69,MATCH(0,COUNTIF($X$3:X20,$AB$3:$AB$69),0)))","v":""},"","","",{"$f":"NoBlanks(J20:J517)","v":""}]
[null,null,null,null,null,null," ",null,0,null,"","",null,0,null,null,null,null,null,null,null,null,null,{"$f":"IF(ISERROR(INDEX($AB$3:$AB$70,MATCH(0,COUNTIF($X$3:X21,$AB$3:$AB$69),0))),\"\",INDEX($AB$3:$AB$69,MATCH(0,COUNTIF($X$3:X21,$AB$3:$AB$69),0)))","v":""},"","","",{"$f":"NoBlanks(J21:J518)","v":""}]
[null,null,null,null,null,null," ",null,0,null,"","",null,0,null,null,null,null,null,null,null,"Done",null,null,{"$f":"NoBlanks(AA25:AA518)","v":""},{"$f":"IFERROR(INDEX($J$2:$J$492,SMALL(IF($J$2:$J$492<>\"\",ROW($J$1:$J$492)-ROW($J$2)+1,\"\"),ROWS(AD$21:$AH23))),\"\")","v":""},null,{"$f":"NoBlanks(J22:J519)","v":""}]
[null,null,null,null,null,null," ",null,0,null,"","",null,0,null,null,null,null,null,null,null,"Cancelled",null,null,null,null,{"$f":"IF(K20=\"\",\"\",J20)","v":""},{"$f":"NoBlanks(J23:J520)","v":""}]
[null,null,null,null,null,null," ",null,0,null,"","",null,0,null,null,null,null,null,null,null,"Refused",null,null,null,null,"",{"$f":"NoBlanks(J24:J521)","v":""},null,null,{"$f":"IFERROR(INDEX($J$2:$J$492,SMALL(IF($J$2:$J$492<>\"\",ROW($J$1:$J$492)-ROW($J$2)+1,\"\"),ROWS(AE$21:$AI25))),\"\")","v":""}]
[null,null,null,null,null,null," ",null,0,null,"","",null,0,null,null,null,null,null,null,null,"Green pass.",null,null,null,null,"",{"$f":"NoBlanks(J25:J522)","v":""}]
[null,null,null,null,null,null," ",null,0,null,"","",null,0,null,null,null,null,null,null,null,"Mistake",null,null,null,null,"",{"$f":"NoBlanks(J26:J523)","v":""}]
[null,null,null,null,null,null," ",null,0,null,"","",null,0,null,null,null,null,null,null,null,null,null,null,null,null,"",{"$f":"NoBlanks(J27:J524)","v":""}]
[null,null,null,null,null,null," ",null,0,null,"","",null,0,null,null,null,null,null,null,null,null,null,null,null,null,"",{"$f":"NoBlanks(J28:J525)","v":""}]
[null,null,null,null,null,null," ",null,0,null,"","",null,0,null,null,null,null,null,null,null,null,null,null,null,null,"",{"$f":"NoBlanks(J29:J526)","v":""}]
[null,null,null,null,null,null," ",null,0,null,"","",null,0,null,null,null,null,null,null,null,null,null,null,null,null,"",{"$f":"NoBlanks(J30:J527)","v":""}]
[null,null,null,null,null,null," ",null,0,null,"","",null,0,null,null,null,null,null,null,null,null,null,null,null,null,"",{"$f":"NoBlanks(J31:J528)","v":""}]
[null,null,null,null,null,null," ",null,0,null,"","",null,0,null,null,null,null,null,null,null,null,null,null,null,null,"",{"$f":"NoBlanks(J32:J529)","v":""}]
[null,null,null,null,null,null," ",null,0,null,"","",null,0,null,null,null,null,null,null,null,null,null,null,null,null,"",{"$f":"NoBlanks(J33:J530)","v":""}]
[null,null,null,null,null,null," ",null,0,null,"","",null,0,null,null,null,null,null,null,null,null,null,null,null,null,"",{"$f":"NoBlanks(J34:J531)","v":""}]
[null,null,null,null,null,null," ",null,0,null,"","",null,0,null,null,null,null,null,null,null,null,null,null,null,null,"",{"$f":"NoBlanks(J35:J532)","v":""}]
[null,null,null,null,null,null," ",null,0,null,"","",null,0,null,null,null,null,null,null,null,null,null,null,null,null,"",{"$f":"NoBlanks(J36:J533)","v":""}]
[null,null,null,null,null,null," ",null,0,null,"","",null,0,null,null,null,null,null,null,null,null,null,null,null,null,"",{"$f":"NoBlanks(J37:J534)","v":""}]
[null,null,null,null,null,null," ",null,0,null,"","",null,0,null,null,null,null,null,null,null,null,null,null,null,null,"",{"$f":"NoBlanks(J38:J535)","v":""}]
[null,null,null,null,null,null," ",null,0,null,"","",null,0,null,null,null,null,null,null,null,null,null,null,null,null,"",{"$f":"NoBlanks(J39:J536)","v":""}]
[null,null,null,null,null,null," ",null,0,null,"","",null,0,null,null,null,null,null,null,null,null,null,null,null,null,"",{"$f":"NoBlanks(J40:J537)","v":""}]
[null,null,null,null,null,null," ",null,0,null,"","",null,0,null,null,null,null,null,null,null,null,null,null,null,null,"",{"$f":"NoBlanks(J41:J538)","v":""}]
[null,null,null,null,null,null," ",null,0,null,"","",null,0,null,null,null,null,null,null,null,null,null,null,null,null,"",{"$f":"NoBlanks(J42:J539)","v":""}]
[null,null,null,null,null,null," ",null,0,null,"","",null,0,null,null,null,null,null,null,null,null,null,null,null,null,"",{"$f":"NoBlanks(J43:J540)","v":""}]
[null,null,null,null,null,null," ",null,0,null,"","",null,0,null,null,null,null,null,null,null,null,null,null,null,null,"",{"$f":"NoBlanks(J44:J541)","v":""}]
[null,null,null,null,null,null," ",null,0,null,"","",null,0,null,null,null,null,null,null,null,null,null,null,null,null,"",{"$f":"NoBlanks(J45:J542)","v":""}]
[null,null,null,null,null,null," ",null,0,null,"","",null,0,null,null,null,null,null,null,null,null,null,null,null,null,"",{"$f":"NoBlanks(J46:J543)","v":""}]
[null,null,null,null,null,null," ",null,0,null,"","",null,0,null,null,null,null,null,null,null,null,null,null,null,null,"",{"$f":"NoBlanks(J47:J544)","v":""}]
[null,null,null,null,null,null," ",null,0,null,"","",null,0,null,null,null,null,null,null,null,null,null,null,null,null,"",{"$f":"NoBlanks(J48:J545)","v":""}]
[null,null,null,null,null,null," ",null,0,null,"","",null,0,null,null,null,null,null,null,null,null,null,null,null,null,"",{"$f":"NoBlanks(J49:J546)","v":""}]
[null,null,null,null,null,null," ",null,0,null,"","",null,0,null,null,null,null,null,null,null,null,null,null,null,null,"",{"$f":"NoBlanks(J50:J547)","v":""}]
[null,null,null,null,null,null," ",null,0,null,"","",null,0,null,null,null,null,null,null,null,null,null,null,null,null,"",{"$f":"NoBlanks(J51:J548)","v":""}]
[null,null,null,null,null,null," ",null,0,null,"","",null,0,null,null,null,null,null,null,null,null,null,null,null,null,"",{"$f":"NoBlanks(J52:J549)","v":""}]
[null,null,null,null,null,null," ",null,0,null,"","",null,0,null,null,null,null,null,null,null,null,null,null,null,null,"",{"$f":"NoBlanks(J53:J550)","v":""}]
[null,null,null,null,null,null," ",null,0,null,"","",null,0,null,null,null,null,null,null,null,null,null,null,null,null,"",{"$f":"NoBlanks(J54:J551)","v":""}]
[null,null,null,null,null,null," ",null,0,null,"","",null,0,null,null,null,null,null,null,null,null,null,null,null,null,{"$f":"IF(K52=\"\",\"\",J52)","v":""},{"$f":"NoBlanks(J55:J552)","v":""}]
[null,null,null,null,null,null," ",null,0,null,"","",null,0,null,null,null,null,null,null,null,null,null,null,null,null,"",{"$f":"NoBlanks(J56:J553)","v":""}]
[null,null,null,null,null,null," ",null,0,null,"","",null,0,null,null,null,null,null,null,null,null,null,null,null,null,"",{"$f":"NoBlanks(J57:J554)","v":""}]
[null,null,null,null,null,null," ",null,0,null,"","",null,0,null,null,null,null,null,null,null,null,null,null,null,null,"",{"$f":"NoBlanks(J58:J555)","v":""}]
[null,null,null,null,null,null," ",null,0,null,"","",null,0,null,null,null,null,null,null,null,null,null,null,null,null,"",{"$f":"NoBlanks(J59:J556)","v":""}]
[null,null,null,null,null,null," ",null,0,null,"","",null,0,null,null,null,null,null,null,null,null,null,null,null,null,"",{"$f":"NoBlanks(J60:J557)","v":""}]
[null,null,null,null,null,null," ",null,0,null,"","",null,0,null,null,null,null,null,null,null,null,null,null,null,null,"",{"$f":"NoBlanks(J61:J558)","v":""}]
[null,null,null,null,null,null," ",null,0,null,"","",null,0,null,null,null,null,null,null,null,null,null,null,null,null,"",{"$f":"NoBlanks(J62:J559)","v":""}]
[null,null,null,null,null,null," ",null,0,null,{"$f":"IF(AND(I64=\"\",J64<>\"\"),H64,\"\")","v":""},"",null,0,null,null,null,null,null,null,null,null,null,null,null,null,"",{"$f":"NoBlanks(J63:J560)","v":""}]
[null,null,null,null,null,null," ",null,0,null,{"$f":"IF(AND(I65=\"\",J65<>\"\"),H65,\"\")","v":""},"",null,0,null,null,null,null,null,null,null,null,null,null,null,null,"",{"$f":"NoBlanks(J64:J561)","v":""}]
[null,null,null,null,null,null," ",null,0,null,"","",null,0,null,null,null,null,null,null,null,null,null,null,null,null,"",{"$f":"NoBlanks(J65:J562)","v":""}]
[null,null,null,null,null,null," ",null,{"$f":"IF(J67<>\"\",\"\",H67)","v":0},null,"",{"$f":"IF(C67=\"\",\"\",25)","v":""},null,{"$f":"IF(M67=\"Extractor\",62.5,0)","v":0},null,null,null,null,null,null,null,null,null,null,null,null,"",{"$f":"NoBlanks(J66:J563)","v":""}]
[null,null,null,null,null,null," ",null,0,null,"","",null,0,null,null,null,null,null,null,null,null,null,null,null,null,"",{"$f":"NoBlanks(J67:J564)","v":""}]
[null,null,null,null,null,null," ",null,0,null,"","",null,0,null,null,null,null,null,null,null,null,null,null,null,null,"",{"$f":"NoBlanks(J68:J565)","v":""}]
[null,null,null,null,null,null," ",null,0,null,"","",null,0,null,null,null,null,null,null,null,null,null,null,null,null,"",{"$f":"NoBlanks(J69:J566)","v":""}]
[null,null,null,null,null,null," "," ",null,null,null,null,null,null,null,null,null,null,null,null,null,null,null,null,null,null,"",{"$f":"NoBlanks(J70:J567)","v":""}]
[null,null,null,null,null,null," "," ",null,null,null,null,null,null,null,null,null,null,null,null,null,null,null,null,null,null,"",{"$f":"NoBlanks(J71:J568)","v":""}]
[null,null,null,null,null,null," "," ",null,null,null,null,null,null,null,null,null,null,null,null,null,null,null,null,null,null,"",{"$f":"NoBlanks(J72:J569)","v":""}]
[null,null,null,null,null,null," "," ",null,null,null,null,null,null,null,null,null,null,null,null,null,null,null,null,null,null,"",{"$f":"NoBlanks(J73:J570)","v":""}]
[null,null,null,null,null,null," "," ",null,null,null,null,null,null,null,null,null,null,null,null,null,null,null,null,null,null,"",{"$f":"NoBlanks(J74:J571)","v":""}]
[null,null,null,null,null,null," "," ",null,null,null,null,null,null,null,null,null,null,null,null,null,null,null,null,null,null,"",{"$f":"NoBlanks(J75:J572)","v":""}]
[null,null,null,null,null,null," "," ",null,null,null,null,null,null,null,null,null,null,null,null,null,null,null,null,null,null,"",{"$f":"NoBlanks(J76:J573)","v":""}]
[null,null,null,null,null,null," "," ",null,null,null,null,null,null,null,null,null,null,null,null,null,null,null,null,null,null,"",{"$f":"NoBlanks(J77:J574)","v":""}]
[null,null,null,null,null,null," "," ",null,null,null,null,null,null,null,null,null,null,null,null,null,null,null,null,null,null,"",{"$f":"NoBlanks(J78:J575)","v":""}]
[null,null,null,null,null,null," "," ",null,null,null,null,null,null,null,null,null,null,null,null,null,null,null,null,null,null,"",{"$f":"NoBlanks(J79:J576)","v":""}]
[null,null,null,null,null,null," "," ",null,null,null,null,null,null,null,null,null,null,null,null,null,null,null,null,null,null,"",{"$f":"NoBlanks(J80:J577)","v":""}]
[null,null,null,null,null,null," "," ",null,null,null,null,null,null,null,null,null,null,null,null,null,null,null,null,null,null,"",{"$f":"NoBlanks(J81:J578)","v":""}]
[null,null,null,null,null,null," "," ",null,null,null,null,null,null,null,null,null,null,null,null,null,null,null,null,null,null,"",{"$f":"NoBlanks(J82:J579)","v":""}]
[null,null,null,null,null,null," "," ",null,null,null,null,null,null,null,null,null,null,null,null,null,null,null,null,null,null,"",{"$f":"NoBlanks(J83:J580)","v":""}]
[null,null,null,null,null,null," "," ",null,null,null,null,null,null,null,null,null,null,null,null,null,null,null,null,null,null,"",{"$f":"NoBlanks(J84:J581)","v":""}]
[null,null,null,null,null,null," "," ",null,null,null,null,null,null,null,null,null,null,null,null,null,null,null,null,null,null,"",{"$f":"NoBlanks(J85:J582)","v":""}]
[null,null,null,null,null,null," "," ",null,null,null,null,null,null,null,null,null,null,null,null,null,null,null,null,null,null,"",{"$f":"NoBlanks(J86:J583)","v":""}]
[null,null,null,null,null,null," "," ",null,null,null,null,null,null,null,null,null,null,null,null,null,null,null,null,null,null,{"$f":"IF(K84=\"\",\"\",J84)","v":""},{"$f":"NoBlanks(J87:J584)","v":""}]
[null,null,null,null,null,null," "," ",null,null,null,null,null,null,null,null,null,null,null,null,null,null,null,null,null,null,"",{"$f":"NoBlanks(J88:J585)","v":""}]
[null,null,null,null,null,null," "," ",null,null,null,null,null,null,null,null,null,null,null,null,null,null,null,null,null,null,"",{"$f":"NoBlanks(J89:J586)","v":""}]
[null,null,null,null,null,null," "," ",null,null,null,null,null,null,null,null,null,null,null,null,null,null,null,null,null,null,"",{"$f":"NoBlanks(J90:J587)","v":""}]
[null,null,null,null,null,null," "," ",null,null,null,null,null,null,null,null,null,null,null,null,null,null,null,null,null,null,"",{"$f":"NoBlanks(J91:J588)","v":""}]
[null,null,null,null,null,null," "," ",null,null,null,null,null,null,null,null,null,null,null,null,null,null,null,null,null,null,"",{"$f":"NoBlanks(J92:J589)","v":""}]
[null,null,null,null,null,null," ",null,null,null,null,null,null,null,null,null,null,null,null,null,null,null,null,null,null,null,"",{"$f":"NoBlanks(J93:J590)","v":""}]
[null,null,null,null,null,null," ",null,null,null,null,null,null,null,null,null,null,null,null,null,null,null,null,null,null,null,"",{"$f":"NoBlanks(J94:J591)","v":""}]
[null,null,null,null,null,null," ",null,null,null,null,null,null,null,null,null,null,null,null,null,null,null,null,null,null,null,"",{"$f":"NoBlanks(J95:J592)","v":""}]
[null,null,null,null,null,null," ",null,null,null,null,null,null,null,null,null,null,null,null,null,null,null,null,null,null,null,"",{"$f":"NoBlanks(J96:J593)","v":""}]
[null,null,null,null,null,null," ",null,null,null,null,null,null,null,null,null,null,null,null,null,null,null,null,null,null,null,"",{"$f":"NoBlanks(J97:J594)","v":""}]
[null,null,null,null,null,null," ",null,null,null,null,null,null,null,null,null,null,null,null,null,null,null,null,null,null,null,"",{"$f":"NoBlanks(J98:J595)","v":""}]
[null,null,null,null,null,null," ",null,null,null,null,null,null,null,null,null,null,null,null,null,null,null,null,null,null,null,"",{"$f":"NoBlanks(J99:J596)","v":""}]
[null,null,null,null,null,null," ",null,null,null,null,null,null,null,null,null,null,null,null,null,null,null,null,null,null,null,"",{"$f":"NoBlanks(J100:J597)","v":""}]
[null,null,null,null,null,null," ",null,null,null,null,null,null,null,null,null,null,null,null,null,null,null,null,null,null,null,"",{"$f":"NoBlanks(J101:J598)","v":""}]
[null,null,null,null,null,null," ",null,null,null,null,null,null,null,null,null,null,null,null,null,null,null,null,null,null,null,null,{"$f":"NoBlanks(J102:J599)","v":""}]
[null,null,null,null,null,null," ",null,null,null,null,null,null,null,null,null,null,null,null,null,null,null,null,null,null,null,null,{"$f":"NoBlanks(J103:J600)","v":""}]
[null,null,null,null,null,null," ",null,null,null,null,null,null,null,null,null,null,null,null,null,null,null,null,null,null,null,null,{"$f":"NoBlanks(J104:J601)","v":""}]
[null,null,null,null,null,null," ",null,null,null,null,null,null,null,null,null,null,null,null,null,null,null,null,null,null,null,null,{"$f":"NoBlanks(J105:J602)","v":""}]
[null,null,null,null,null,null," ",null,null,null,null,null,null,null,null,null,null,null,null,null,null,null,null,null,null,null,null,{"$f":"NoBlanks(J106:J603)","v":""}]
[null,null,null,null,null,null," ",null,null,null,null,null,null,null,null,null,null,null,null,null,null,null,null,null,null,null,null,{"$f":"NoBlanks(J107:J604)","v":""}]
[null,null,null,null,null,null," ",null,null,null,null,null,null,null,null,null,null,null,null,null,null,null,null,null,null,null,null,{"$f":"NoBlanks(J108:J605)","v":""}]
[null,null,null,null,null,null," ",null,null,null,null,null,null,null,null,null,null,null,null,null,null,null,null,null,null,null,null,{"$f":"NoBlanks(J109:J606)","v":""}]
[null,null,null,null,null,null," ",null,null,null,null,null,null,null,null,null,null,null,null,null,null,null,null,null,null,null,null,{"$f":"NoBlanks(J110:J607)","v":""}]
[null,null,null,null,null,null," ",null,null,null,null,null,null,null,null,null,null,null,null,null,null,null,null,null,null,null,null,{"$f":"NoBlanks(J111:J608)","v":""}]
[null,null,null,null,null,null," ",null,null,null,null,null,null,null,null,null,null,null,null,null,null,null,null,null,null,null,null,{"$f":"NoBlanks(J112:J609)","v":""}]
[null,null,null,null,null,null," ",null,null,null,null,null,null,null,null,null,null,null,null,null,null,null,null,null,null,null,null,{"$f":"NoBlanks(J113:J610)","v":""}]
[null,null,null,null,null,null," ",null,null,null,null,null,null,null,null,null,null,null,null,null,null,null,null,null,null,null,null,{"$f":"NoBlanks(J114:J611)","v":""}]
[null,null,null,null,null,null," ",null,null,null,null,null,null,null,null,null,null,null,null,null,null,null,null,null,null,null,null,{"$f":"NoBlanks(J115:J612)","v":""}]
[null,null,null,null,null,null," ",null,null,null,null,null,null,null,null,null,null,null,null,null,null,null,null,null,null,null,null,{"$f":"NoBlanks(J116:J613)","v":""}]
[null,null,null,null,null,null," ",null,null,null,null,null,null,null,null,null,null,null,null,null,null,null,null,null,null,null,null,{"$f":"NoBlanks(J117:J614)","v":""}]
[null,null,null,null,null,null," ",null,null,null,null,null,null,null,null,null,null,null,null,null,null,null,null,null,null,null,null,{"$f":"NoBlanks(J118:J615)","v":""}]
[null,null,null,null,null,null," ",null,null,null,null,null,null,null,null,null,null,null,null,null,null,null,null,null,null,null,null,{"$f":"NoBlanks(J119:J616)","v":""}]
[null,null,null,null,null,null," ",null,null,null,null,null,null,null,null,null,null,null,null,null,null,null,null,null,null,null,null,{"$f":"NoBlanks(J120:J617)","v":""}]
[null,null,null,null,null,null," ",null,null,null,null,null,null,null,null,null,null,null,null,null,null,null,null,null,null,null,null,{"$f":"NoBlanks(J121:J618)","v":""}]
[null,null,null,null,null,null," ",null,null,null,null,null,null,null,null,null,null,null,null,null,null,null,null,null,null,null,null,{"$f":"NoBlanks(J122:J619)","v":""}]
[null,null,null,null,null,null," ",null,null,null,null,null,null,null,null,null,null,null,null,null,null,null,null,null,null,null,null,{"$f":"NoBlanks(J123:J620)","v":""}]
[null,null,null,null,null,null," ",null,null,null,null,null,null,null,null,null,null,null,null,null,null,null,null,null,null,null,null,{"$f":"NoBlanks(J124:J621)","v":""}]
[null,null,null,null,null,null," ",null,null,null,null,null,null,null,null,null,null,null,null,null,null,null,null,null,null,null,null,{"$f":"NoBlanks(J125:J622)","v":""}]
[null,null,null,null,null,null," ",null,null,null,null,null,null,null,null,null,null,null,null,null,null,null,null,null,null,null,null,{"$f":"NoBlanks(J126:J623)","v":""}]
[null,null,null,null,null,null," ",null,null,null,null,null,null,null,null,null,null,null,null,null,null,null,null,null,null,null,null,{"$f":"NoBlanks(J127:J624)","v":""}]
[null,null,null,null,null,null," ",null,null,null,null,null,null,null,null,null,null,null,null,null,null,null,null,null,null,null,null,{"$f":"NoBlanks(J128:J625)","v":""}]
[null,null,null,null,null,null," ",null,null,null,null,null,null,null,null,null,null,null,null,null,null,null,null,null,null,null,null,{"$f":"NoBlanks(J129:J626)","v":""}]
[null,null,null,null,null,null," ",null,null,null,null,null,null,null,null,null,null,null,null,null,null,null,null,null,null,null,null,{"$f":"NoBlanks(J130:J627)","v":""}]
[null,null,null,null,null,null," ",null,null,null,null,null,null,null,null,null,null,null,null,null,null,null,null,null,null,null,null,{"$f":"NoBlanks(J131:J628)","v":""}]
[null,null,null,null,null,null," ",null,null,null,null,null,null,null,null,null,null,null,null,null,null,null,null,null,null,null,null,{"$f":"NoBlanks(J132:J629)","v":""}]
[null,null,null,null,null,null," ",null,null,null,null,null,null,null,null,null,null,null,null,null,null,null,null,null,null,null,null,{"$f":"NoBlanks(J133:J630)","v":""}]
[null,null,null,null,null,null," ",null,null,null,null,null,null,null,null,null,null,null,null,null,null,null,null,null,null,null,null,{"$f":"NoBlanks(J134:J631)","v":""}]
[null,null,null,null,null,null," ",null,null,null,null,null,null,null,null,null,null,null,null,null,null,null,null,null,null,null,null,{"$f":"NoBlanks(J135:J632)","v":""}]
[null,null,null,null,null,null," ",null,null,null,null,null,null,null,null,null,null,null,null,null,null,null,null,null,null,null,null,{"$f":"NoBlanks(J136:J633)","v":""}]
[null,null,null,null,null,null," ",null,null,null,null,null,null,null,null,null,null,null,null,null,null,null,null,null,null,null,null,{"$f":"NoBlanks(J137:J634)","v":""}]
[null,null,null,null,null,null," ",null,null,null,null,null,null,null,null,null,null,null,null,null,null,null,null,null,null,null,null,{"$f":"NoBlanks(J138:J635)","v":""}]
[null,null,null,null,null,null," ",null,null,null,null,null,null,null,null,null,null,null,null,null,null,null,null,null,null,null,null,{"$f":"NoBlanks(J139:J636)","v":""}]
[null,null,null,null,null,null," ",null,null,null,null,null,null,null,null,null,null,null,null,null,null,null,null,null,null,null,null,{"$f":"NoBlanks(J140:J637)","v":""}]
[null,null,null,null,null,null," ",null,null,null,null,null,null,null,null,null,null,null,null,null,null,null,null,null,null,null,null,{"$f":"NoBlanks(J141:J638)","v":""}]
[null,null,null,null,null,null," ",null,null,null,null,null,null,null,null,null,null,null,null,null,null,null,null,null,null,null,null,{"$f":"NoBlanks(J142:J639)","v":""}]
[null,null,null,null,null,null," ",null,null,null,null,null,null,null,null,null,null,null,null,null,null,null,null,null,null,null,null,{"$f":"NoBlanks(J143:J640)","v":""}]
[null,null,null,null,null,null," ",null,null,null,null,null,null,null,null,null,null,null,null,null,null,null,null,null,null,null,null,{"$f":"NoBlanks(J144:J641)","v":""}]
[null,null,null,null,null,null," ",null,null,null,null,null,null,null,null,null,null,null,null,null,null,null,null,null,null,null,null,{"$f":"NoBlanks(J145:J642)","v":""}]
[null,null,null,null,null,null," ",null,null,null,null,null,null,null,null,null,null,null,null,null,null,null,null,null,null,null,null,{"$f":"NoBlanks(J146:J643)","v":""}]
[null,null,null,null,null,null," ",null,null,null,null,null,null,null,null,null,null,null,null,null,null,null,null,null,null,null,null,{"$f":"NoBlanks(J147:J644)","v":""}]
[null,null,null,null,null,null," ",null,null,null,null,null,null,null,null,null,null,null,null,null,null,null,null,null,null,null,null,{"$f":"NoBlanks(J148:J645)","v":""}]
[null,null,null,null,null,null," ",null,null,null,null,null,null,null,null,null,null,null,null,null,null,null,null,null,null,null,null,{"$f":"NoBlanks(J149:J646)","v":""}]
[null,null,null,null,null,null," ",null,null,null,null,null,null,null,null,null,null,null,null,null,null,null,null,null,null,null,null,{"$f":"NoBlanks(J150:J647)","v":""}]
[null,null,null,null,null,null," ",null,null,null,null,null,null,null,null,null,null,null,null,null,null,null,null,null,null,null,null,{"$f":"NoBlanks(J151:J648)","v":""}]
[null,null,null,null,null,null," ",null,null,null,null,null,null,null,null,null,null,null,null,null,null,null,null,null,null,null,null,{"$f":"NoBlanks(J152:J649)","v":""}]
[null,null,null,null,null,null," ",null,null,null,null,null,null,null,null,null,null,null,null,null,null,null,null,null,null,null,null,{"$f":"NoBlanks(J153:J650)","v":""}]
[null,null,null,null,null,null," ",null,null,null,null,null,null,null,null,null,null,null,null,null,null,null,null,null,null,null,null,{"$f":"NoBlanks(J154:J651)","v":""}]
[null,null,null,null,null,null," ",null,null,null,null,null,null,null,null,null,null,null,null,null,null,null,null,null,null,null,null,{"$f":"NoBlanks(J155:J652)","v":""}]
[null,null,null,null,null,null," ",null,null,null,null,null,null,null,null,null,null,null,null,null,null,null,null,null,null,null,null,{"$f":"NoBlanks(J156:J653)","v":""}]
[null,null,null,null,null,null," ",null,null,null,null,null,null,null,null,null,null,null,null,null,null,null,null,null,null,null,null,{"$f":"NoBlanks(J157:J654)","v":""}]
[null,null,null,null,null,null," ",null,null,null,null,null,null,null,null,null,null,null,null,null,null,null,null,null,null,null,null,{"$f":"NoBlanks(J158:J655)","v":""}]
[null,null,null,null,null,null," ",null,null,null,null,null,null,null,null,null,null,null,null,null,null,null,null,null,null,null,null,{"$f":"NoBlanks(J159:J656)","v":""}]
[null,null,null,null,null,null," ",null,null,null,null,null,null,null,null,null,null,null,null,null,null,null,null,null,null,null,null,{"$f":"NoBlanks(J160:J657)","v":""}]
[null,null,null,null,null,null," ",null,null,null,null,null,null,null,null,null,null,null,null,null,null,null,null,null,null,null,null,{"$f":"NoBlanks(J161:J658)","v":""}]
[null,null,null,null,null,null," ",null,null,null,null,null,null,null,null,null,null,null,null,null,null,null,null,null,null,null,null,{"$f":"NoBlanks(J162:J659)","v":""}]
[null,null,null,null,null,null," ",null,null,null,null,null,null,null,null,null,null,null,null,null,null,null,null,null,null,null,null,{"$f":"NoBlanks(J163:J660)","v":""}]
[null,null,null,null,null,null," ",null,null,null,null,null,null,null,null,null,null,null,null,null,null,null,null,null,null,null,null,{"$f":"NoBlanks(J164:J661)","v":""}]
[null,null,null,null,null,null," ",null,null,null,null,null,null,null,null,null,null,null,null,null,null,null,null,null,null,null,null,{"$f":"NoBlanks(J165:J662)","v":""}]
[null,null,null,null,null,null," ",null,null,null,null,null,null,null,null,null,null,null,null,null,null,null,null,null,null,null,null,{"$f":"NoBlanks(J166:J663)","v":""}]
[null,null,null,null,null,null," ",null,null,null,null,null,null,null,null,null,null,null,null,null,null,null,null,null,null,null,null,{"$f":"NoBlanks(J167:J664)","v":""}]
[null,null,null,null,null,null," ",null,null,null,null,null,null,null,null,null,null,null,null,null,null,null,null,null,null,null,null,{"$f":"NoBlanks(J168:J665)","v":""}]
[null,null,null,null,null,null," ",null,null,null,null,null,null,null,null,null,null,null,null,null,null,null,null,null,null,null,null,{"$f":"NoBlanks(J169:J666)","v":""}]
[null,null,null,null,null,null," ",null,null,null,null,null,null,null,null,null,null,null,null,null,null,null,null,null,null,null,null,{"$f":"NoBlanks(J170:J667)","v":""}]
[null,null,null,null,null,null," ",null,null,null,null,null,null,null,null,null,null,null,null,null,null,null,null,null,null,null,null,{"$f":"NoBlanks(J171:J668)","v":""}]
[null,null,null,null,null,null," ",null,null,null,null,null,null,null,null,null,null,null,null,null,null,null,null,null,null,null,null,{"$f":"NoBlanks(J172:J669)","v":""}]
[null,null,null,null,null,null," ",null,null,null,null,null,null,null,null,null,null,null,null,null,null,null,null,null,null,null,null,{"$f":"NoBlanks(J173:J670)","v":""}]
[null,null,null,null,null,null," ",null,null,null,null,null,null,null,null,null,null,null,null,null,null,null,null,null,null,null,null,{"$f":"NoBlanks(J174:J671)","v":""}]
[null,null,null,null,null,null," ",null,null,null,null,null,null,null,null,null,null,null,null,null,null,null,null,null,null,null,null,{"$f":"NoBlanks(J175:J672)","v":""}]
[null,null,null,null,null,null," ",null,null,null,null,null,null,null,null,null,null,null,null,null,null,null,null,null,null,null,null,{"$f":"NoBlanks(J176:J673)","v":""}]
[null,null,null,null,null,null," ",null,null,null,null,null,null,null,null,null,null,null,null,null,null,null,null,null,null,null,null,{"$f":"NoBlanks(J177:J674)","v":""}]
[null,null,null,null,null,null," ",null,null,null,null,null,null,null,null,null,null,null,null,null,null,null,null,null,null,null,null,{"$f":"NoBlanks(J178:J675)","v":""}]
[null,null,null,null,null,null," ",null,null,null,null,null,null,null,null,null,null,null,null,null,null,null,null,null,null,null,null,{"$f":"NoBlanks(J179:J676)","v":""}]
[null,null,null,null,null,null," ",null,null,null,null,null,null,null,null,null,null,null,null,null,null,null,null,null,null,null,null,{"$f":"NoBlanks(J180:J677)","v":""}]
[null,null,null,null,null,null," ",null,null,null,null,null,null,null,null,null,null,null,null,null,null,null,null,null,null,null,null,{"$f":"NoBlanks(J181:J678)","v":""}]
[null,null,null,null,null,null," ",null,null,null,null,null,null,null,null,null,null,null,null,null,null,null,null,null,null,null,null,{"$f":"NoBlanks(J182:J679)","v":""}]
[null,null,null,null,null,null," ",null,null,null,null,null,null,null,null,null,null,null,null,null,null,null,null,null,null,null,null,{"$f":"NoBlanks(J183:J680)","v":""}]
[null,null,null,null,null,null," ",null,null,null,null,null,null,null,null,null,null,null,null,null,null,null,null,null,null,null,null,{"$f":"NoBlanks(J184:J681)","v":""}]
[null,null,null,null,null,null," ",null,null,null,null,null,null,null,null,null,null,null,null,null,null,null,null,null,null,null,null,{"$f":"NoBlanks(J185:J682)","v":""}]
[null,null,null,null,null,null," ",null,null,null,null,null,null,null,null,null,null,null,null,null,null,null,null,null,null,null,null,{"$f":"NoBlanks(J186:J683)","v":""}]
[null,null,null,null,null,null," ",null,null,null,null,null,null,null,null,null,null,null,null,null,null,null,null,null,null,null,null,{"$f":"NoBlanks(J187:J684)","v":""}]
[null,null,null,null,null,null," ",null,null,null,null,null,null,null,null,null,null,null,null,null,null,null,null,null,null,null,null,{"$f":"NoBlanks(J188:J685)","v":""}]
[null,null,null,null,null,null," ",null,null,null,null,null,null,null,null,null,null,null,null,null,null,null,null,null,null,null,null,{"$f":"NoBlanks(J189:J686)","v":""}]
[null,null,null,null,null,null," ",null,null,null,null,null,null,null,null,null,null,null,null,null,null,null,null,null,null,null,null,{"$f":"NoBlanks(J190:J687)","v":""}]
[null,null,null,null,null,null," ",null,null,null,null,null,null,null,null,null,null,null,null,null,null,null,null,null,null,null,null,{"$f":"NoBlanks(J191:J688)","v":""}]
[null,null,null,null,null,null," ",null,null,null,null,null,null,null,null,null,null,null,null,null,null,null,null,null,null,null,null,{"$f":"NoBlanks(J192:J689)","v":""}]
[null,null,null,null,null,null," ",null,null,null,null,null,null,null,null,null,null,null,null,null,null,null,null,null,null,null,null,{"$f":"NoBlanks(J193:J690)","v":""}]
[null,null,null,null,null,null," ",null,null,null,null,null,null,null,null,null,null,null,null,null,null,null,null,null,null,null,null,{"$f":"NoBlanks(J194:J691)","v":""}]
[null,null,null,null,null,null," ",null,null,null,null,null,null,null,null,null,null,null,null,null,null,null,null,null,null,null,null,{"$f":"NoBlanks(J195:J692)","v":""}]
[null,null,null,null,null,null," ",null,null,null,null,null,null,null,null,null,null,null,null,null,null,null,null,null,null,null,null,{"$f":"NoBlanks(J196:J693)","v":""}]
[null,null,null,null,null,null," ",null,null,null,null,null,null,null,null,null,null,null,null,null,null,null,null,null,null,null,null,{"$f":"NoBlanks(J197:J694)","v":""}]
[null,null,null,null,null,null," "]
[null,null,null,null,null,null," "]
[null,null,null,null,null,null," "]
[null,null,null,null,null,null," "]
[null,null,null,null,null,null," "]
[null,null,null,null,null,null," "]
[null,null,null,null,null,null," "]
[null,null,null,null,null,null," "]
[null,null,null,null,null,null," "]
[null,null,null,null,null,null," "]
[null,null,null,null,null,null," "]
[null,null,null,null,null,null," "]
[null,null,null,null,null,null," "]
[null,null,null,null,null,null," "]
[null,null,null,null,null,null," "]
[null,null,null,null,null,null," "]
[null,null,null,null,null,null," "]
[null,null,null,null,null,null," "]
[null,null,null,null,null,null," "]
[null,null,null,null,null,null," "]
[null,null,null,null,null,null," "]
[null,null,null,null,null,null," "]
[null,null,null,null,null,null," "]
[null,null,null,null,null,null," "]
[null,null,null,null,null,null," "]
[null,null,null,null,null,null," "]
[null,null,null,null,null,null," "]
[null,null,null,null,null,null," "]
[null,null,null,null,null,null," "]
[null,null,null,null,null,null," "]
[null,null,null,null,null,null," "]
[null,null,null,null,null,null," "]
[null,null,null,null,null,null," "]
[null,null,null,null,null,null," "]
[null,null,null,null,null,null," "]
[null,null,null,null,null,null," "]
[null,null,null,null,null,null," "]
[null,null,null,null,null,null," "]
[null,null,null,null,null,null," "]
[null,null,null,null,null,null," "]
[null,null,null,null,null,null," "]
[null,null,null,null,null,null," "]
[null,null,null,null,null,null," "]
[null,null,null,null,null,null," "]
[null,null,null,null,null,null," "]
[null,null,null,null,null,null," "]
[null,null,null,null,null,null," "]
[null,null,null,null,null,null," "]
[null,null,null,null,null,null," "]
[null,null,null,null,null,null," "]
[null,null,null,null,null,null," "]
[null,null,null,null,null,null," "]
[null,null,null,null,null,null," "]
[null,null,null,null,null,null," "]
[null,null,null,null,null,null," "]
[null,null,null,null,null,null," "]
[null,null,null,null,null,null," "]
[null,null,null,null,null,null," "]
[null,null,null,null,null,null," "]
[null,null,null,null,null,null," "]
[null,null,null,null,null,null," "]
[null,null,null,null,null,null," "]
[null,null,null,null,null,null," "]
[null,null,null,null,null,null," "]
[null,null,null,null,null,null," "]
[null,null,null,null,null,null," "]
[null,null,null,null,null,null," "]
[null,null,null,null,null,null," "]
[null,null,null,null,null,null," "]
[null,null,null,null,null,null," "]
[null,null,null,null,null,null," "]
[null,null,null,null,null,null," "]
[null,null,null,null,null,null," "]
[null,null,null,null,null,null," "]
[null,null,null,null,null,null," "]
[null,null,null,null,null,null," "]
[null,null,null,null,null,null," "]
[null,null,null,null,null,null," "]
[null,null,null,null,null,null," "]
[null,null,null,null,null,null," "]
[null,null,null,null,null,null," "]
[null,null,null,null,null,null," "]
[null,null,null,null,null,null," "]
[null,null,null,null,null,null," "]
[null,null,null,null,null,null," "]
[null,null,null,null,null,null," "]
[null,null,null,null,null,null," "]
[null,null,null,null,null,null," "]
[null,null,null,null,null,null," "]
[null,null,null,null,null,null," "]
[null,null,null,null,null,null," "]
[null,null,null,null,null,null," "]
[null,null,null,null,null,null," "]
[null,null,null,null,null,null," "]
[null,null,null,null,null,null," "]
[null,null,null,null,null,null," "]
[null,null,null,null,null,null," "]
[null,null,null,null,null,null," "]
[null,null,null,null,null,null," "]
[null,null,null,null,null,null," "]
[null,null,null,null,null,null," "]
[null,null,null,null,null,null," "]
[null,null,null,null,null,null," "]
[null,null,null,null,null,null," "]
[null,null,null,null,null,null," "]
[null,null,null,null,null,null," "]
[null,null,null,null,null,null," "]
[null,null,null,null,null,null," "]
[null,null,null,null,null,null," "]
[null,null,null,null,null,null," "]
[null,null,null,null,null,null," "]
[null,null,null,null,null,null," "]
[null,null,null,null,null,null," "]
[null,null,null,null,null,null," "]
[null,null,null,null,null,null," "]
[null,null,null,null,null,null," "]
[null,null,null,null,null,null," "]
[null,null,null,null,null,null," "]
[null,null,null,null,null,null," "]
[null,null,null,null,null,null," "]
[null,null,null,null,null,null," "]
[null,null,null,null,null,null," "]
[null,null,null,null,null,null," "]
[null,null,null,null,null,null," "]
[null,null,null,null,null,null," "]
[null,null,null,null,null,null," "]
[null,null,null,null,null,null," "]
[null,null,null,null,null,null," "]
[null,null,null,null,null,null," "]
[null,null,null,null,null,null," "]
[null,null,null,null,null,null," "]
[null,null,null,null,null,null," "]
[null,null,null,null,null,null," "]
[null,null,null,null,null,null," "]
[null,null,null,null,null,null," "]
[null,null,null,null,null,null," "]
[null,null,null,null,null,null," "]
[null,null,null,null,null,null," "]
[null,null,null,null,null,null," "]
[null,null,null,null,null,null," "]
[null,null,null,null,null,null," "]
[null,null,null,null,null,null," "]
[null,null,null,null,null,null," "]
[null,null,null,null,null,null," "]
[null,null,null,null,null,null," "]
[null,null,null,null,null,null," "]
[null,null,null,null,null,null," "]
[null,null,null,null,null,null," "]
[null,null,null,null,null,null," "]
[null,null,null,null,null,null," "]
[null,null,null,null,null,null," "]
[null,null,null,null,null,null," "]
[null,null,null,null,null,null," "]
[null,null,null,null,null,null," "]
[null,null,null,null,null,null," "]
[null,null,null,null,null,null," "]
[null,null,null,null,null,null," "]
[null,null,null,null,null,null," "]
[null,null,null,null,null,null," "]
[null,null,null,null,null,null," "]
[null,null,null,null,null,null," "]
[null,null,null,null,null,null," "]
[null,null,null,null,null,null," "]
[null,null,null,null,null,null," "]
[null,null,null,null,null,null," "]
[null,null,null,null,null,null," "]
[null,null,null,null,null,null," "]
[null,null,null,null,null,null," "]
[null,null,null,null,null,null," "]
[null,null,null,null,null,null," "]
[null,null,null,null,null,null," "]
[null,null,null,null,null,null," "]
[null,null,null,null,null,null," "]
[null,null,null,null,null,null," "]
[null,null,null,null,null,null," "]
[null,null,null,null,null,null," "]
[null,null,null,null,null,null," "]
[null,null,null,null,null,null," "]
[null,null,null,null,null,null," "]
[null,null,null,null,null,null," "]
[null,null,null,null,null,null," "]
[null,null,null,null,null,null," "]
[null,null,null,null,null,null," "]
[null,null,null,null,null,null," "]
[null,null,null,null,null,null," "]
[null,null,null,null,null,null," "]
[null,null,null,null,null,null," "]
[null,null,null,null,null,null," "]
[null,null,null,null,null,null," "]
[null,null,null,null,null,null," "]
[null,null,null,null,null,null," "]
[null,null,null,null,null,null," "]
[null,null,null,null,null,null," "]
[null,null,null,null,null,null," "]
[null,null,null,null,null,null," "]
[null,null,null,null,null,null," "]
[null,null,null,null,null,null," "]
[null,null,null,null,null,null," "]
[null,null,null,null,null,null," "]
[null,null,null,null,null,null," "]
[null,null,null,null,null,null," "]
[null,null,null,null,null,null," "]
[null,null,null,null,null,null," "]
[null,null,null,null,null,null," "]
[null,null,null,null,null,null," "]
[null,null,null,null,null,null," "]
[null,null,null,null,null,null," "]
[null,null,null,null,null,null," "]
[null,null,null,null,null,null," "]
[null,null,null,null,null,null," "]
[null,null,null,null,null,null," "]
[null,null,null,null,null,null," "]
[null,null,null,null,null,null," "]
[null,null,null,null,null,null," "]
[null,null,null,null,null,null," "]
[null,null,null,null,null,null," "]
[null,null,null,null,null,null," "]
[null,null,null,null,null,null," "]
[null,null,null,null,null,null," "]
[null,null,null,null,null,null," "]
[null,null,null,null,null,null," "]
[null,null,null,null,null,null," "]
[null,null,null,null,null,null," "]
[null,null,null,null,null,null," "]
[null,null,null,null,null,null," "]
[null,null,null,null,null,null," "]
[null,null,null,null,null,null," "]
[null,null,null,null,null,null," "]
[null,null,null,null,null,null," "]
[null,null,null,null,null,null," "]
[null,null,null,null,null,null," "]
[null,null,null,null,null,null," "]
[null,null,null,null,null,null," "]
[null,null,null,null,null,null," "]
[null,null,null,null,null,null," "]
[null,null,null,null,null,null," "]
[null,null,null,null,null,null," "]
[null,null,null,null,null,null," "]
[null,null,null,null,null,null," "]
[null,null,null,null,null,null," "]
[null,null,null,null,null,null," "]
[null,null,null,null,null,null," "]
[null,null,null,null,null,null," "]
[null,null,null,null,null,null," "]
[null,null,null,null,null,null," "]
[null,null,null,null,null,null," "]
[null,null,null,null,null,null," "]
[null,null,null,null,null,null," "]
[null,null,null,null,null,null," "]
[null,null,null,null,null,null," "]
[null,null,null,null,null,null," "]
[null,null,null,null,null,null," "]
[null,null,null,null,null,null," "]
[null,null,null,null,null,null," "]
[null,null,null,null,null,null," "]
[null,null,null,null,null,null," "]
[null,null,null,null,null,null," "]
[null,null,null,null,null,null," "]
[null,null,null,null,null,null," "]
[null,null,null,null,null,null," "]
[null,null,null,null,null,null," "]
[null,null,null,null,null,null," "]
[null,null,null,null,null,null," "]
[null,null,null,null,null,null," "]
[null,null,null,null,null,null," "]
[null,null,null,null,null,null," "]
[null,null,null,null,null,null," "]
[null,null,null,null,null,null," "]
[null,null,null,null,null,null," "]
[null,null,null,null,null,null," "]
[null,null,null,null,null,null," "]
[null,null,null,null,null,null," "]
[null,null,null,null,null,null," "]
[null,null,null,null,null,null," "]
[null,null,null,null,null,null," "]
[null,null,null,null,null,null," "]
[null,null,null,null,null,null," "]
[null,null,null,null,null,null," "]
[null,null,null,null,null,null," "]
[null,null,null,null,null,null," "]
[null,null,null,null,null,null," "]
[null,null,null,null,null,null," "]
[null,null,null,null,null,null," "]
[null,null,null,null,null,null," "]
[null,null,null,null,null,null," "]
[null,null,null,null,null,null," "]
[null,null,null,null,null,null," "]
[null,null,null,null,null,null," "]
[null,null,null,null,null,null," "]
[null,null,null,null,null,null," "]
[null,null,null,null,null,null," "]
[null,null,null,null,null,null," "]
[null,null,null,null,null,null," "]
[null,null,null,null,null,null," "]
[null,null,null,null,null,null," "]

{"sheet":"24-08-2019","index":5,"n_rows":493,"n_cols":31,"rows_kept":493,"cut":false,"hidden":false,"merged":[[1,19,1,21]]}
["Official time - work",null,null,null,null,null,null,null,null,null,null,null,null,null,null,"رجــــوع"]
["#","App. Date","Name","Surname","Pasaport No.","Date of birth","Note of status"," ","Paid $","Route","Unpaid $","GT","Case of appl","TG.Gov",null,"رجــــوع","رجــــوع",null,null,"TOTAL"]
[null,null,null,null,null,null,null," ",{"$f":"IF(J3<>\"\",\"\",H3)","v":""},"wesam",{"$f":"IF(AND(I3=\"\",J3<>\"\"),H3,\"\")","v":" "},{"$f":"IF(C3=\"\",\"\",25)","v":""},null,{"$f":"IF(M3=\"Extractor\",62.5,0)","v":0},null,null,null,"DONE",null,"Total amount",null,"Net profit",null,"Route","Coun of Rout","Total Unpaid",null,{"$f":"NoBlanks(J3:J100)","v":"wesam"},null,"Note of status","Count of Mistake"]
[null,null,null,null,null,null,null," ","","wesam"," ","",null,0,null,null,null,"CANCELLED",null,{"$f":"SUM(H2:H70)","v":0},null,{"$f":"T4-V14","v":0},null,{"$f":"IF(ISERROR(INDEX($AB$3:$AB$70,MATCH(0,COUNTIF($X$3:X3,$AB$3:$AB$69),0))),\"\",INDEX($AB$3:$AB$69,MATCH(0,COUNTIF($X$3:X3,$AB$3:$AB$69),0)))","v":"wesam"},{"$f":"IF(X4=\"\",\"\",COUNTIF(J2:J100,X4))","v":2},{"$f":"IF(X4<>\"\",SUMPRODUCT(--($J$2:$J$69=X4),$K$2:$K$69),\"\")","v":0},null,{"$f":"NoBlanks(J3:J500)","v":"wesam"},null,"DONE",{"$f":"COUNTIF(C2:C70,\"Done\")","v":0}]
[null,null,null,null,null,null,null," "," ",null,"","",null,0,null,null,null,"REFUSED",null,null,null,null,null,{"$f":"IF(ISERROR(INDEX($AB$3:$AB$70,MATCH(0,COUNTIF($X$3:X4,$AB$3:$AB$69),0))),\"\",INDEX($AB$3:$AB$69,MATCH(0,COUNTIF($X$3:X4,$AB$3:$AB$69),0)))","v":""},"","",null,{"$f":"NoBlanks(J4:J501)","v":"wesam"},null,"CANCELLED",{"$f":"COUNTIF(C3:C71,\"Cancelled\")","v":0}]
[null,null,null,null,null,null,null," "," ",null,"","",null,0,null,null,null,"MISTAKE",null,"Total Paid",null,"Difrent amount",null,{"$f":"IF(ISERROR(INDEX($AB$3:$AB$70,MATCH(0,COUNTIF($X$3:X5,$AB$3:$AB$69),0))),\"\",INDEX($AB$3:$AB$69,MATCH(0,COUNTIF($X$3:X5,$AB$3:$AB$69),0)))","v":""},"","",null,{"$f":"NoBlanks(J5:J502)","v":""},null,"REFUSED",{"$f":"COUNTIF(C4:C72,\"Refused\")","v":0}]
[null,null,null,null,null,null,null," "," ",null,"","",null,0,null,null,null,"GREEN PASS.",null,{"$f":"SUM(I2:I70)","v":0},null,{"$f":"T4-(T7+T10)","v":0},null,{"$f":"IF(ISERROR(INDEX($AB$3:$AB$70,MATCH(0,COUNTIF($X$3:X6,$AB$3:$AB$69),0))),\"\",INDEX($AB$3:$AB$69,MATCH(0,COUNTIF($X$3:X6,$AB$3:$AB$69),0)))","v":""},{"$f":"IF(X7=\"\",\"\",COUNTIF(J5:J103,X7))","v":""},"",{"$f":"IF(K3=\"\",\"\",J3)","v":"wesam"},{"$f":"NoBlanks(J6:J503)","v":""},null,"MISTAKE IN DOB",{"$f":"COUNTIF(C5:C73,\"Mistake\")","v":0}]
[null,null,null,null,null,null,null," "," ",null,"","",null,0,null,null,null,null,null,null,null,null,null,{"$f":"IF(ISERROR(INDEX($AB$3:$AB$70,MATCH(0,COUNTIF($X$3:X7,$AB$3:$AB$69),0))),\"\",INDEX($AB$3:$AB$69,MATCH(0,COUNTIF($X$3:X7,$AB$3:$AB$69),0)))","v":""},{"$f":"IF(X8=\"\",\"\",COUNTIF(J6:J104,X8))","v":""},"","wesam",{"$f":"NoBlanks(J7:J504)","v":""},null,"GREEN PASS",{"$f":"COUNTIF(C6:C74,\"Green Pass.\")","v":0}]
[null,null,null,null,null,null,null," "," ",null,"","",null,0,null,null,null,"official time + work",null,"Total UnPaid",null,"No. of applicants",null,{"$f":"IF(ISERROR(INDEX($AB$3:$AB$70,MATCH(0,COUNTIF($X$3:X8,$AB$3:$AB$69),0))),\"\",INDEX($AB$3:$AB$69,MATCH(0,COUNTIF($X$3:X8,$AB$3:$AB$69),0)))","v":""},"","","",{"$f":"NoBlanks(J8:J505)","v":""}]
[null,null,null,null,null,null,null," "," ",null,"","",null,0,null,null,null,"official time - work",null,{"$f":"SUM(K2:K70)","v":0},null,{"$f":"COUNT(B:B)","v":0},null,{"$f":"IF(ISERROR(INDEX($AB$3:$AB$70,MATCH(0,COUNTIF($X$3:X9,$AB$3:$AB$69),0))),\"\",INDEX($AB$3:$AB$69,MATCH(0,COUNTIF($X$3:X9,$AB$3:$AB$69),0)))","v":""},"","","",{"$f":"NoBlanks(J9:J506)","v":""}]
[null,null,null,null,null,null,null," "," ",null,"","",null,0,null,null,null,"official holiday",null,null,null,null,null,{"$f":"IF(ISERROR(INDEX($AB$3:$AB$70,MATCH(0,COUNTIF($X$3:X10,$AB$3:$AB$69),0))),\"\",INDEX($AB$3:$AB$69,MATCH(0,COUNTIF($X$3:X10,$AB$3:$AB$69),0)))","v":""},"","","",{"$f":"NoBlanks(J10:J507)","v":""}]
[null,null,null,null,null,null,null," "," ",null,"","",null,0,null,null,null,"other",null,"Total GT",null,null,null,{"$f":"IF(ISERROR(INDEX($AB$3:$AB$70,MATCH(0,COUNTIF($X$3:X11,$AB$3:$AB$69),0))),\"\",INDEX($AB$3:$AB$69,MATCH(0,COUNTIF($X$3:X11,$AB$3:$AB$69),0)))","v":""},"","","",{"$f":"NoBlanks(J11:J508)","v":""}]
[null,null,null,null,null,null,null," "," ",null,"","",null,0,null,null,null,null,null,{"$f":"SUM(L2:L70)","v":0},null,"Cost amount",null,{"$f":"IF(ISERROR(INDEX($AB$3:$AB$70,MATCH(0,COUNTIF($X$3:X12,$AB$3:$AB$69),0))),\"\",INDEX($AB$3:$AB$69,MATCH(0,COUNTIF($X$3:X12,$AB$3:$AB$69),0)))","v":""},"","","",{"$f":"NoBlanks(J12:J509)","v":""}]
[null,null,null,null,null,null,null," "," ",null,"","",null,0,null,null,null,null,null,null,null,{"$f":"IF(AND(T13<>\"\",T16<>\"\"),T13+T16,\"\")","v":0},null,{"$f":"IF(ISERROR(INDEX($AB$3:$AB$70,MATCH(0,COUNTIF($X$3:X13,$AB$3:$AB$69),0))),\"\",INDEX($AB$3:$AB$69,MATCH(0,COUNTIF($X$3:X13,$AB$3:$AB$69),0)))","v":""},"","","",{"$f":"NoBlanks(J13:J510)","v":""}]
[null,null,null,null,null,null,null," "," ",null,"","",null,0,null,null,null,null,null,"Total T.Gov",null,null,null,{"$f":"IF(ISERROR(INDEX($AB$3:$AB$70,MATCH(0,COUNTIF($X$3:X14,$AB$3:$AB$69),0))),\"\",INDEX($AB$3:$AB$69,MATCH(0,COUNTIF($X$3:X14,$AB$3:$AB$69),0)))","v":""},"","","",{"$f":"NoBlanks(J14:J511)","v":""}]
[null,null,null,null,null,null,null," "," ",null,"","",null,0,null,null,null,null,null,{"$f":"SUM(N2:N70)","v":0},null,null,null,{"$f":"IF(ISERROR(INDEX($AB$3:$AB$70,MATCH(0,COUNTIF($X$3:X15,$AB$3:$AB$69),0))),\"\",INDEX($AB$3:$AB$69,MATCH(0,COUNTIF($X$3:X15,$AB$3:$AB$69),0)))","v":""},"","","",{"$f":"NoBlanks(J15:J512)","v":""}]
[null,null,null,null,null,null,null," "," ",null,{"$f":"IF(AND(I17=\"\",J17<>\"\"),H17,\"\")","v":""},"",null,0,null,null,null,null,null,null,null,null,null,{"$f":"IF(ISERROR(INDEX($AB$3:$AB$70,MATCH(0,COUNTIF($X$3:X16,$AB$3:$AB$69),0))),\"\",INDEX($AB$3:$AB$69,MATCH(0,COUNTIF($X$3:X16,$AB$3:$AB$69),0)))","v":""},"","","",{"$f":"NoBlanks(J16:J513)","v":""}]
[null,null,null,null,null,null," "," "," ",null,{"$f":"IF(AND(I18=\"\",J18<>\"\"),H18,\"\")","v":""},"",null,0,null,null,null,null,null,null,null,null,null,{"$f":"IF(ISERROR(INDEX($AB$3:$AB$70,MATCH(0,COUNTIF($X$3:X17,$AB$3:$AB$69),0))),\"\",INDEX($AB$3:$AB$69,MATCH(0,COUNTIF($X$3:X17,$AB$3:$AB$69),0)))","v":""},"","","",{"$f":"NoBlanks(J17:J514)","v":""}]
[null,null,null,null,null,null," "," "," ",null,"","",null,0,null,null,null,null,null,null,null,null,null,{"$f":"IF(ISERROR(INDEX($AB$3:$AB$70,MATCH(0,COUNTIF($X$3:X18,$AB$3:$AB$69),0))),\"\",INDEX($AB$3:$AB$69,MATCH(0,COUNTIF($X$3:X18,$AB$3:$AB$69),0)))","v":""},"","","",{"$f":"NoBlanks(J18:J515)","v":""}]
[null,null,null,null,null,null," "," "," ",null,"","",null,0,null,null,null,null,null,null,null,null,null,{"$f":"IF(ISERROR(INDEX($AB$3:$AB$70,MATCH(0,COUNTIF($X$3:X19,$AB$3:$AB$69),0))),\"\",INDEX($AB$3:$AB$69,MATCH(0,COUNTIF($X$3:X19,$AB$3:$AB$69),0)))","v":""},"","","",{"$f":"NoBlanks(J19:J516)","v":""}]
[null,null,null,null,null,null," ",null,0,null,"","",null,0,null,null,null,null,null,null,null,null,null,{"$f":"IF(ISERROR(INDEX($AB$3:$AB$70,MATCH(0,COUNTIF($X$3:X20,$AB$3:$AB$69),0))),\"\",INDEX($AB$3:$AB$69,MATCH(0,COUNTIF($X$3:X20,$AB$3:$AB$69),0)))","v":""},"","","",{"$f":"NoBlanks(J20:J517)","v":""}]
[null,null,null,null,null,null," ",null,0,null,"","",null,0,null,null,null,null,null,null,null,null,null,{"$f":"IF(ISERROR(INDEX($AB$3:$AB$70,MATCH(0,COUNTIF($X$3:X21,$AB$3:$AB$69),0))),\"\",INDEX($AB$3:$AB$69,MATCH(0,COUNTIF($X$3:X21,$AB$3:$AB$69),0)))","v":""},"","","",{"$f":"NoBlanks(J21:J518)","v":""},null,null,{"$f":"IFERROR(INDEX($J$2:$J$492,SMALL(IF($J$2:$J$492<>\"\",ROW($J$1:$J$492)-ROW($J$2)+1,\"\"),ROWS(AE$21:$AI22))),\"\")","v":""}]
[null,null,null,null,null,null," ",null,0,null,"","",null,0,null,null,null,null,null,null,null,"Done",null,null,{"$f":"NoBlanks(AA25:AA518)","v":""},{"$f":"IFERROR(INDEX($J$2:$J$492,SMALL(IF($J$2:$J$492<>\"\",ROW($J$1:$J$492)-ROW($J$2)+1,\"\"),ROWS(AE$21:$AI23))),\"\")","v":""},null,{"$f":"NoBlanks(J22:J519)","v":""}]
[null,null,null,null,null,null," ",null,0,null,"","",null,0,null,null,null,null,null,null,null,"Cancelled",null,null,null,null,{"$f":"IF(K20=\"\",\"\",J20)","v":""},{"$f":"NoBlanks(J23:J520)","v":""},null,null,{"$f":"IFERROR(INDEX($J$2:$J$492,SMALL(IF($J$2:$J$492<>\"\",ROW($J$1:$J$492)-ROW($J$2)+1,\"\"),ROWS(AE$21:$AI24))),\"\")","v":""}]
[null,null,null,null,null,null," ",null,0,null,"","",null,0,null,null,null,null,null,null,null,"Refused",null,null,null,null,"",{"$f":"NoBlanks(J24:J521)","v":""},null,null,{"$f":"IFERROR(INDEX($J$2:$J$492,SMALL(IF($J$2:$J$492<>\"\",ROW($J$1:$J$492)-ROW($J$2)+1,\"\"),ROWS(AE$21:$AI25))),\"\")","v":""}]
[null,null,null,null,null,null," ",null,0,null,"","",null,0,null,null,null,null,null,null,null,"Green pass.",null,null,null,null,"",{"$f":"NoBlanks(J25:J522)","v":""}]
[null,null,null,null,null,null," ",null,0,null,"","",null,0,null,null,null,null,null,null,null,"Mistake",null,null,null,null,"",{"$f":"NoBlanks(J26:J523)","v":""}]
[null,null,null,null,null,null," ",null,0,null,"","",null,0,null,null,null,null,null,null,null,null,null,null,null,null,"",{"$f":"NoBlanks(J27:J524)","v":""}]
[null,null,null,null,null,null," ",null,0,null,"","",null,0,null,null,null,null,null,null,null,null,null,null,null,null,"",{"$f":"NoBlanks(J28:J525)","v":""}]
[null,null,null,null,null,null," ",null,0,null,"","",null,0,null,null,null,null,null,null,null,null,null,null,null,null,"",{"$f":"NoBlanks(J29:J526)","v":""}]
[null,null,null,null,null,null," ",null,0,null,"","",null,0,null,null,null,null,null,null,null,null,null,null,null,null,"",{"$f":"NoBlanks(J30:J527)","v":""}]
[null,null,null,null,null,null," ",null,0,null,"","",null,0,null,null,null,null,null,null,null,null,null,null,null,null,"",{"$f":"NoBlanks(J31:J528)","v":""}]
[null,null,null,null,null,null," ",null,0,null,"","",null,0,null,null,null,null,null,null,null,null,null,null,null,null,"",{"$f":"NoBlanks(J32:J529)","v":""}]
[null,null,null,null,null,null," ",null,0,null,"","",null,0,null,null,null,null,null,null,null,null,null,null,null,null,"",{"$f":"NoBlanks(J33:J530)","v":""}]
[null,null,null,null,null,null," ",null,0,null,"","",null,0,null,null,null,null,null,null,null,null,null,null,null,null,"",{"$f":"NoBlanks(J34:J531)","v":""}]
[null,null,null,null,null,null," ",null,0,null,"","",null,0,null,null,null,null,null,null,null,null,null,null,null,null,"",{"$f":"NoBlanks(J35:J532)","v":""}]
[null,null,null,null,null,null," ",null,0,null,"","",null,0,null,null,null,null,null,null,null,null,null,null,null,null,"",{"$f":"NoBlanks(J36:J533)","v":""}]
[null,null,null,null,null,null," ",null,0,null,"","",null,0,null,null,null,null,null,null,null,null,null,null,null,null,"",{"$f":"NoBlanks(J37:J534)","v":""}]
[null,null,null,null,null,null," ",null,0,null,"","",null,0,null,null,null,null,null,null,null,null,null,null,null,null,"",{"$f":"NoBlanks(J38:J535)","v":""}]
[null,null,null,null,null,null," ",null,0,null,"","",null,0,null,null,null,null,null,null,null,null,null,null,null,null,"",{"$f":"NoBlanks(J39:J536)","v":""}]
[null,null,null,null,null,null," ",null,0,null,"","",null,0,null,null,null,null,null,null,null,null,null,null,null,null,"",{"$f":"NoBlanks(J40:J537)","v":""}]
[null,null,null,null,null,null," ",null,0,null,"","",null,0,null,null,null,null,null,null,null,null,null,null,null,null,"",{"$f":"NoBlanks(J41:J538)","v":""}]
[null,null,null,null,null,null," ",null,0,null,"","",null,0,null,null,null,null,null,null,null,null,null,null,null,null,"",{"$f":"NoBlanks(J42:J539)","v":""}]
[null,null,null,null,null,null," ",null,0,null,"","",null,0,null,null,null,null,null,null,null,null,null,null,null,null,"",{"$f":"NoBlanks(J43:J540)","v":""}]
[null,null,null,null,null,null," ",null,0,null,"","",null,0,null,null,null,null,null,null,null,null,null,null,null,null,"",{"$f":"NoBlanks(J44:J541)","v":""}]
[null,null,null,null,null,null," ",null,0,null,"","",null,0,null,null,null,null,null,null,null,null,null,null,null,null,"",{"$f":"NoBlanks(J45:J542)","v":""}]
[null,null,null,null,null,null," ",null,0,null,"","",null,0,null,null,null,null,null,null,null,null,null,null,null,null,"",{"$f":"NoBlanks(J46:J543)","v":""}]
[null,null,null,null,null,null," ",null,0,null,"","",null,0,null,null,null,null,null,null,null,null,null,null,null,null,"",{"$f":"NoBlanks(J47:J544)","v":""}]
[null,null,null,null,null,null," ",null,0,null,"","",null,0,null,null,null,null,null,null,null,null,null,null,null,null,"",{"$f":"NoBlanks(J48:J545)","v":""}]
[null,null,null,null,null,null," ",null,0,null,"","",null,0,null,null,null,null,null,null,null,null,null,null,null,null,"",{"$f":"NoBlanks(J49:J546)","v":""}]
[null,null,null,null,null,null," ",null,0,null,"","",null,0,null,null,null,null,null,null,null,null,null,null,null,null,"",{"$f":"NoBlanks(J50:J547)","v":""}]
[null,null,null,null,null,null," ",null,0,null,"","",null,0,null,null,null,null,null,null,null,null,null,null,null,null,"",{"$f":"NoBlanks(J51:J548)","v":""}]
[null,null,null,null,null,null," ",null,0,null,"","",null,0,null,null,null,null,null,null,null,null,null,null,null,null,"",{"$f":"NoBlanks(J52:J549)","v":""}]
[null,null,null,null,null,null," ",null,0,null,"","",null,0,null,null,null,null,null,null,null,null,null,null,null,null,"",{"$f":"NoBlanks(J53:J550)","v":""}]
[null,null,null,null,null,null," ",null,0,null,"","",null,0,null,null,null,null,null,null,null,null,null,null,null,null,"",{"$f":"NoBlanks(J54:J551)","v":""}]
[null,null,null,null,null,null," ",null,0,null,"","",null,0,null,null,null,null,null,null,null,null,null,null,null,null,"",{"$f":"NoBlanks(J55:J552)","v":""}]
[null,null,null,null,null,null," ",null,0,null,"","",null,0,null,null,null,null,null,null,null,null,null,null,null,null,"",{"$f":"NoBlanks(J56:J553)","v":""}]
[null,null,null,null,null,null," ",null,0,null,"","",null,0,null,null,null,null,null,null,null,null,null,null,null,null,"",{"$f":"NoBlanks(J57:J554)","v":""}]
[null,null,null,null,null,null," ",null,0,null,"","",null,0,null,null,null,null,null,null,null,null,null,null,null,null,"",{"$f":"NoBlanks(J58:J555)","v":""}]
[null,null,null,null,null,null," ",null,0,null,"","",null,0,null,null,null,null,null,null,null,null,null,null,null,null,"",{"$f":"NoBlanks(J59:J556)","v":""}]
[null,null,null,null,null,null," ",null,0,null,"","",null,0,null,null,null,null,null,null,null,null,null,null,null,null,"",{"$f":"NoBlanks(J60:J557)","v":""}]
[null,null,null,null,null,null," ",null,0,null,"","",null,0,null,null,null,null,null,null,null,null,null,null,null,null,"",{"$f":"NoBlanks(J61:J558)","v":""}]
[null,null,null,null,null,null," ",null,0,null,"","",null,0,null,null,null,null,null,null,null,null,null,null,null,null,"",{"$f":"NoBlanks(J62:J559)","v":""}]
[null,null,null,null,null,null," ",null,0,null,{"$f":"IF(AND(I64=\"\",J64<>\"\"),H64,\"\")","v":""},"",null,0,null,null,null,null,null,null,null,null,null,null,null,null,"",{"$f":"NoBlanks(J63:J560)","v":""}]
[null,null,null,null,null,null," ",null,0,null,{"$f":"IF(AND(I65=\"\",J65<>\"\"),H65,\"\")","v":""},"",null,0,null,null,null,null,null,null,null,null,null,null,null,null,"",{"$f":"NoBlanks(J64:J561)","v":""}]
[null,null,null,null,null,null," ",null,0,null,"","",null,0,null,null,null,null,null,null,null,null,null,null,null,null,"",{"$f":"NoBlanks(J65:J562)","v":""}]
[null,null,null,null,null,null," ",null,{"$f":"IF(J67<>\"\",\"\",H67)","v":0},null,"",{"$f":"IF(C67=\"\",\"\",25)","v":""},null,{"$f":"IF(M67=\"Extractor\",62.5,0)","v":0},null,null,null,null,null,null,null,null,null,null,null,null,"",{"$f":"NoBlanks(J66:J563)","v":""}]
[null,null,null,null,null,null," ",null,0,null,"","",null,0,null,null,null,null,null,null,null,null,null,null,null,null,"",{"$f":"NoBlanks(J67:J564)","v":""}]
[null,null,null,null,null,null," ",null,0,null,"","",null,0,null,null,null,null,null,null,null,null,null,null,null,null,"",{"$f":"NoBlanks(J68:J565)","v":""}]
[null,null,null,null,null,null," ",null,0,null,"","",null,0,null,null,null,null,null,null,null,null,null,null,null,null,"",{"$f":"NoBlanks(J69:J566)","v":""}]
[null,null,null,null,null,null," "," ",null,null,null,null,null,null,null,null,null,null,null,null,null,null,null,null,null,null,"",{"$f":"NoBlanks(J70:J567)","v":""}]
[null,null,null,null,null,null," "," ",null,null,null,null,null,null,null,null,null,null,null,null,null,null,null,null,null,null,"",{"$f":"NoBlanks(J71:J568)","v":""}]
[null,null,null,null,null,null," "," ",null,null,null,null,null,null,null,null,null,null,null,null,null,null,null,null,null,null,"",{"$f":"NoBlanks(J72:J569)","v":""}]
[null,null,null,null,null,null," "," ",null,null,null,null,null,null,null,null,null,null,null,null,null,null,null,null,null,null,"",{"$f":"NoBlanks(J73:J570)","v":""}]
[null,null,null,null,null,null," "," ",null,null,null,null,null,null,null,null,null,null,null,null,null,null,null,null,null,null,"",{"$f":"NoBlanks(J74:J571)","v":""}]
[null,null,null,null,null,null," "," ",null,null,null,null,null,null,null,null,null,null,null,null,null,null,null,null,null,null,"",{"$f":"NoBlanks(J75:J572)","v":""}]
[null,null,null,null,null,null," "," ",null,null,null,null,null,null,null,null,null,null,null,null,null,null,null,null,null,null,"",{"$f":"NoBlanks(J76:J573)","v":""}]
[null,null,null,null,null,null," "," ",null,null,null,null,null,null,null,null,null,null,null,null,null,null,null,null,null,null,"",{"$f":"NoBlanks(J77:J574)","v":""}]
[null,null,null,null,null,null," "," ",null,null,null,null,null,null,null,null,null,null,null,null,null,null,null,null,null,null,"",{"$f":"NoBlanks(J78:J575)","v":""}]
[null,null,null,null,null,null," "," ",null,null,null,null,null,null,null,null,null,null,null,null,null,null,null,null,null,null,"",{"$f":"NoBlanks(J79:J576)","v":""}]
[null,null,null,null,null,null," "," ",null,null,null,null,null,null,null,null,null,null,null,null,null,null,null,null,null,null,"",{"$f":"NoBlanks(J80:J577)","v":""}]
[null,null,null,null,null,null," "," ",null,null,null,null,null,null,null,null,null,null,null,null,null,null,null,null,null,null,"",{"$f":"NoBlanks(J81:J578)","v":""}]
[null,null,null,null,null,null," "," ",null,null,null,null,null,null,null,null,null,null,null,null,null,null,null,null,null,null,"",{"$f":"NoBlanks(J82:J579)","v":""}]
[null,null,null,null,null,null," "," ",null,null,null,null,null,null,null,null,null,null,null,null,null,null,null,null,null,null,"",{"$f":"NoBlanks(J83:J580)","v":""}]
[null,null,null,null,null,null," "," ",null,null,null,null,null,null,null,null,null,null,null,null,null,null,null,null,null,null,"",{"$f":"NoBlanks(J84:J581)","v":""}]
[null,null,null,null,null,null," "," ",null,null,null,null,null,null,null,null,null,null,null,null,null,null,null,null,null,null,"",{"$f":"NoBlanks(J85:J582)","v":""}]
[null,null,null,null,null,null," "," ",null,null,null,null,null,null,null,null,null,null,null,null,null,null,null,null,null,null,"",{"$f":"NoBlanks(J86:J583)","v":""}]
[null,null,null,null,null,null," "," ",null,null,null,null,null,null,null,null,null,null,null,null,null,null,null,null,null,null,{"$f":"IF(K84=\"\",\"\",J84)","v":""},{"$f":"NoBlanks(J87:J584)","v":""}]
[null,null,null,null,null,null," "," ",null,null,null,null,null,null,null,null,null,null,null,null,null,null,null,null,null,null,"",{"$f":"NoBlanks(J88:J585)","v":""}]
[null,null,null,null,null,null," "," ",null,null,null,null,null,null,null,null,null,null,null,null,null,null,null,null,null,null,"",{"$f":"NoBlanks(J89:J586)","v":""}]
[null,null,null,null,null,null," "," ",null,null,null,null,null,null,null,null,null,null,null,null,null,null,null,null,null,null,"",{"$f":"NoBlanks(J90:J587)","v":""}]
[null,null,null,null,null,null," "," ",null,null,null,null,null,null,null,null,null,null,null,null,null,null,null,null,null,null,"",{"$f":"NoBlanks(J91:J588)","v":""}]
[null,null,null,null,null,null," "," ",null,null,null,null,null,null,null,null,null,null,null,null,null,null,null,null,null,null,"",{"$f":"NoBlanks(J92:J589)","v":""}]
[null,null,null,null,null,null," ",null,null,null,null,null,null,null,null,null,null,null,null,null,null,null,null,null,null,null,"",{"$f":"NoBlanks(J93:J590)","v":""}]
[null,null,null,null,null,null," ",null,null,null,null,null,null,null,null,null,null,null,null,null,null,null,null,null,null,null,"",{"$f":"NoBlanks(J94:J591)","v":""}]
[null,null,null,null,null,null," ",null,null,null,null,null,null,null,null,null,null,null,null,null,null,null,null,null,null,null,"",{"$f":"NoBlanks(J95:J592)","v":""}]
[null,null,null,null,null,null," ",null,null,null,null,null,null,null,null,null,null,null,null,null,null,null,null,null,null,null,"",{"$f":"NoBlanks(J96:J593)","v":""}]
[null,null,null,null,null,null," ",null,null,null,null,null,null,null,null,null,null,null,null,null,null,null,null,null,null,null,"",{"$f":"NoBlanks(J97:J594)","v":""}]
[null,null,null,null,null,null," ",null,null,null,null,null,null,null,null,null,null,null,null,null,null,null,null,null,null,null,"",{"$f":"NoBlanks(J98:J595)","v":""}]
[null,null,null,null,null,null," ",null,null,null,null,null,null,null,null,null,null,null,null,null,null,null,null,null,null,null,"",{"$f":"NoBlanks(J99:J596)","v":""}]
[null,null,null,null,null,null," ",null,null,null,null,null,null,null,null,null,null,null,null,null,null,null,null,null,null,null,"",{"$f":"NoBlanks(J100:J597)","v":""}]
[null,null,null,null,null,null," ",null,null,null,null,null,null,null,null,null,null,null,null,null,null,null,null,null,null,null,"",{"$f":"NoBlanks(J101:J598)","v":""}]
[null,null,null,null,null,null," ",null,null,null,null,null,null,null,null,null,null,null,null,null,null,null,null,null,null,null,null,{"$f":"NoBlanks(J102:J599)","v":""}]
[null,null,null,null,null,null," ",null,null,null,null,null,null,null,null,null,null,null,null,null,null,null,null,null,null,null,null,{"$f":"NoBlanks(J103:J600)","v":""}]
[null,null,null,null,null,null," ",null,null,null,null,null,null,null,null,null,null,null,null,null,null,null,null,null,null,null,null,{"$f":"NoBlanks(J104:J601)","v":""}]
[null,null,null,null,null,null," ",null,null,null,null,null,null,null,null,null,null,null,null,null,null,null,null,null,null,null,null,{"$f":"NoBlanks(J105:J602)","v":""}]
[null,null,null,null,null,null," ",null,null,null,null,null,null,null,null,null,null,null,null,null,null,null,null,null,null,null,null,{"$f":"NoBlanks(J106:J603)","v":""}]
[null,null,null,null,null,null," ",null,null,null,null,null,null,null,null,null,null,null,null,null,null,null,null,null,null,null,null,{"$f":"NoBlanks(J107:J604)","v":""}]
[null,null,null,null,null,null," ",null,null,null,null,null,null,null,null,null,null,null,null,null,null,null,null,null,null,null,null,{"$f":"NoBlanks(J108:J605)","v":""}]
[null,null,null,null,null,null," ",null,null,null,null,null,null,null,null,null,null,null,null,null,null,null,null,null,null,null,null,{"$f":"NoBlanks(J109:J606)","v":""}]
[null,null,null,null,null,null," ",null,null,null,null,null,null,null,null,null,null,null,null,null,null,null,null,null,null,null,null,{"$f":"NoBlanks(J110:J607)","v":""}]
[null,null,null,null,null,null," ",null,null,null,null,null,null,null,null,null,null,null,null,null,null,null,null,null,null,null,null,{"$f":"NoBlanks(J111:J608)","v":""}]
[null,null,null,null,null,null," ",null,null,null,null,null,null,null,null,null,null,null,null,null,null,null,null,null,null,null,null,{"$f":"NoBlanks(J112:J609)","v":""}]
[null,null,null,null,null,null," ",null,null,null,null,null,null,null,null,null,null,null,null,null,null,null,null,null,null,null,null,{"$f":"NoBlanks(J113:J610)","v":""}]
[null,null,null,null,null,null," ",null,null,null,null,null,null,null,null,null,null,null,null,null,null,null,null,null,null,null,null,{"$f":"NoBlanks(J114:J611)","v":""}]
[null,null,null,null,null,null," ",null,null,null,null,null,null,null,null,null,null,null,null,null,null,null,null,null,null,null,null,{"$f":"NoBlanks(J115:J612)","v":""}]
[null,null,null,null,null,null," ",null,null,null,null,null,null,null,null,null,null,null,null,null,null,null,null,null,null,null,null,{"$f":"NoBlanks(J116:J613)","v":""}]
[null,null,null,null,null,null," ",null,null,null,null,null,null,null,null,null,null,null,null,null,null,null,null,null,null,null,null,{"$f":"NoBlanks(J117:J614)","v":""}]
[null,null,null,null,null,null," ",null,null,null,null,null,null,null,null,null,null,null,null,null,null,null,null,null,null,null,null,{"$f":"NoBlanks(J118:J615)","v":""}]
[null,null,null,null,null,null," ",null,null,null,null,null,null,null,null,null,null,null,null,null,null,null,null,null,null,null,null,{"$f":"NoBlanks(J119:J616)","v":""}]
[null,null,null,null,null,null," ",null,null,null,null,null,null,null,null,null,null,null,null,null,null,null,null,null,null,null,null,{"$f":"NoBlanks(J120:J617)","v":""}]
[null,null,null,null,null,null," ",null,null,null,null,null,null,null,null,null,null,null,null,null,null,null,null,null,null,null,null,{"$f":"NoBlanks(J121:J618)","v":""}]
[null,null,null,null,null,null," ",null,null,null,null,null,null,null,null,null,null,null,null,null,null,null,null,null,null,null,null,{"$f":"NoBlanks(J122:J619)","v":""}]
[null,null,null,null,null,null," ",null,null,null,null,null,null,null,null,null,null,null,null,null,null,null,null,null,null,null,null,{"$f":"NoBlanks(J123:J620)","v":""}]
[null,null,null,null,null,null," ",null,null,null,null,null,null,null,null,null,null,null,null,null,null,null,null,null,null,null,null,{"$f":"NoBlanks(J124:J621)","v":""}]
[null,null,null,null,null,null," ",null,null,null,null,null,null,null,null,null,null,null,null,null,null,null,null,null,null,null,null,{"$f":"NoBlanks(J125:J622)","v":""}]
[null,null,null,null,null,null," ",null,null,null,null,null,null,null,null,null,null,null,null,null,null,null,null,null,null,null,null,{"$f":"NoBlanks(J126:J623)","v":""}]
[null,null,null,null,null,null," ",null,null,null,null,null,null,null,null,null,null,null,null,null,null,null,null,null,null,null,null,{"$f":"NoBlanks(J127:J624)","v":""}]
[null,null,null,null,null,null," ",null,null,null,null,null,null,null,null,null,null,null,null,null,null,null,null,null,null,null,null,{"$f":"NoBlanks(J128:J625)","v":""}]
[null,null,null,null,null,null," ",null,null,null,null,null,null,null,null,null,null,null,null,null,null,null,null,null,null,null,null,{"$f":"NoBlanks(J129:J626)","v":""}]
[null,null,null,null,null,null," ",null,null,null,null,null,null,null,null,null,null,null,null,null,null,null,null,null,null,null,null,{"$f":"NoBlanks(J130:J627)","v":""}]
[null,null,null,null,null,null," ",null,null,null,null,null,null,null,null,null,null,null,null,null,null,null,null,null,null,null,null,{"$f":"NoBlanks(J131:J628)","v":""}]
[null,null,null,null,null,null," ",null,null,null,null,null,null,null,null,null,null,null,null,null,null,null,null,null,null,null,null,{"$f":"NoBlanks(J132:J629)","v":""}]
[null,null,null,null,null,null," ",null,null,null,null,null,null,null,null,null,null,null,null,null,null,null,null,null,null,null,null,{"$f":"NoBlanks(J133:J630)","v":""}]
[null,null,null,null,null,null," ",null,null,null,null,null,null,null,null,null,null,null,null,null,null,null,null,null,null,null,null,{"$f":"NoBlanks(J134:J631)","v":""}]
[null,null,null,null,null,null," ",null,null,null,null,null,null,null,null,null,null,null,null,null,null,null,null,null,null,null,null,{"$f":"NoBlanks(J135:J632)","v":""}]
[null,null,null,null,null,null," ",null,null,null,null,null,null,null,null,null,null,null,null,null,null,null,null,null,null,null,null,{"$f":"NoBlanks(J136:J633)","v":""}]
[null,null,null,null,null,null," ",null,null,null,null,null,null,null,null,null,null,null,null,null,null,null,null,null,null,null,null,{"$f":"NoBlanks(J137:J634)","v":""}]
[null,null,null,null,null,null," ",null,null,null,null,null,null,null,null,null,null,null,null,null,null,null,null,null,null,null,null,{"$f":"NoBlanks(J138:J635)","v":""}]
[null,null,null,null,null,null," ",null,null,null,null,null,null,null,null,null,null,null,null,null,null,null,null,null,null,null,null,{"$f":"NoBlanks(J139:J636)","v":""}]
[null,null,null,null,null,null," ",null,null,null,null,null,null,null,null,null,null,null,null,null,null,null,null,null,null,null,null,{"$f":"NoBlanks(J140:J637)","v":""}]
[null,null,null,null,null,null," ",null,null,null,null,null,null,null,null,null,null,null,null,null,null,null,null,null,null,null,null,{"$f":"NoBlanks(J141:J638)","v":""}]
[null,null,null,null,null,null," ",null,null,null,null,null,null,null,null,null,null,null,null,null,null,null,null,null,null,null,null,{"$f":"NoBlanks(J142:J639)","v":""}]
[null,null,null,null,null,null," ",null,null,null,null,null,null,null,null,null,null,null,null,null,null,null,null,null,null,null,null,{"$f":"NoBlanks(J143:J640)","v":""}]
[null,null,null,null,null,null," ",null,null,null,null,null,null,null,null,null,null,null,null,null,null,null,null,null,null,null,null,{"$f":"NoBlanks(J144:J641)","v":""}]
[null,null,null,null,null,null," ",null,null,null,null,null,null,null,null,null,null,null,null,null,null,null,null,null,null,null,null,{"$f":"NoBlanks(J145:J642)","v":""}]
[null,null,null,null,null,null," ",null,null,null,null,null,null,null,null,null,null,null,null,null,null,null,null,null,null,null,null,{"$f":"NoBlanks(J146:J643)","v":""}]
[null,null,null,null,null,null," ",null,null,null,null,null,null,null,null,null,null,null,null,null,null,null,null,null,null,null,null,{"$f":"NoBlanks(J147:J644)","v":""}]
[null,null,null,null,null,null," ",null,null,null,null,null,null,null,null,null,null,null,null,null,null,null,null,null,null,null,null,{"$f":"NoBlanks(J148:J645)","v":""}]
[null,null,null,null,null,null," ",null,null,null,null,null,null,null,null,null,null,null,null,null,null,null,null,null,null,null,null,{"$f":"NoBlanks(J149:J646)","v":""}]
[null,null,null,null,null,null," ",null,null,null,null,null,null,null,null,null,null,null,null,null,null,null,null,null,null,null,null,{"$f":"NoBlanks(J150:J647)","v":""}]
[null,null,null,null,null,null," ",null,null,null,null,null,null,null,null,null,null,null,null,null,null,null,null,null,null,null,null,{"$f":"NoBlanks(J151:J648)","v":""}]
[null,null,null,null,null,null," ",null,null,null,null,null,null,null,null,null,null,null,null,null,null,null,null,null,null,null,null,{"$f":"NoBlanks(J152:J649)","v":""}]
[null,null,null,null,null,null," ",null,null,null,null,null,null,null,null,null,null,null,null,null,null,null,null,null,null,null,null,{"$f":"NoBlanks(J153:J650)","v":""}]
[null,null,null,null,null,null," ",null,null,null,null,null,null,null,null,null,null,null,null,null,null,null,null,null,null,null,null,{"$f":"NoBlanks(J154:J651)","v":""}]
[null,null,null,null,null,null," ",null,null,null,null,null,null,null,null,null,null,null,null,null,null,null,null,null,null,null,null,{"$f":"NoBlanks(J155:J652)","v":""}]
[null,null,null,null,null,null," ",null,null,null,null,null,null,null,null,null,null,null,null,null,null,null,null,null,null,null,null,{"$f":"NoBlanks(J156:J653)","v":""}]
[null,null,null,null,null,null," ",null,null,null,null,null,null,null,null,null,null,null,null,null,null,null,null,null,null,null,null,{"$f":"NoBlanks(J157:J654)","v":""}]
[null,null,null,null,null,null," ",null,null,null,null,null,null,null,null,null,null,null,null,null,null,null,null,null,null,null,null,{"$f":"NoBlanks(J158:J655)","v":""}]
[null,null,null,null,null,null," ",null,null,null,null,null,null,null,null,null,null,null,null,null,null,null,null,null,null,null,null,{"$f":"NoBlanks(J159:J656)","v":""}]
[null,null,null,null,null,null," ",null,null,null,null,null,null,null,null,null,null,null,null,null,null,null,null,null,null,null,null,{"$f":"NoBlanks(J160:J657)","v":""}]
[null,null,null,null,null,null," ",null,null,null,null,null,null,null,null,null,null,null,null,null,null,null,null,null,null,null,null,{"$f":"NoBlanks(J161:J658)","v":""}]
[null,null,null,null,null,null," ",null,null,null,null,null,null,null,null,null,null,null,null,null,null,null,null,null,null,null,null,{"$f":"NoBlanks(J162:J659)","v":""}]
[null,null,null,null,null,null," ",null,null,null,null,null,null,null,null,null,null,null,null,null,null,null,null,null,null,null,null,{"$f":"NoBlanks(J163:J660)","v":""}]
[null,null,null,null,null,null," ",null,null,null,null,null,null,null,null,null,null,null,null,null,null,null,null,null,null,null,null,{"$f":"NoBlanks(J164:J661)","v":""}]
[null,null,null,null,null,null," ",null,null,null,null,null,null,null,null,null,null,null,null,null,null,null,null,null,null,null,null,{"$f":"NoBlanks(J165:J662)","v":""}]
[null,null,null,null,null,null," ",null,null,null,null,null,null,null,null,null,null,null,null,null,null,null,null,null,null,null,null,{"$f":"NoBlanks(J166:J663)","v":""}]
[null,null,null,null,null,null," ",null,null,null,null,null,null,null,null,null,null,null,null,null,null,null,null,null,null,null,null,{"$f":"NoBlanks(J167:J664)","v":""}]
[null,null,null,null,null,null," ",null,null,null,null,null,null,null,null,null,null,null,null,null,null,null,null,null,null,null,null,{"$f":"NoBlanks(J168:J665)","v":""}]
[null,null,null,null,null,null," ",null,null,null,null,null,null,null,null,null,null,null,null,null,null,null,null,null,null,null,null,{"$f":"NoBlanks(J169:J666)","v":""}]
[null,null,null,null,null,null," ",null,null,null,null,null,null,null,null,null,null,null,null,null,null,null,null,null,null,null,null,{"$f":"NoBlanks(J170:J667)","v":""}]
[null,null,null,null,null,null," ",null,null,null,null,null,null,null,null,null,null,null,null,null,null,null,null,null,null,null,null,{"$f":"NoBlanks(J171:J668)","v":""}]
[null,null,null,null,null,null," ",null,null,null,null,null,null,null,null,null,null,null,null,null,null,null,null,null,null,null,null,{"$f":"NoBlanks(J172:J669)","v":""}]
[null,null,null,null,null,null," ",null,null,null,null,null,null,null,null,null,null,null,null,null,null,null,null,null,null,null,null,{"$f":"NoBlanks(J173:J670)","v":""}]
[null,null,null,null,null,null," ",null,null,null,null,null,null,null,null,null,null,null,null,null,null,null,null,null,null,null,null,{"$f":"NoBlanks(J174:J671)","v":""}]
[null,null,null,null,null,null," ",null,null,null,null,null,null,null,null,null,null,null,null,null,null,null,null,null,null,null,null,{"$f":"NoBlanks(J175:J672)","v":""}]
[null,null,null,null,null,null," ",null,null,null,null,null,null,null,null,null,null,null,null,null,null,null,null,null,null,null,null,{"$f":"NoBlanks(J176:J673)","v":""}]
[null,null,null,null,null,null," ",null,null,null,null,null,null,null,null,null,null,null,null,null,null,null,null,null,null,null,null,{"$f":"NoBlanks(J177:J674)","v":""}]
[null,null,null,null,null,null," ",null,null,null,null,null,null,null,null,null,null,null,null,null,null,null,null,null,null,null,null,{"$f":"NoBlanks(J178:J675)","v":""}]
[null,null,null,null,null,null," ",null,null,null,null,null,null,null,null,null,null,null,null,null,null,null,null,null,null,null,null,{"$f":"NoBlanks(J179:J676)","v":""}]
[null,null,null,null,null,null," ",null,null,null,null,null,null,null,null,null,null,null,null,null,null,null,null,null,null,null,null,{"$f":"NoBlanks(J180:J677)","v":""}]
[null,null,null,null,null,null," ",null,null,null,null,null,null,null,null,null,null,null,null,null,null,null,null,null,null,null,null,{"$f":"NoBlanks(J181:J678)","v":""}]
[null,null,null,null,null,null," ",null,null,null,null,null,null,null,null,null,null,null,null,null,null,null,null,null,null,null,null,{"$f":"NoBlanks(J182:J679)","v":""}]
[null,null,null,null,null,null," ",null,null,null,null,null,null,null,null,null,null,null,null,null,null,null,null,null,null,null,null,{"$f":"NoBlanks(J183:J680)","v":""}]
[null,null,null,null,null,null," ",null,null,null,null,null,null,null,null,null,null,null,null,null,null,null,null,null,null,null,null,{"$f":"NoBlanks(J184:J681)","v":""}]
[null,null,null,null,null,null," ",null,null,null,null,null,null,null,null,null,null,null,null,null,null,null,null,null,null,null,null,{"$f":"NoBlanks(J185:J682)","v":""}]
[null,null,null,null,null,null," ",null,null,null,null,null,null,null,null,null,null,null,null,null,null,null,null,null,null,null,null,{"$f":"NoBlanks(J186:J683)","v":""}]
[null,null,null,null,null,null," ",null,null,null,null,null,null,null,null,null,null,null,null,null,null,null,null,null,null,null,null,{"$f":"NoBlanks(J187:J684)","v":""}]
[null,null,null,null,null,null," ",null,null,null,null,null,null,null,null,null,null,null,null,null,null,null,null,null,null,null,null,{"$f":"NoBlanks(J188:J685)","v":""}]
[null,null,null,null,null,null," ",null,null,null,null,null,null,null,null,null,null,null,null,null,null,null,null,null,null,null,null,{"$f":"NoBlanks(J189:J686)","v":""}]
[null,null,null,null,null,null," ",null,null,null,null,null,null,null,null,null,null,null,null,null,null,null,null,null,null,null,null,{"$f":"NoBlanks(J190:J687)","v":""}]
[null,null,null,null,null,null," ",null,null,null,null,null,null,null,null,null,null,null,null,null,null,null,null,null,null,null,null,{"$f":"NoBlanks(J191:J688)","v":""}]
[null,null,null,null,null,null," ",null,null,null,null,null,null,null,null,null,null,null,null,null,null,null,null,null,null,null,null,{"$f":"NoBlanks(J192:J689)","v":""}]
[null,null,null,null,null,null," ",null,null,null,null,null,null,null,null,null,null,null,null,null,null,null,null,null,null,null,null,{"$f":"NoBlanks(J193:J690)","v":""}]
[null,null,null,null,null,null," ",null,null,null,null,null,null,null,null,null,null,null,null,null,null,null,null,null,null,null,null,{"$f":"NoBlanks(J194:J691)","v":""}]
[null,null,null,null,null,null," ",null,null,null,null,null,null,null,null,null,null,null,null,null,null,null,null,null,null,null,null,{"$f":"NoBlanks(J195:J692)","v":""}]
[null,null,null,null,null,null," ",null,null,null,null,null,null,null,null,null,null,null,null,null,null,null,null,null,null,null,null,{"$f":"NoBlanks(J196:J693)","v":""}]
[null,null,null,null,null,null," ",null,null,null,null,null,null,null,null,null,null,null,null,null,null,null,null,null,null,null,null,{"$f":"NoBlanks(J197:J694)","v":""}]
[null,null,null,null,null,null," "]
[null,null,null,null,null,null," "]
[null,null,null,null,null,null," "]
[null,null,null,null,null,null," "]
[null,null,null,null,null,null," "]
[null,null,null,null,null,null," "]
[null,null,null,null,null,null," "]
[null,null,null,null,null,null," "]
[null,null,null,null,null,null," "]
[null,null,null,null,null,null," "]
[null,null,null,null,null,null," "]
[null,null,null,null,null,null," "]
[null,null,null,null,null,null," "]
[null,null,null,null,null,null," "]
[null,null,null,null,null,null," "]
[null,null,null,null,null,null," "]
[null,null,null,null,null,null," "]
[null,null,null,null,null,null," "]
[null,null,null,null,null,null," "]
[null,null,null,null,null,null," "]
[null,null,null,null,null,null," "]
[null,null,null,null,null,null," "]
[null,null,null,null,null,null," "]
[null,null,null,null,null,null," "]
[null,null,null,null,null,null," "]
[null,null,null,null,null,null," "]
[null,null,null,null,null,null," "]
[null,null,null,null,null,null," "]
[null,null,null,null,null,null," "]
[null,null,null,null,null,null," "]
[null,null,null,null,null,null," "]
[null,null,null,null,null,null," "]
[null,null,null,null,null,null," "]
[null,null,null,null,null,null," "]
[null,null,null,null,null,null," "]
[null,null,null,null,null,null," "]
[null,null,null,null,null,null," "]
[null,null,null,null,null,null," "]
[null,null,null,null,null,null," "]
[null,null,null,null,null,null," "]
[null,null,null,null,null,null," "]
[null,null,null,null,null,null," "]
[null,null,null,null,null,null," "]
[null,null,null,null,null,null," "]
[null,null,null,null,null,null," "]
[null,null,null,null,null,null," "]
[null,null,null,null,null,null," "]
[null,null,null,null,null,null," "]
[null,null,null,null,null,null," "]
[null,null,null,null,null,null," "]
[null,null,null,null,null,null," "]
[null,null,null,null,null,null," "]
[null,null,null,null,null,null," "]
[null,null,null,null,null,null," "]
[null,null,null,null,null,null," "]
[null,null,null,null,null,null," "]
[null,null,null,null,null,null," "]
[null,null,null,null,null,null," "]
[null,null,null,null,null,null," "]
[null,null,null,null,null,null," "]
[null,null,null,null,null,null," "]
[null,null,null,null,null,null," "]
[null,null,null,null,null,null," "]
[null,null,null,null,null,null," "]
[null,null,null,null,null,null," "]
[null,null,null,null,null,null," "]
[null,null,null,null,null,null," "]
[null,null,null,null,null,null," "]
[null,null,null,null,null,null," "]
[null,null,null,null,null,null," "]
[null,null,null,null,null,null," "]
[null,null,null,null,null,null," "]
[null,null,null,null,null,null," "]
[null,null,null,null,null,null," "]
[null,null,null,null,null,null," "]
[null,null,null,null,null,null," "]
[null,null,null,null,null,null," "]
[null,null,null,null,null,null," "]
[null,null,null,null,null,null," "]
[null,null,null,null,null,null," "]
[null,null,null,null,null,null," "]
[null,null,null,null,null,null," "]
[null,null,null,null,null,null," "]
[null,null,null,null,null,null," "]
[null,null,null,null,null,null," "]
[null,null,null,null,null,null," "]
[null,null,null,null,null,null," "]
[null,null,null,null,null,null," "]
[null,null,null,null,null,null," "]
[null,null,null,null,null,null," "]
[null,null,null,null,null,null," "]
[null,null,null,null,null,null," "]
[null,null,null,null,null,null," "]
[null,null,null,null,null,null," "]
[null,null,null,null,null,null," "]
[null,null,null,null,null,null," "]
[null,null,null,null,null,null," "]
[null,null,null,null,null,null," "]
[null,null,null,null,null,null," "]
[null,null,null,null,null,null," "]
[null,null,null,null,null,null," "]
[null,null,null,null,null,null," "]
[null,null,null,null,null,null," "]
[null,null,null,null,null,null," "]
[null,null,null,null,null,null," "]
[null,null,null,null,null,null," "]
[null,null,null,null,null,null," "]
[null,null,null,null,null,null," "]
[null,null,null,null,null,null," "]
[null,null,null,null,null,null," "]
[null,null,null,null,null,null," "]
[null,null,null,null,null,null," "]
[null,null,null,null,null,null," "]
[null,null,null,null,null,null," "]
[null,null,null,null,null,null," "]
[null,null,null,null,null,null," "]
[null,null,null,null,null,null," "]
[null,null,null,null,null,null," "]
[null,null,null,null,null,null," "]
[null,null,null,null,null,null," "]
[null,null,null,null,null,null," "]
[null,null,null,null,null,null," "]
[null,null,null,null,null,null," "]
[null,null,null,null,null,null," "]
[null,null,null,null,null,null," "]
[null,null,null,null,null,null," "]
[null,null,null,null,null,null," "]
[null,null,null,null,null,null," "]
[null,null,null,null,null,null," "]
[null,null,null,null,null,null," "]
[null,null,null,null,null,null," "]
[null,null,null,null,null,null," "]
[null,null,null,null,null,null," "]
[null,null,null,null,null,null," "]
[null,null,null,null,null,null," "]
[null,null,null,null,null,null," "]
[null,null,null,null,null,null," "]
[null,null,null,null,null,null," "]
[null,null,null,null,null,null," "]
[null,null,null,null,null,null," "]
[null,null,null,null,null,null," "]
[null,null,null,null,null,null," "]
[null,null,null,null,null,null," "]
[null,null,null,null,null,null," "]
[null,null,null,null,null,null," "]
[null,null,null,null,null,null," "]
[null,null,null,null,null,null," "]
[null,null,null,null,null,null," "]
[null,null,null,null,null,null," "]
[null,null,null,null,null,null," "]
[null,null,null,null,null,null," "]
[null,null,null,null,null,null," "]
[null,null,null,null,null,null," "]
[null,null,null,null,null,null," "]
[null,null,null,null,null,null," "]
[null,null,null,null,null,null," "]
[null,null,null,null,null,null," "]
[null,null,null,null,null,null," "]
[null,null,null,null,null,null," "]
[null,null,null,null,null,null," "]
[null,null,null,null,null,null," "]
[null,null,null,null,null,null," "]
[null,null,null,null,null,null," "]
[null,null,null,null,null,null," "]
[null,null,null,null,null,null," "]
[null,null,null,null,null,null," "]
[null,null,null,null,null,null," "]
[null,null,null,null,null,null," "]
[null,null,null,null,null,null," "]
[null,null,null,null,null,null," "]
[null,null,null,null,null,null," "]
[null,null,null,null,null,null," "]
[null,null,null,null,null,null," "]
[null,null,null,null,null,null," "]
[null,null,null,null,null,null," "]
[null,null,null,null,null,null," "]
[null,null,null,null,null,null," "]
[null,null,null,null,null,null," "]
[null,null,null,null,null,null," "]
[null,null,null,null,null,null," "]
[null,null,null,null,null,null," "]
[null,null,null,null,null,null," "]
[null,null,null,null,null,null," "]
[null,null,null,null,null,null," "]
[null,null,null,null,null,null," "]
[null,null,null,null,null,null," "]
[null,null,null,null,null,null," "]
[null,null,null,null,null,null," "]
[null,null,null,null,null,null," "]
[null,null,null,null,null,null," "]
[null,null,null,null,null,null," "]
[null,null,null,null,null,null," "]
[null,null,null,null,null,null," "]
[null,null,null,null,null,null," "]
[null,null,null,null,null,null," "]
[null,null,null,null,null,null," "]
[null,null,null,null,null,null," "]
[null,null,null,null,null,null," "]
[null,null,null,null,null,null," "]
[null,null,null,null,null,null," "]
[null,null,null,null,null,null," "]
[null,null,null,null,null,null," "]
[null,null,null,null,null,null," "]
[null,null,null,null,null,null," "]
[null,null,null,null,null,null," "]
[null,null,null,null,null,null," "]
[null,null,null,null,null,null," "]
[null,null,null,null,null,null," "]
[null,null,null,null,null,null," "]
[null,null,null,null,null,null," "]
[null,null,null,null,null,null," "]
[null,null,null,null,null,null," "]
[null,null,null,null,null,null," "]
[null,null,null,null,null,null," "]
[null,null,null,null,null,null," "]
[null,null,null,null,null,null," "]
[null,null,null,null,null,null," "]
[null,null,null,null,null,null," "]
[null,null,null,null,null,null," "]
[null,null,null,null,null,null," "]
[null,null,null,null,null,null," "]
[null,null,null,null,null,null," "]
[null,null,null,null,null,null," "]
[null,null,null,null,null,null," "]
[null,null,null,null,null,null," "]
[null,null,null,null,null,null," "]
[null,null,null,null,null,null," "]
[null,null,null,null,null,null," "]
[null,null,null,null,null,null," "]
[null,null,null,null,null,null," "]
[null,null,null,null,null,null," "]
[null,null,null,null,null,null," "]
[null,null,null,null,null,null," "]
[null,null,null,null,null,null," "]
[null,null,null,null,null,null," "]
[null,null,null,null,null,null," "]
[null,null,null,null,null,null," "]
[null,null,null,null,null,null," "]
[null,null,null,null,null,null," "]
[null,null,null,null,null,null," "]
[null,null,null,null,null,null," "]
[null,null,null,null,null,null," "]
[null,null,null,null,null,null," "]
[null,null,null,null,null,null," "]
[null,null,null,null,null,null," "]
[null,null,null,null,null,null," "]
[null,null,null,null,null,null," "]
[null,null,null,null,null,null," "]
[null,null,null,null,null,null," "]
[null,null,null,null,null,null," "]
[null,null,null,null,null,null," "]
[null,null,null,null,null,null," "]
[null,null,null,null,null,null," "]
[null,null,null,null,null,null," "]
[null,null,null,null,null,null," "]
[null,null,null,null,null,null," "]
[null,null,null,null,null,null," "]
[null,null,null,null,null,null," "]
[null,null,null,null,null,null," "]
[null,null,null,null,null,null," "]
[null,null,null,null,null,null," "]
[null,null,null,null,null,null," "]
[null,null,null,null,null,null," "]
[null,null,null,null,null,null," "]
[null,null,null,null,null,null," "]
[null,null,null,null,null,null," "]
[null,null,null,null,null,null," "]
[null,null,null,null,null,null," "]
[null,null,null,null,null,null," "]
[null,null,null,null,null,null," "]
[null,null,null,null,null,null," "]
[null,null,null,null,null,null," "]
[null,null,null,null,null,null," "]
[null,null,null,null,null,null," "]
[null,null,null,null,null,null," "]
[null,null,null,null,null,null," "]
[null,null,null,null,null,null," "]
[null,null,null,null,null,null," "]
[null,null,null,null,null,null," "]
[null,null,null,null,null,null," "]
[null,null,null,null,null,null," "]
[null,null,null,null,null,null," "]
[null,null,null,null,null,null," "]
[null,null,null,null,null,null," "]
[null,null,null,null,null,null," "]
[null,null,null,null,null,null," "]
[null,null,null,null,null,null," "]
[null,null,null,null,null,null," "]
[null,null,null,null,null,null," "]
[null,null,null,null,null,null," "]
[null,null,null,null,null,null," "]
[null,null,null,null,null,null," "]
[null,null,null,null,null,null," "]
[null,null,null,null,null,null," "]
[null,null,null,null,null,null," "]